Body Name,Date Paid,Transaction Number,Amount,Supplier Name,Supplier Type,Expense Area,Cost Centre Description,Expense Type
Cambridgeshire County Council,23-Mar-18,25823032-17136158,-89880,Network Rail Ltd,Company,Local Infrastructure & Street Management,Local Projects,Capital WIP - roads  -  Expenditure / Payments
Cambridgeshire County Council,23-Mar-18,26153689-17136162,-23325.68,Network Rail Ltd,Company,Major Infrastructure Delivery,Chesterton Busway,Capital WIP - other  -  Expenditure / Payments
Cambridgeshire County Council,19-Mar-18,26058651-17070727,-20554.71,Chs Group,Care Establishment,2 - Commissioning - Older people Pool,Older People - City & South,Supported Living
Cambridgeshire County Council,23-Mar-18,26211989-17138484,-17182,Unique Care Homes,Care Establishment,S&C,Placements - Social Care,Agency Placements - In Cambs
Cambridgeshire County Council,05-Mar-18,24568283-16956485,-13964.12,Bnp Paribas Real Estate,Trade Supplier,LGSS Managed,Babbage House,Buildings service charges
Cambridgeshire County Council,16-Mar-18,26216624-17029609,-6741,The Lodge (Jeesal Akman Care Corporation Ltd),Care Establishment,4 - Operations - Providers services,LDP Hunts special needs,Day and Domicillary Care Independent Sector
Cambridgeshire County Council,16-Mar-18,26216627-17029612,-6741,The Lodge (Jeesal Akman Care Corporation Ltd),Care Establishment,4 - Operations - Providers services,LDP Hunts special needs,Day and Domicillary Care Independent Sector
Cambridgeshire County Council,16-Mar-18,26216644-17029622,-6741,The Lodge (Jeesal Akman Care Corporation Ltd),Care Establishment,4 - Operations - Providers services,LDP Hunts special needs,Day and Domicillary Care Independent Sector
Cambridgeshire County Council,16-Mar-18,26216630-17029614,-6741,The Lodge (Jeesal Akman Care Corporation Ltd),Care Establishment,4 - Operations - Providers services,LDP Hunts special needs,Day and Domicillary Care Independent Sector
Cambridgeshire County Council,16-Mar-18,26216647-17029624,-6741,The Lodge (Jeesal Akman Care Corporation Ltd),Care Establishment,4 - Operations - Providers services,LDP Hunts special needs,Day and Domicillary Care Independent Sector
Cambridgeshire County Council,16-Mar-18,26216638-17029619,-6741,The Lodge (Jeesal Akman Care Corporation Ltd),Care Establishment,4 - Operations - Providers services,LDP Hunts special needs,Day and Domicillary Care Independent Sector
Cambridgeshire County Council,16-Mar-18,26216631-17029615,-6741,The Lodge (Jeesal Akman Care Corporation Ltd),Care Establishment,4 - Operations - Providers services,LDP Hunts special needs,Day and Domicillary Care Independent Sector
Cambridgeshire County Council,16-Mar-18,26216645-17029623,-6741,The Lodge (Jeesal Akman Care Corporation Ltd),Care Establishment,4 - Operations - Providers services,LDP Hunts special needs,Day and Domicillary Care Independent Sector
Cambridgeshire County Council,23-Mar-18,26279989-17138485,-5838.28,Unique Care Homes,Care Establishment,S&C,Placements - Social Care,Agency Placements - In Cambs
Cambridgeshire County Council,02-Mar-18,26158105-16933242,-4664,Norfolk County Council,Other Public Bodies,S&C,Procurement - Out-County Special Schools & ER,Education Recoupment
Cambridgeshire County Council,15-Mar-18,26303308-17022529,-4657.36,Espo,Trade Supplier,Schools,Pathfinder Primary School,Capital WIP - land and buildings  -  Fixtures and fittings
Cambridgeshire County Council,02-Mar-18,26180137-16949554,-4655,Brookdale Healthcare Limited,Care Establishment,4 - Operations - Providers services,LDP Hunts special needs,Respite Independent Sector
Cambridgeshire County Council,02-Mar-18,26180139-16949556,-4655,Brookdale Healthcare Limited,Care Establishment,4 - Operations - Providers services,LDP Hunts special needs,Respite Independent Sector
Cambridgeshire County Council,08-Mar-18,26222054-16987809,-4655,Brookdale Healthcare Limited,Care Establishment,4 - Operations - Providers services,LDP Hunts special needs,Respite Independent Sector
Cambridgeshire County Council,16-Mar-18,26338899-17059075,-4655,Brookdale Healthcare Limited,Care Establishment,4 - Operations - Providers services,LDP Huntingdonshire Locality - Care,Respite Independent Sector
Cambridgeshire County Council,22-Mar-18,26428216-17117275,-4655,Brookdale Healthcare Limited,Care Establishment,4 - Operations - Providers services,LDP Hunts special needs,Respite Independent Sector
Cambridgeshire County Council,22-Mar-18,26428221-17117280,-4655,Brookdale Healthcare Limited,Care Establishment,4 - Operations - Providers services,LDP Hunts special needs,Respite Independent Sector
Cambridgeshire County Council,02-Mar-18,26044625-16949534,-4655,Brookdale Healthcare Limited,Care Establishment,4 - Operations - Providers services,LDP Huntingdonshire Locality - Care,Respite Independent Sector
Cambridgeshire County Council,08-Mar-18,26219831-16987800,-4655,Brookdale Healthcare Limited,Care Establishment,4 - Operations - Providers services,LDP Hunts special needs,Respite Independent Sector
Cambridgeshire County Council,08-Mar-18,26219832-16987801,-4655,Brookdale Healthcare Limited,Care Establishment,4 - Operations - Providers services,LDP Hunts special needs,Respite Independent Sector
Cambridgeshire County Council,16-Mar-18,26338893-17059072,-4655,Brookdale Healthcare Limited,Care Establishment,4 - Operations - Providers services,LDP Hunts special needs,Respite Independent Sector
Cambridgeshire County Council,22-Mar-18,26428212-17117271,-4655,Brookdale Healthcare Limited,Care Establishment,4 - Operations - Providers services,LDP Huntingdonshire Locality - Care,Respite Independent Sector
Cambridgeshire County Council,22-Mar-18,26428224-17117283,-4655,Brookdale Healthcare Limited,Care Establishment,4 - Operations - Providers services,LDP Huntingdonshire Locality - Care,Respite Independent Sector
Cambridgeshire County Council,02-Mar-18,26044610-16949519,-4655,Brookdale Healthcare Limited,Care Establishment,4 - Operations - Providers services,LDP Hunts special needs,Respite Independent Sector
Cambridgeshire County Council,02-Mar-18,26180134-16949551,-4655,Brookdale Healthcare Limited,Care Establishment,4 - Operations - Providers services,LDP Hunts special needs,Respite Independent Sector
Cambridgeshire County Council,08-Mar-18,26222056-16987811,-4655,Brookdale Healthcare Limited,Care Establishment,4 - Operations - Providers services,LDP Huntingdonshire Locality - Care,Respite Independent Sector
Cambridgeshire County Council,16-Mar-18,26338871-17059068,-4655,Brookdale Healthcare Limited,Care Establishment,4 - Operations - Providers services,LDP Huntingdonshire Locality - Care,Respite Independent Sector
Cambridgeshire County Council,16-Mar-18,26338898-17059074,-4655,Brookdale Healthcare Limited,Care Establishment,4 - Operations - Providers services,LDP Hunts special needs,Respite Independent Sector
Cambridgeshire County Council,22-Mar-18,26428208-17117267,-4655,Brookdale Healthcare Limited,Care Establishment,4 - Operations - Providers services,LDP Hunts special needs,Respite Independent Sector
Cambridgeshire County Council,02-Mar-18,26180131-16949548,-4655,Brookdale Healthcare Limited,Care Establishment,4 - Operations - Providers services,LDP Huntingdonshire Locality - Care,Respite Independent Sector
Cambridgeshire County Council,16-Mar-18,26338913-17059077,-4655,Brookdale Healthcare Limited,Care Establishment,4 - Operations - Providers services,LDP Hunts special needs,Respite Independent Sector
Cambridgeshire County Council,22-Mar-18,26382310-17117247,-4655,Brookdale Healthcare Limited,Care Establishment,4 - Operations - Providers services,LDP Huntingdonshire Locality - Care,Respite Independent Sector
Cambridgeshire County Council,22-Mar-18,26382320-17117257,-4655,Brookdale Healthcare Limited,Care Establishment,4 - Operations - Providers services,LDP Huntingdonshire Locality - Care,Respite Independent Sector
Cambridgeshire County Council,22-Mar-18,26428205-17117264,-4655,Brookdale Healthcare Limited,Care Establishment,4 - Operations - Providers services,LDP Huntingdonshire Locality - Care,Respite Independent Sector
Cambridgeshire County Council,22-Mar-18,26428213-17117272,-4655,Brookdale Healthcare Limited,Care Establishment,4 - Operations - Providers services,LDP Hunts special needs,Respite Independent Sector
Cambridgeshire County Council,02-Mar-18,26044612-16949521,-4655,Brookdale Healthcare Limited,Care Establishment,4 - Operations - Providers services,LDP Huntingdonshire Locality - Care,Respite Independent Sector
Cambridgeshire County Council,02-Mar-18,26044622-16949531,-4655,Brookdale Healthcare Limited,Care Establishment,4 - Operations - Providers services,LDP Hunts special needs,Respite Independent Sector
Cambridgeshire County Council,02-Mar-18,26180133-16949550,-4655,Brookdale Healthcare Limited,Care Establishment,4 - Operations - Providers services,LDP Huntingdonshire Locality - Care,Respite Independent Sector
Cambridgeshire County Council,08-Mar-18,26222053-16987808,-4655,Brookdale Healthcare Limited,Care Establishment,4 - Operations - Providers services,LDP Hunts special needs,Respite Independent Sector
Cambridgeshire County Council,22-Mar-18,26382322-17117259,-4655,Brookdale Healthcare Limited,Care Establishment,4 - Operations - Providers services,LDP Huntingdonshire Locality - Care,Respite Independent Sector
Cambridgeshire County Council,22-Mar-18,26428206-17117265,-4655,Brookdale Healthcare Limited,Care Establishment,4 - Operations - Providers services,LDP Huntingdonshire Locality - Care,Respite Independent Sector
Cambridgeshire County Council,22-Mar-18,26428207-17117266,-4655,Brookdale Healthcare Limited,Care Establishment,4 - Operations - Providers services,LDP Hunts special needs,Respite Independent Sector
Cambridgeshire County Council,02-Mar-18,26044616-16949525,-4655,Brookdale Healthcare Limited,Care Establishment,4 - Operations - Providers services,LDP Hunts special needs,Respite Independent Sector
Cambridgeshire County Council,02-Mar-18,26044626-16949535,-4655,Brookdale Healthcare Limited,Care Establishment,4 - Operations - Providers services,LDP Hunts special needs,Respite Independent Sector
Cambridgeshire County Council,02-Mar-18,26180135-16949552,-4655,Brookdale Healthcare Limited,Care Establishment,4 - Operations - Providers services,LDP Hunts special needs,Respite Independent Sector
Cambridgeshire County Council,02-Mar-18,26190304-16949564,-4655,Brookdale Healthcare Limited,Care Establishment,4 - Operations - Providers services,LDP Hunts special needs,Respite Independent Sector
Cambridgeshire County Council,08-Mar-18,26222049-16987804,-4655,Brookdale Healthcare Limited,Care Establishment,4 - Operations - Providers services,LDP Hunts special needs,Respite Independent Sector
Cambridgeshire County Council,08-Mar-18,26222050-16987805,-4655,Brookdale Healthcare Limited,Care Establishment,4 - Operations - Providers services,LDP Huntingdonshire Locality - Care,Respite Independent Sector
Cambridgeshire County Council,08-Mar-18,26219826-16987795,-4655,Brookdale Healthcare Limited,Care Establishment,4 - Operations - Providers services,LDP Hunts special needs,Respite Independent Sector
Cambridgeshire County Council,16-Mar-18,26338916-17059080,-4655,Brookdale Healthcare Limited,Care Establishment,4 - Operations - Providers services,LDP Huntingdonshire Locality - Care,Respite Independent Sector
Cambridgeshire County Council,22-Mar-18,26382326-17117263,-4655,Brookdale Healthcare Limited,Care Establishment,4 - Operations - Providers services,LDP Huntingdonshire Locality - Care,Respite Independent Sector
Cambridgeshire County Council,02-Mar-18,26180132-16949549,-4655,Brookdale Healthcare Limited,Care Establishment,4 - Operations - Providers services,LDP Hunts special needs,Respite Independent Sector
Cambridgeshire County Council,02-Mar-18,26180141-16949557,-4655,Brookdale Healthcare Limited,Care Establishment,4 - Operations - Providers services,LDP Hunts special needs,Respite Independent Sector
Cambridgeshire County Council,16-Mar-18,26338852-17059063,-4655,Brookdale Healthcare Limited,Care Establishment,4 - Operations - Providers services,LDP Hunts special needs,Respite Independent Sector
Cambridgeshire County Council,22-Mar-18,26382309-17117246,-4655,Brookdale Healthcare Limited,Care Establishment,4 - Operations - Providers services,LDP Huntingdonshire Locality - Care,Respite Independent Sector
Cambridgeshire County Council,22-Mar-18,26382312-17117249,-4655,Brookdale Healthcare Limited,Care Establishment,4 - Operations - Providers services,LDP Huntingdonshire Locality - Care,Respite Independent Sector
Cambridgeshire County Council,22-Mar-18,26382316-17117253,-4655,Brookdale Healthcare Limited,Care Establishment,4 - Operations - Providers services,LDP Huntingdonshire Locality - Care,Respite Independent Sector
Cambridgeshire County Council,22-Mar-18,26382317-17117254,-4655,Brookdale Healthcare Limited,Care Establishment,4 - Operations - Providers services,LDP Hunts special needs,Respite Independent Sector
Cambridgeshire County Council,02-Mar-18,26044617-16949526,-4655,Brookdale Healthcare Limited,Care Establishment,4 - Operations - Providers services,LDP Huntingdonshire Locality - Care,Respite Independent Sector
Cambridgeshire County Council,02-Mar-18,26044618-16949527,-4655,Brookdale Healthcare Limited,Care Establishment,4 - Operations - Providers services,LDP Huntingdonshire Locality - Care,Respite Independent Sector
Cambridgeshire County Council,02-Mar-18,26044623-16949532,-4655,Brookdale Healthcare Limited,Care Establishment,4 - Operations - Providers services,LDP Huntingdonshire Locality - Care,Respite Independent Sector
Cambridgeshire County Council,08-Mar-18,26222057-16987812,-4655,Brookdale Healthcare Limited,Care Establishment,4 - Operations - Providers services,LDP Hunts special needs,Respite Independent Sector
Cambridgeshire County Council,16-Mar-18,26338870-17059067,-4655,Brookdale Healthcare Limited,Care Establishment,4 - Operations - Providers services,LDP Huntingdonshire Locality - Care,Respite Independent Sector
Cambridgeshire County Council,16-Mar-18,26338907-17059076,-4655,Brookdale Healthcare Limited,Care Establishment,4 - Operations - Providers services,LDP Hunts special needs,Respite Independent Sector
Cambridgeshire County Council,22-Mar-18,26382315-17117252,-4655,Brookdale Healthcare Limited,Care Establishment,4 - Operations - Providers services,LDP Huntingdonshire Locality - Care,Respite Independent Sector
Cambridgeshire County Council,12-Mar-18,26056729-17000241,-4204.44,Orange Grove Foster Care,Care Establishment,S&C,Placements - Social Care,Agency Placements - In Cambs
Cambridgeshire County Council,02-Mar-18,25899812-16931666,-3935,Etheldred House,Care Establishment,2 - Commissioning - Older people Pool,City and South - Long term blocks,Nursing Independent Sector
Cambridgeshire County Council,02-Mar-18,25907774-16931669,-3935,Etheldred House,Care Establishment,2 - Commissioning - Older people Pool,City and South - Long term blocks,Nursing Independent Sector
Cambridgeshire County Council,02-Mar-18,25899748-16931632,-3935,Etheldred House,Care Establishment,2 - Commissioning - Older people Pool,City and South - Long term blocks,Nursing Independent Sector
Cambridgeshire County Council,02-Mar-18,25899803-16931662,-3935,Etheldred House,Care Establishment,2 - Commissioning - Older people Pool,City and South - Long term blocks,Nursing Independent Sector
Cambridgeshire County Council,02-Mar-18,25899810-16931664,-3935,Etheldred House,Care Establishment,2 - Commissioning - Older people Pool,City and South - Long term blocks,Nursing Independent Sector
Cambridgeshire County Council,02-Mar-18,25899817-16931668,-3935,Etheldred House,Care Establishment,2 - Commissioning - Older people Pool,City and South - Long term blocks,Nursing Independent Sector
Cambridgeshire County Council,02-Mar-18,25907854-16931708,-3935,Etheldred House,Care Establishment,2 - Commissioning - Older people Pool,City and South - Long term blocks,Nursing Independent Sector
Cambridgeshire County Council,02-Mar-18,25899741-16931629,-3935,Etheldred House,Care Establishment,2 - Commissioning - Older people Pool,City and South - Long term blocks,Nursing Independent Sector
Cambridgeshire County Council,02-Mar-18,25899802-16931661,-3935,Etheldred House,Care Establishment,2 - Commissioning - Older people Pool,City and South - Long term blocks,Nursing Independent Sector
Cambridgeshire County Council,02-Mar-18,25907830-16931696,-3935,Etheldred House,Care Establishment,2 - Commissioning - Older people Pool,City and South - Long term blocks,Nursing Independent Sector
Cambridgeshire County Council,02-Mar-18,25907831-16931697,-3935,Etheldred House,Care Establishment,2 - Commissioning - Older people Pool,City and South - Long term blocks,Nursing Independent Sector
Cambridgeshire County Council,02-Mar-18,25907834-16931700,-3935,Etheldred House,Care Establishment,2 - Commissioning - Older people Pool,City and South - Long term blocks,Nursing Independent Sector
Cambridgeshire County Council,02-Mar-18,25907851-16931705,-3935,Etheldred House,Care Establishment,2 - Commissioning - Older people Pool,City and South - Long term blocks,Nursing Independent Sector
Cambridgeshire County Council,02-Mar-18,25899761-16931639,-3935,Etheldred House,Care Establishment,2 - Commissioning - Older people Pool,City and South - Long term blocks,Nursing Independent Sector
Cambridgeshire County Council,02-Mar-18,25907778-16931673,-3935,Etheldred House,Care Establishment,2 - Commissioning - Older people Pool,City and South - Long term blocks,Nursing Independent Sector
Cambridgeshire County Council,02-Mar-18,25907809-16931687,-3935,Etheldred House,Care Establishment,2 - Commissioning - Older people Pool,City and South - Long term blocks,Nursing Independent Sector
Cambridgeshire County Council,02-Mar-18,25899795-16931657,-3935,Etheldred House,Care Establishment,2 - Commissioning - Older people Pool,City and South - Long term blocks,Nursing Independent Sector
Cambridgeshire County Council,02-Mar-18,25907813-16931689,-3935,Etheldred House,Care Establishment,2 - Commissioning - Older people Pool,City and South - Long term blocks,Nursing Independent Sector
Cambridgeshire County Council,02-Mar-18,25899763-16931641,-3935,Etheldred House,Care Establishment,2 - Commissioning - Older people Pool,City and South - Long term blocks,Nursing Independent Sector
Cambridgeshire County Council,02-Mar-18,25899770-16931644,-3935,Etheldred House,Care Establishment,2 - Commissioning - Older people Pool,City and South - Long term blocks,Nursing Independent Sector
Cambridgeshire County Council,02-Mar-18,25907807-16931685,-3935,Etheldred House,Care Establishment,2 - Commissioning - Older people Pool,City and South - Long term blocks,Nursing Independent Sector
Cambridgeshire County Council,02-Mar-18,25899760-16931638,-3935,Etheldred House,Care Establishment,2 - Commissioning - Older people Pool,City and South - Long term blocks,Nursing Independent Sector
Cambridgeshire County Council,02-Mar-18,25907814-16931690,-3935,Etheldred House,Care Establishment,2 - Commissioning - Older people Pool,City and South - Long term blocks,Nursing Independent Sector
Cambridgeshire County Council,02-Mar-18,25899780-16931648,-3935,Etheldred House,Care Establishment,2 - Commissioning - Older people Pool,City and South - Long term blocks,Nursing Independent Sector
Cambridgeshire County Council,02-Mar-18,25907775-16931670,-3935,Etheldred House,Care Establishment,2 - Commissioning - Older people Pool,City and South - Long term blocks,Nursing Independent Sector
Cambridgeshire County Council,02-Mar-18,25907815-16931691,-3935,Etheldred House,Care Establishment,2 - Commissioning - Older people Pool,City and South - Long term blocks,Nursing Independent Sector
Cambridgeshire County Council,02-Mar-18,25907829-16931695,-3935,Etheldred House,Care Establishment,2 - Commissioning - Older people Pool,City and South - Long term blocks,Nursing Independent Sector
Cambridgeshire County Council,02-Mar-18,25907833-16931699,-3935,Etheldred House,Care Establishment,2 - Commissioning - Older people Pool,City and South - Long term blocks,Nursing Independent Sector
Cambridgeshire County Council,02-Mar-18,26158108-16933243,-3698.46,Norfolk County Council,Other Public Bodies,S&C,Procurement - Out-County Special Schools & ER,Education Recoupment
Cambridgeshire County Council,02-Mar-18,26041941-16934480,-3377.22,Affinity Trust,Care Establishment,4 - Operations - Providers services,LDP Fenland Locality - Care,Day and Domicillary Care Independent Sector
Cambridgeshire County Council,02-Mar-18,26041954-16934493,-3377.22,Affinity Trust,Care Establishment,4 - Operations - Providers services,LDP Fenland Locality - Care,Day and Domicillary Care Independent Sector
Cambridgeshire County Council,02-Mar-18,26045143-16934500,-3377.22,Affinity Trust,Care Establishment,4 - Operations - Providers services,LDP Fenland Locality - Care,Day and Domicillary Care Independent Sector
Cambridgeshire County Council,02-Mar-18,26045150-16934507,-3377.22,Affinity Trust,Care Establishment,4 - Operations - Providers services,LDP Fenland Locality - Care,Day and Domicillary Care Independent Sector
Cambridgeshire County Council,02-Mar-18,26045138-16934521,-3377.22,Affinity Trust,Care Establishment,4 - Operations - Providers services,LDP Fenland Locality - Care,Day and Domicillary Care Independent Sector
Cambridgeshire County Council,02-Mar-18,26041942-16934481,-3377.22,Affinity Trust,Care Establishment,4 - Operations - Providers services,LDP Fenland Locality - Care,Day and Domicillary Care Independent Sector
Cambridgeshire County Council,02-Mar-18,26045148-16934505,-3377.22,Affinity Trust,Care Establishment,4 - Operations - Providers services,LDP Fenland Locality - Care,Day and Domicillary Care Independent Sector
Cambridgeshire County Council,02-Mar-18,26045159-16934516,-3377.22,Affinity Trust,Care Establishment,4 - Operations - Providers services,LDP Fenland Locality - Care,Day and Domicillary Care Independent Sector
Cambridgeshire County Council,02-Mar-18,26045139-16934522,-3377.22,Affinity Trust,Care Establishment,4 - Operations - Providers services,LDP Fenland Locality - Care,Day and Domicillary Care Independent Sector
Cambridgeshire County Council,02-Mar-18,26041951-16934490,-3377.22,Affinity Trust,Care Establishment,4 - Operations - Providers services,LDP Fenland Locality - Care,Day and Domicillary Care Independent Sector
Cambridgeshire County Council,02-Mar-18,26041953-16934492,-3377.22,Affinity Trust,Care Establishment,4 - Operations - Providers services,LDP Fenland Locality - Care,Day and Domicillary Care Independent Sector
Cambridgeshire County Council,02-Mar-18,26045145-16934502,-3377.22,Affinity Trust,Care Establishment,4 - Operations - Providers services,LDP Fenland Locality - Care,Day and Domicillary Care Independent Sector
Cambridgeshire County Council,02-Mar-18,26045152-16934509,-3377.22,Affinity Trust,Care Establishment,4 - Operations - Providers services,LDP Fenland Locality - Care,Day and Domicillary Care Independent Sector
Cambridgeshire County Council,02-Mar-18,26045157-16934514,-3377.22,Affinity Trust,Care Establishment,4 - Operations - Providers services,LDP Fenland Locality - Care,Day and Domicillary Care Independent Sector
Cambridgeshire County Council,02-Mar-18,26045158-16934515,-3377.22,Affinity Trust,Care Establishment,4 - Operations - Providers services,LDP Fenland Locality - Care,Day and Domicillary Care Independent Sector
Cambridgeshire County Council,02-Mar-18,26041939-16934478,-3377.22,Affinity Trust,Care Establishment,4 - Operations - Providers services,LDP Fenland Locality - Care,Day and Domicillary Care Independent Sector
Cambridgeshire County Council,02-Mar-18,26041959-16934498,-3377.22,Affinity Trust,Care Establishment,4 - Operations - Providers services,LDP Fenland Locality - Care,Day and Domicillary Care Independent Sector
Cambridgeshire County Council,02-Mar-18,26041957-16934496,-3377.22,Affinity Trust,Care Establishment,4 - Operations - Providers services,LDP Fenland Locality - Care,Day and Domicillary Care Independent Sector
Cambridgeshire County Council,02-Mar-18,26041960-16934499,-3377.22,Affinity Trust,Care Establishment,4 - Operations - Providers services,LDP Fenland Locality - Care,Day and Domicillary Care Independent Sector
Cambridgeshire County Council,02-Mar-18,26041952-16934491,-3377.22,Affinity Trust,Care Establishment,4 - Operations - Providers services,LDP Fenland Locality - Care,Day and Domicillary Care Independent Sector
Cambridgeshire County Council,02-Mar-18,26045149-16934506,-3377.22,Affinity Trust,Care Establishment,4 - Operations - Providers services,LDP Fenland Locality - Care,Day and Domicillary Care Independent Sector
Cambridgeshire County Council,02-Mar-18,26045151-16934508,-3377.22,Affinity Trust,Care Establishment,4 - Operations - Providers services,LDP Fenland Locality - Care,Day and Domicillary Care Independent Sector
Cambridgeshire County Council,02-Mar-18,26045140-16934523,-3377.22,Affinity Trust,Care Establishment,4 - Operations - Providers services,LDP Fenland Locality - Care,Day and Domicillary Care Independent Sector
Cambridgeshire County Council,02-Mar-18,26041945-16934484,-3377.22,Affinity Trust,Care Establishment,4 - Operations - Providers services,LDP Fenland Locality - Care,Day and Domicillary Care Independent Sector
Cambridgeshire County Council,02-Mar-18,25899759-16931637,-3372.86,Etheldred House,Care Establishment,2 - Commissioning - Older people Pool,City and South - Long term blocks,Nursing Independent Sector
Cambridgeshire County Council,02-Mar-18,26044615-16949524,-3325,Brookdale Healthcare Limited,Care Establishment,4 - Operations - Providers services,LDP Hunts special needs,Respite Independent Sector
Cambridgeshire County Council,02-Mar-18,26180130-16949547,-3325,Brookdale Healthcare Limited,Care Establishment,4 - Operations - Providers services,LDP Huntingdonshire Locality - Care,Respite Independent Sector
Cambridgeshire County Council,22-Mar-18,26428215-17117274,-3325,Brookdale Healthcare Limited,Care Establishment,4 - Operations - Providers services,LDP Hunts special needs,Respite Independent Sector
Cambridgeshire County Council,08-Mar-18,26222047-16987802,-3325,Brookdale Healthcare Limited,Care Establishment,4 - Operations - Providers services,LDP Hunts special needs,Respite Independent Sector
Cambridgeshire County Council,16-Mar-18,26338880-17059069,-3325,Brookdale Healthcare Limited,Care Establishment,4 - Operations - Providers services,LDP Hunts special needs,Respite Independent Sector
Cambridgeshire County Council,22-Mar-18,26382323-17117260,-3325,Brookdale Healthcare Limited,Care Establishment,4 - Operations - Providers services,LDP Huntingdonshire Locality - Care,Respite Independent Sector
Cambridgeshire County Council,08-Mar-18,26178495-16980288,-2977.44,Decoy Farm,Care Establishment,4 - Operations - Providers services,LDP E Cambs Special Needs,Residential Independent Sector
Cambridgeshire County Council,08-Mar-18,26178510-16980301,-2977.44,Decoy Farm,Care Establishment,4 - Operations - Providers services,LDP E Cambs Special Needs,Residential Independent Sector
Cambridgeshire County Council,08-Mar-18,26178430-16980306,-2977.44,Decoy Farm,Care Establishment,4 - Operations - Providers services,LDP E Cambs Special Needs,Residential Independent Sector
Cambridgeshire County Council,08-Mar-18,26178435-16980310,-2977.44,Decoy Farm,Care Establishment,4 - Operations - Providers services,LDP E Cambs Special Needs,Residential Independent Sector
Cambridgeshire County Council,08-Mar-18,26184360-16980339,-2977.44,Decoy Farm,Care Establishment,4 - Operations - Providers services,LDP E Cambs Special Needs,Residential Independent Sector
Cambridgeshire County Council,08-Mar-18,26184369-16980348,-2977.44,Decoy Farm,Care Establishment,4 - Operations - Providers services,LDP E Cambs Special Needs,Residential Independent Sector
Cambridgeshire County Council,08-Mar-18,26184379-16980357,-2977.44,Decoy Farm,Care Establishment,4 - Operations - Providers services,LDP E Cambs Special Needs,Residential Independent Sector
Cambridgeshire County Council,08-Mar-18,26184401-16980375,-2977.44,Decoy Farm,Care Establishment,4 - Operations - Providers services,LDP E Cambs Special Needs,Residential Independent Sector
Cambridgeshire County Council,08-Mar-18,26189397-16980459,-2977.44,Decoy Farm,Care Establishment,4 - Operations - Providers services,LDP E Cambs Special Needs,Residential Independent Sector
Cambridgeshire County Council,08-Mar-18,26189420-16980481,-2977.44,Decoy Farm,Care Establishment,4 - Operations - Providers services,LDP E Cambs Special Needs,Residential Independent Sector
Cambridgeshire County Council,08-Mar-18,26214171-16980500,-2977.44,Decoy Farm,Care Establishment,4 - Operations - Providers services,LDP E Cambs Special Needs,Residential Independent Sector
Cambridgeshire County Council,08-Mar-18,26214184-16980513,-2977.44,Decoy Farm,Care Establishment,4 - Operations - Providers services,LDP E Cambs Special Needs,Residential Independent Sector
Cambridgeshire County Council,08-Mar-18,26214133-16980519,-2977.44,Decoy Farm,Care Establishment,4 - Operations - Providers services,LDP E Cambs Special Needs,Residential Independent Sector
Cambridgeshire County Council,08-Mar-18,26214138-16980524,-2977.44,Decoy Farm,Care Establishment,4 - Operations - Providers services,LDP E Cambs Special Needs,Residential Independent Sector
Cambridgeshire County Council,08-Mar-18,26214150-16980536,-2977.44,Decoy Farm,Care Establishment,4 - Operations - Providers services,LDP E Cambs Special Needs,Residential Independent Sector
Cambridgeshire County Council,08-Mar-18,26216184-16980590,-2977.44,Decoy Farm,Care Establishment,4 - Operations - Providers services,LDP E Cambs Special Needs,Residential Independent Sector
Cambridgeshire County Council,08-Mar-18,26216190-16980596,-2977.44,Decoy Farm,Care Establishment,4 - Operations - Providers services,LDP E Cambs Special Needs,Residential Independent Sector
Cambridgeshire County Council,08-Mar-18,26216199-16980605,-2977.44,Decoy Farm,Care Establishment,4 - Operations - Providers services,LDP E Cambs Special Needs,Residential Independent Sector
Cambridgeshire County Council,08-Mar-18,26216202-16980608,-2977.44,Decoy Farm,Care Establishment,4 - Operations - Providers services,LDP E Cambs Special Needs,Residential Independent Sector
Cambridgeshire County Council,08-Mar-18,26216206-16980612,-2977.44,Decoy Farm,Care Establishment,4 - Operations - Providers services,LDP E Cambs Special Needs,Residential Independent Sector
Cambridgeshire County Council,08-Mar-18,26216208-16980614,-2977.44,Decoy Farm,Care Establishment,4 - Operations - Providers services,LDP E Cambs Special Needs,Residential Independent Sector
Cambridgeshire County Council,08-Mar-18,26216210-16980616,-2977.44,Decoy Farm,Care Establishment,4 - Operations - Providers services,LDP E Cambs Special Needs,Residential Independent Sector
Cambridgeshire County Council,08-Mar-18,26219260-16980628,-2977.44,Decoy Farm,Care Establishment,4 - Operations - Providers services,LDP E Cambs Special Needs,Residential Independent Sector
Cambridgeshire County Council,08-Mar-18,26219296-16980630,-2977.44,Decoy Farm,Care Establishment,4 - Operations - Providers services,LDP E Cambs Special Needs,Residential Independent Sector
Cambridgeshire County Council,08-Mar-18,26219299-16980633,-2977.44,Decoy Farm,Care Establishment,4 - Operations - Providers services,LDP E Cambs Special Needs,Residential Independent Sector
Cambridgeshire County Council,08-Mar-18,26219267-16980642,-2977.44,Decoy Farm,Care Establishment,4 - Operations - Providers services,LDP E Cambs Special Needs,Residential Independent Sector
Cambridgeshire County Council,08-Mar-18,26221204-16980675,-2977.44,Decoy Farm,Care Establishment,4 - Operations - Providers services,LDP E Cambs Special Needs,Residential Independent Sector
Cambridgeshire County Council,08-Mar-18,26221230-16980701,-2977.44,Decoy Farm,Care Establishment,4 - Operations - Providers services,LDP E Cambs Special Needs,Residential Independent Sector
Cambridgeshire County Council,08-Mar-18,26221271-16980742,-2977.44,Decoy Farm,Care Establishment,4 - Operations - Providers services,LDP E Cambs Special Needs,Residential Independent Sector
Cambridgeshire County Council,08-Mar-18,26184409-16980383,-2977.44,Decoy Farm,Care Establishment,4 - Operations - Providers services,LDP E Cambs Special Needs,Residential Independent Sector
Cambridgeshire County Council,08-Mar-18,26184345-16980412,-2977.44,Decoy Farm,Care Establishment,4 - Operations - Providers services,LDP E Cambs Special Needs,Residential Independent Sector
Cambridgeshire County Council,08-Mar-18,26184280-16980421,-2977.44,Decoy Farm,Care Establishment,4 - Operations - Providers services,LDP E Cambs Special Needs,Residential Independent Sector
Cambridgeshire County Council,08-Mar-18,26184283-16980423,-2977.44,Decoy Farm,Care Establishment,4 - Operations - Providers services,LDP E Cambs Special Needs,Residential Independent Sector
Cambridgeshire County Council,16-Mar-18,26335226-17027800,-2977.44,Decoy Farm,Care Establishment,4 - Operations - Providers services,LDP E Cambs Special Needs,Residential Independent Sector
Cambridgeshire County Council,16-Mar-18,26335235-17027809,-2977.44,Decoy Farm,Care Establishment,4 - Operations - Providers services,LDP E Cambs Special Needs,Residential Independent Sector
Cambridgeshire County Council,16-Mar-18,26335295-17027834,-2977.44,Decoy Farm,Care Establishment,4 - Operations - Providers services,LDP E Cambs Special Needs,Residential Independent Sector
Cambridgeshire County Council,16-Mar-18,26335297-17027835,-2977.44,Decoy Farm,Care Establishment,4 - Operations - Providers services,LDP E Cambs Special Needs,Residential Independent Sector
Cambridgeshire County Council,16-Mar-18,26344217-17027853,-2977.44,Decoy Farm,Care Establishment,4 - Operations - Providers services,LDP E Cambs Special Needs,Residential Independent Sector
Cambridgeshire County Council,16-Mar-18,26344219-17027855,-2977.44,Decoy Farm,Care Establishment,4 - Operations - Providers services,LDP E Cambs Special Needs,Residential Independent Sector
Cambridgeshire County Council,16-Mar-18,26344253-17027886,-2977.44,Decoy Farm,Care Establishment,4 - Operations - Providers services,LDP E Cambs Special Needs,Residential Independent Sector
Cambridgeshire County Council,16-Mar-18,26317221-17027694,-2977.44,Decoy Farm,Care Establishment,4 - Operations - Providers services,LDP E Cambs Special Needs,Residential Independent Sector
Cambridgeshire County Council,16-Mar-18,26317234-17027707,-2977.44,Decoy Farm,Care Establishment,4 - Operations - Providers services,LDP E Cambs Special Needs,Residential Independent Sector
Cambridgeshire County Council,16-Mar-18,26317237-17027710,-2977.44,Decoy Farm,Care Establishment,4 - Operations - Providers services,LDP E Cambs Special Needs,Residential Independent Sector
Cambridgeshire County Council,16-Mar-18,26317992-17027717,-2977.44,Decoy Farm,Care Establishment,4 - Operations - Providers services,LDP E Cambs Special Needs,Residential Independent Sector
Cambridgeshire County Council,16-Mar-18,26318004-17027728,-2977.44,Decoy Farm,Care Establishment,4 - Operations - Providers services,LDP E Cambs Special Needs,Residential Independent Sector
Cambridgeshire County Council,16-Mar-18,26335269-17027759,-2977.44,Decoy Farm,Care Establishment,4 - Operations - Providers services,LDP E Cambs Special Needs,Residential Independent Sector
Cambridgeshire County Council,16-Mar-18,26344258-17027891,-2977.44,Decoy Farm,Care Establishment,4 - Operations - Providers services,LDP E Cambs Special Needs,Residential Independent Sector
Cambridgeshire County Council,16-Mar-18,26344157-17027903,-2977.44,Decoy Farm,Care Establishment,4 - Operations - Providers services,LDP E Cambs Special Needs,Residential Independent Sector
Cambridgeshire County Council,16-Mar-18,26344182-17027926,-2977.44,Decoy Farm,Care Establishment,4 - Operations - Providers services,LDP E Cambs Special Needs,Residential Independent Sector
Cambridgeshire County Council,16-Mar-18,26344186-17027930,-2977.44,Decoy Farm,Care Establishment,4 - Operations - Providers services,LDP E Cambs Special Needs,Residential Independent Sector
Cambridgeshire County Council,16-Mar-18,26344208-17027952,-2977.44,Decoy Farm,Care Establishment,4 - Operations - Providers services,LDP E Cambs Special Needs,Residential Independent Sector
Cambridgeshire County Council,20-Mar-18,26378626-17075305,-2977.44,Decoy Farm,Care Establishment,4 - Operations - Providers services,LDP E Cambs Special Needs,Residential Independent Sector
Cambridgeshire County Council,20-Mar-18,26378643-17075322,-2977.44,Decoy Farm,Care Establishment,4 - Operations - Providers services,LDP E Cambs Special Needs,Residential Independent Sector
Cambridgeshire County Council,20-Mar-18,26378650-17075329,-2977.44,Decoy Farm,Care Establishment,4 - Operations - Providers services,LDP E Cambs Special Needs,Residential Independent Sector
Cambridgeshire County Council,20-Mar-18,26378529-17075337,-2977.44,Decoy Farm,Care Establishment,4 - Operations - Providers services,LDP E Cambs Special Needs,Residential Independent Sector
Cambridgeshire County Council,20-Mar-18,26378534-17075342,-2977.44,Decoy Farm,Care Establishment,4 - Operations - Providers services,LDP E Cambs Special Needs,Residential Independent Sector
Cambridgeshire County Council,20-Mar-18,26378543-17075351,-2977.44,Decoy Farm,Care Establishment,4 - Operations - Providers services,LDP E Cambs Special Needs,Residential Independent Sector
Cambridgeshire County Council,20-Mar-18,26378548-17075356,-2977.44,Decoy Farm,Care Establishment,4 - Operations - Providers services,LDP E Cambs Special Needs,Residential Independent Sector
Cambridgeshire County Council,20-Mar-18,26378558-17075366,-2977.44,Decoy Farm,Care Establishment,4 - Operations - Providers services,LDP E Cambs Special Needs,Residential Independent Sector
Cambridgeshire County Council,20-Mar-18,26386758-17075453,-2977.44,Decoy Farm,Care Establishment,4 - Operations - Providers services,LDP E Cambs Special Needs,Residential Independent Sector
Cambridgeshire County Council,20-Mar-18,26386767-17075462,-2977.44,Decoy Farm,Care Establishment,4 - Operations - Providers services,LDP E Cambs Special Needs,Residential Independent Sector
Cambridgeshire County Council,20-Mar-18,26390792-17075495,-2977.44,Decoy Farm,Care Establishment,4 - Operations - Providers services,LDP E Cambs Special Needs,Residential Independent Sector
Cambridgeshire County Council,20-Mar-18,26390741-17075520,-2977.44,Decoy Farm,Care Establishment,4 - Operations - Providers services,LDP E Cambs Special Needs,Residential Independent Sector
Cambridgeshire County Council,20-Mar-18,26390742-17075521,-2977.44,Decoy Farm,Care Establishment,4 - Operations - Providers services,LDP E Cambs Special Needs,Residential Independent Sector
Cambridgeshire County Council,20-Mar-18,26378609-17075288,-2977.44,Decoy Farm,Care Establishment,4 - Operations - Providers services,LDP E Cambs Special Needs,Residential Independent Sector
Cambridgeshire County Council,08-Mar-18,26178458-16980252,-2977.44,Decoy Farm,Care Establishment,4 - Operations - Providers services,LDP E Cambs Special Needs,Residential Independent Sector
Cambridgeshire County Council,08-Mar-18,26178462-16980256,-2977.44,Decoy Farm,Care Establishment,4 - Operations - Providers services,LDP E Cambs Special Needs,Residential Independent Sector
Cambridgeshire County Council,08-Mar-18,26178469-16980263,-2977.44,Decoy Farm,Care Establishment,4 - Operations - Providers services,LDP E Cambs Special Needs,Residential Independent Sector
Cambridgeshire County Council,08-Mar-18,26178472-16980265,-2977.44,Decoy Farm,Care Establishment,4 - Operations - Providers services,LDP E Cambs Special Needs,Residential Independent Sector
Cambridgeshire County Council,08-Mar-18,26178474-16980267,-2977.44,Decoy Farm,Care Establishment,4 - Operations - Providers services,LDP E Cambs Special Needs,Residential Independent Sector
Cambridgeshire County Council,08-Mar-18,26178478-16980271,-2977.44,Decoy Farm,Care Establishment,4 - Operations - Providers services,LDP E Cambs Special Needs,Residential Independent Sector
Cambridgeshire County Council,08-Mar-18,26178483-16980276,-2977.44,Decoy Farm,Care Establishment,4 - Operations - Providers services,LDP E Cambs Special Needs,Residential Independent Sector
Cambridgeshire County Council,08-Mar-18,26178491-16980284,-2977.44,Decoy Farm,Care Establishment,4 - Operations - Providers services,LDP E Cambs Special Needs,Residential Independent Sector
Cambridgeshire County Council,08-Mar-18,26178507-16980298,-2977.44,Decoy Farm,Care Establishment,4 - Operations - Providers services,LDP E Cambs Special Needs,Residential Independent Sector
Cambridgeshire County Council,08-Mar-18,26178447-16980241,-2977.44,Decoy Farm,Care Establishment,4 - Operations - Providers services,LDP E Cambs Special Needs,Residential Independent Sector
Cambridgeshire County Council,08-Mar-18,26189400-16980462,-2977.44,Decoy Farm,Care Establishment,4 - Operations - Providers services,LDP E Cambs Special Needs,Residential Independent Sector
Cambridgeshire County Council,08-Mar-18,26189414-16980475,-2977.44,Decoy Farm,Care Establishment,4 - Operations - Providers services,LDP E Cambs Special Needs,Residential Independent Sector
Cambridgeshire County Council,08-Mar-18,26189430-16980489,-2977.44,Decoy Farm,Care Establishment,4 - Operations - Providers services,LDP E Cambs Special Needs,Residential Independent Sector
Cambridgeshire County Council,08-Mar-18,26214185-16980514,-2977.44,Decoy Farm,Care Establishment,4 - Operations - Providers services,LDP E Cambs Special Needs,Residential Independent Sector
Cambridgeshire County Council,08-Mar-18,26214136-16980522,-2977.44,Decoy Farm,Care Establishment,4 - Operations - Providers services,LDP E Cambs Special Needs,Residential Independent Sector
Cambridgeshire County Council,08-Mar-18,26214148-16980534,-2977.44,Decoy Farm,Care Establishment,4 - Operations - Providers services,LDP E Cambs Special Needs,Residential Independent Sector
Cambridgeshire County Council,08-Mar-18,26216170-16980576,-2977.44,Decoy Farm,Care Establishment,4 - Operations - Providers services,LDP E Cambs Special Needs,Residential Independent Sector
Cambridgeshire County Council,08-Mar-18,26219262-16980637,-2977.44,Decoy Farm,Care Establishment,4 - Operations - Providers services,LDP E Cambs Special Needs,Residential Independent Sector
Cambridgeshire County Council,08-Mar-18,26221205-16980676,-2977.44,Decoy Farm,Care Establishment,4 - Operations - Providers services,LDP E Cambs Special Needs,Residential Independent Sector
Cambridgeshire County Council,08-Mar-18,26221208-16980679,-2977.44,Decoy Farm,Care Establishment,4 - Operations - Providers services,LDP E Cambs Special Needs,Residential Independent Sector
Cambridgeshire County Council,08-Mar-18,26221240-16980711,-2977.44,Decoy Farm,Care Establishment,4 - Operations - Providers services,LDP E Cambs Special Needs,Residential Independent Sector
Cambridgeshire County Council,08-Mar-18,26221249-16980720,-2977.44,Decoy Farm,Care Establishment,4 - Operations - Providers services,LDP E Cambs Special Needs,Residential Independent Sector
Cambridgeshire County Council,08-Mar-18,26221270-16980741,-2977.44,Decoy Farm,Care Establishment,4 - Operations - Providers services,LDP E Cambs Special Needs,Residential Independent Sector
Cambridgeshire County Council,08-Mar-18,26184331-16980399,-2977.44,Decoy Farm,Care Establishment,4 - Operations - Providers services,LDP E Cambs Special Needs,Residential Independent Sector
Cambridgeshire County Council,08-Mar-18,26184344-16980411,-2977.44,Decoy Farm,Care Establishment,4 - Operations - Providers services,LDP E Cambs Special Needs,Residential Independent Sector
Cambridgeshire County Council,08-Mar-18,26184286-16980426,-2977.44,Decoy Farm,Care Establishment,4 - Operations - Providers services,LDP E Cambs Special Needs,Residential Independent Sector
Cambridgeshire County Council,16-Mar-18,26335228-17027802,-2977.44,Decoy Farm,Care Establishment,4 - Operations - Providers services,LDP E Cambs Special Needs,Residential Independent Sector
Cambridgeshire County Council,16-Mar-18,26344211-17027850,-2977.44,Decoy Farm,Care Establishment,4 - Operations - Providers services,LDP E Cambs Special Needs,Residential Independent Sector
Cambridgeshire County Council,16-Mar-18,26344223-17027859,-2977.44,Decoy Farm,Care Establishment,4 - Operations - Providers services,LDP E Cambs Special Needs,Residential Independent Sector
Cambridgeshire County Council,16-Mar-18,26344239-17027874,-2977.44,Decoy Farm,Care Establishment,4 - Operations - Providers services,LDP E Cambs Special Needs,Residential Independent Sector
Cambridgeshire County Council,16-Mar-18,26317227-17027700,-2977.44,Decoy Farm,Care Establishment,4 - Operations - Providers services,LDP E Cambs Special Needs,Residential Independent Sector
Cambridgeshire County Council,16-Mar-18,26317999-17027724,-2977.44,Decoy Farm,Care Establishment,4 - Operations - Providers services,LDP E Cambs Special Needs,Residential Independent Sector
Cambridgeshire County Council,16-Mar-18,26335253-17027744,-2977.44,Decoy Farm,Care Establishment,4 - Operations - Providers services,LDP E Cambs Special Needs,Residential Independent Sector
Cambridgeshire County Council,16-Mar-18,26335257-17027747,-2977.44,Decoy Farm,Care Establishment,4 - Operations - Providers services,LDP E Cambs Special Needs,Residential Independent Sector
Cambridgeshire County Council,16-Mar-18,26335263-17027753,-2977.44,Decoy Farm,Care Establishment,4 - Operations - Providers services,LDP E Cambs Special Needs,Residential Independent Sector
Cambridgeshire County Council,16-Mar-18,26344255-17027888,-2977.44,Decoy Farm,Care Establishment,4 - Operations - Providers services,LDP E Cambs Special Needs,Residential Independent Sector
Cambridgeshire County Council,16-Mar-18,26344164-17027908,-2977.44,Decoy Farm,Care Establishment,4 - Operations - Providers services,LDP E Cambs Special Needs,Residential Independent Sector
Cambridgeshire County Council,16-Mar-18,26344170-17027914,-2977.44,Decoy Farm,Care Establishment,4 - Operations - Providers services,LDP E Cambs Special Needs,Residential Independent Sector
Cambridgeshire County Council,16-Mar-18,26344171-17027915,-2977.44,Decoy Farm,Care Establishment,4 - Operations - Providers services,LDP E Cambs Special Needs,Residential Independent Sector
Cambridgeshire County Council,16-Mar-18,26344174-17027918,-2977.44,Decoy Farm,Care Establishment,4 - Operations - Providers services,LDP E Cambs Special Needs,Residential Independent Sector
Cambridgeshire County Council,16-Mar-18,26344206-17027950,-2977.44,Decoy Farm,Care Establishment,4 - Operations - Providers services,LDP E Cambs Special Needs,Residential Independent Sector
Cambridgeshire County Council,20-Mar-18,26378632-17075311,-2977.44,Decoy Farm,Care Establishment,4 - Operations - Providers services,LDP E Cambs Special Needs,Residential Independent Sector
Cambridgeshire County Council,20-Mar-18,26378644-17075323,-2977.44,Decoy Farm,Care Establishment,4 - Operations - Providers services,LDP E Cambs Special Needs,Residential Independent Sector
Cambridgeshire County Council,20-Mar-18,26378651-17075330,-2977.44,Decoy Farm,Care Establishment,4 - Operations - Providers services,LDP E Cambs Special Needs,Residential Independent Sector
Cambridgeshire County Council,20-Mar-18,26378653-17075332,-2977.44,Decoy Farm,Care Establishment,4 - Operations - Providers services,LDP E Cambs Special Needs,Residential Independent Sector
Cambridgeshire County Council,20-Mar-18,26378551-17075359,-2977.44,Decoy Farm,Care Establishment,4 - Operations - Providers services,LDP E Cambs Special Needs,Residential Independent Sector
Cambridgeshire County Council,20-Mar-18,26378568-17075376,-2977.44,Decoy Farm,Care Establishment,4 - Operations - Providers services,LDP E Cambs Special Needs,Residential Independent Sector
Cambridgeshire County Council,20-Mar-18,26378572-17075380,-2977.44,Decoy Farm,Care Establishment,4 - Operations - Providers services,LDP E Cambs Special Needs,Residential Independent Sector
Cambridgeshire County Council,20-Mar-18,26378583-17075391,-2977.44,Decoy Farm,Care Establishment,4 - Operations - Providers services,LDP E Cambs Special Needs,Residential Independent Sector
Cambridgeshire County Council,20-Mar-18,26378594-17075402,-2977.44,Decoy Farm,Care Establishment,4 - Operations - Providers services,LDP E Cambs Special Needs,Residential Independent Sector
Cambridgeshire County Council,20-Mar-18,26378596-17075404,-2977.44,Decoy Farm,Care Establishment,4 - Operations - Providers services,LDP E Cambs Special Needs,Residential Independent Sector
Cambridgeshire County Council,20-Mar-18,26390774-17075477,-2977.44,Decoy Farm,Care Establishment,4 - Operations - Providers services,LDP E Cambs Special Needs,Residential Independent Sector
Cambridgeshire County Council,20-Mar-18,26390736-17075515,-2977.44,Decoy Farm,Care Establishment,4 - Operations - Providers services,LDP E Cambs Special Needs,Residential Independent Sector
Cambridgeshire County Council,20-Mar-18,26390737-17075516,-2977.44,Decoy Farm,Care Establishment,4 - Operations - Providers services,LDP E Cambs Special Needs,Residential Independent Sector
Cambridgeshire County Council,20-Mar-18,26390759-17075538,-2977.44,Decoy Farm,Care Establishment,4 - Operations - Providers services,LDP E Cambs Special Needs,Residential Independent Sector
Cambridgeshire County Council,08-Mar-18,26178465-16980259,-2977.44,Decoy Farm,Care Establishment,4 - Operations - Providers services,LDP E Cambs Special Needs,Residential Independent Sector
Cambridgeshire County Council,08-Mar-18,26184367-16980346,-2977.44,Decoy Farm,Care Establishment,4 - Operations - Providers services,LDP E Cambs Special Needs,Residential Independent Sector
Cambridgeshire County Council,08-Mar-18,26178452-16980246,-2977.44,Decoy Farm,Care Establishment,4 - Operations - Providers services,LDP E Cambs Special Needs,Residential Independent Sector
Cambridgeshire County Council,08-Mar-18,26184422-16980448,-2977.44,Decoy Farm,Care Establishment,4 - Operations - Providers services,LDP E Cambs Special Needs,Residential Independent Sector
Cambridgeshire County Council,08-Mar-18,26184426-16980452,-2977.44,Decoy Farm,Care Establishment,4 - Operations - Providers services,LDP E Cambs Special Needs,Residential Independent Sector
Cambridgeshire County Council,08-Mar-18,26184427-16980453,-2977.44,Decoy Farm,Care Establishment,4 - Operations - Providers services,LDP E Cambs Special Needs,Residential Independent Sector
Cambridgeshire County Council,08-Mar-18,26189426-16980485,-2977.44,Decoy Farm,Care Establishment,4 - Operations - Providers services,LDP E Cambs Special Needs,Residential Independent Sector
Cambridgeshire County Council,08-Mar-18,26216159-16980565,-2977.44,Decoy Farm,Care Establishment,4 - Operations - Providers services,LDP E Cambs Special Needs,Residential Independent Sector
Cambridgeshire County Council,08-Mar-18,26216164-16980570,-2977.44,Decoy Farm,Care Establishment,4 - Operations - Providers services,LDP E Cambs Special Needs,Residential Independent Sector
Cambridgeshire County Council,08-Mar-18,26216191-16980597,-2977.44,Decoy Farm,Care Establishment,4 - Operations - Providers services,LDP E Cambs Special Needs,Residential Independent Sector
Cambridgeshire County Council,08-Mar-18,26216214-16980620,-2977.44,Decoy Farm,Care Establishment,4 - Operations - Providers services,LDP E Cambs Special Needs,Residential Independent Sector
Cambridgeshire County Council,08-Mar-18,26216215-16980621,-2977.44,Decoy Farm,Care Establishment,4 - Operations - Providers services,LDP E Cambs Special Needs,Residential Independent Sector
Cambridgeshire County Council,08-Mar-18,26219258-16980626,-2977.44,Decoy Farm,Care Establishment,4 - Operations - Providers services,LDP E Cambs Special Needs,Residential Independent Sector
Cambridgeshire County Council,08-Mar-18,26221216-16980687,-2977.44,Decoy Farm,Care Establishment,4 - Operations - Providers services,LDP E Cambs Special Needs,Residential Independent Sector
Cambridgeshire County Council,08-Mar-18,26221224-16980695,-2977.44,Decoy Farm,Care Establishment,4 - Operations - Providers services,LDP E Cambs Special Needs,Residential Independent Sector
Cambridgeshire County Council,08-Mar-18,26221244-16980715,-2977.44,Decoy Farm,Care Establishment,4 - Operations - Providers services,LDP E Cambs Special Needs,Residential Independent Sector
Cambridgeshire County Council,08-Mar-18,26221276-16980747,-2977.44,Decoy Farm,Care Establishment,4 - Operations - Providers services,LDP E Cambs Special Needs,Residential Independent Sector
Cambridgeshire County Council,08-Mar-18,26184405-16980379,-2977.44,Decoy Farm,Care Establishment,4 - Operations - Providers services,LDP E Cambs Special Needs,Residential Independent Sector
Cambridgeshire County Council,08-Mar-18,26184330-16980398,-2977.44,Decoy Farm,Care Establishment,4 - Operations - Providers services,LDP E Cambs Special Needs,Residential Independent Sector
Cambridgeshire County Council,08-Mar-18,26184336-16980404,-2977.44,Decoy Farm,Care Establishment,4 - Operations - Providers services,LDP E Cambs Special Needs,Residential Independent Sector
Cambridgeshire County Council,08-Mar-18,26184348-16980414,-2977.44,Decoy Farm,Care Establishment,4 - Operations - Providers services,LDP E Cambs Special Needs,Residential Independent Sector
Cambridgeshire County Council,08-Mar-18,26184288-16980428,-2977.44,Decoy Farm,Care Establishment,4 - Operations - Providers services,LDP E Cambs Special Needs,Residential Independent Sector
Cambridgeshire County Council,08-Mar-18,26184295-16980435,-2977.44,Decoy Farm,Care Establishment,4 - Operations - Providers services,LDP E Cambs Special Needs,Residential Independent Sector
Cambridgeshire County Council,16-Mar-18,26335200-17027778,-2977.44,Decoy Farm,Care Establishment,4 - Operations - Providers services,LDP E Cambs Special Needs,Residential Independent Sector
Cambridgeshire County Council,16-Mar-18,26335227-17027801,-2977.44,Decoy Farm,Care Establishment,4 - Operations - Providers services,LDP E Cambs Special Needs,Residential Independent Sector
Cambridgeshire County Council,16-Mar-18,26335238-17027812,-2977.44,Decoy Farm,Care Establishment,4 - Operations - Providers services,LDP E Cambs Special Needs,Residential Independent Sector
Cambridgeshire County Council,16-Mar-18,26335248-17027822,-2977.44,Decoy Farm,Care Establishment,4 - Operations - Providers services,LDP E Cambs Special Needs,Residential Independent Sector
Cambridgeshire County Council,16-Mar-18,26335288-17027827,-2977.44,Decoy Farm,Care Establishment,4 - Operations - Providers services,LDP E Cambs Special Needs,Residential Independent Sector
Cambridgeshire County Council,16-Mar-18,26335301-17027839,-2977.44,Decoy Farm,Care Establishment,4 - Operations - Providers services,LDP E Cambs Special Needs,Residential Independent Sector
Cambridgeshire County Council,16-Mar-18,26344228-17027864,-2977.44,Decoy Farm,Care Establishment,4 - Operations - Providers services,LDP E Cambs Special Needs,Residential Independent Sector
Cambridgeshire County Council,16-Mar-18,26344232-17027868,-2977.44,Decoy Farm,Care Establishment,4 - Operations - Providers services,LDP E Cambs Special Needs,Residential Independent Sector
Cambridgeshire County Council,16-Mar-18,26344237-17027873,-2977.44,Decoy Farm,Care Establishment,4 - Operations - Providers services,LDP E Cambs Special Needs,Residential Independent Sector
Cambridgeshire County Council,16-Mar-18,26344243-17027878,-2977.44,Decoy Farm,Care Establishment,4 - Operations - Providers services,LDP E Cambs Special Needs,Residential Independent Sector
Cambridgeshire County Council,16-Mar-18,26344254-17027887,-2977.44,Decoy Farm,Care Establishment,4 - Operations - Providers services,LDP E Cambs Special Needs,Residential Independent Sector
Cambridgeshire County Council,16-Mar-18,26317244-17027685,-2977.44,Decoy Farm,Care Establishment,4 - Operations - Providers services,LDP E Cambs Special Needs,Residential Independent Sector
Cambridgeshire County Council,16-Mar-18,26317214-17027690,-2977.44,Decoy Farm,Care Establishment,4 - Operations - Providers services,LDP E Cambs Special Needs,Residential Independent Sector
Cambridgeshire County Council,16-Mar-18,26317216-17027692,-2977.44,Decoy Farm,Care Establishment,4 - Operations - Providers services,LDP E Cambs Special Needs,Residential Independent Sector
Cambridgeshire County Council,16-Mar-18,26335256-17027746,-2977.44,Decoy Farm,Care Establishment,4 - Operations - Providers services,LDP E Cambs Special Needs,Residential Independent Sector
Cambridgeshire County Council,16-Mar-18,26344257-17027890,-2977.44,Decoy Farm,Care Establishment,4 - Operations - Providers services,LDP E Cambs Special Needs,Residential Independent Sector
Cambridgeshire County Council,16-Mar-18,26344266-17027898,-2977.44,Decoy Farm,Care Establishment,4 - Operations - Providers services,LDP E Cambs Special Needs,Residential Independent Sector
Cambridgeshire County Council,16-Mar-18,26344169-17027913,-2977.44,Decoy Farm,Care Establishment,4 - Operations - Providers services,LDP E Cambs Special Needs,Residential Independent Sector
Cambridgeshire County Council,16-Mar-18,26344177-17027921,-2977.44,Decoy Farm,Care Establishment,4 - Operations - Providers services,LDP E Cambs Special Needs,Residential Independent Sector
Cambridgeshire County Council,20-Mar-18,26378622-17075301,-2977.44,Decoy Farm,Care Establishment,4 - Operations - Providers services,LDP E Cambs Special Needs,Residential Independent Sector
Cambridgeshire County Council,20-Mar-18,26378627-17075306,-2977.44,Decoy Farm,Care Establishment,4 - Operations - Providers services,LDP E Cambs Special Needs,Residential Independent Sector
Cambridgeshire County Council,20-Mar-18,26378631-17075310,-2977.44,Decoy Farm,Care Establishment,4 - Operations - Providers services,LDP E Cambs Special Needs,Residential Independent Sector
Cambridgeshire County Council,20-Mar-18,26378634-17075313,-2977.44,Decoy Farm,Care Establishment,4 - Operations - Providers services,LDP E Cambs Special Needs,Residential Independent Sector
Cambridgeshire County Council,20-Mar-18,26378642-17075321,-2977.44,Decoy Farm,Care Establishment,4 - Operations - Providers services,LDP E Cambs Special Needs,Residential Independent Sector
Cambridgeshire County Council,20-Mar-18,26378562-17075370,-2977.44,Decoy Farm,Care Establishment,4 - Operations - Providers services,LDP E Cambs Special Needs,Residential Independent Sector
Cambridgeshire County Council,20-Mar-18,26378579-17075387,-2977.44,Decoy Farm,Care Establishment,4 - Operations - Providers services,LDP E Cambs Special Needs,Residential Independent Sector
Cambridgeshire County Council,20-Mar-18,26378595-17075403,-2977.44,Decoy Farm,Care Establishment,4 - Operations - Providers services,LDP E Cambs Special Needs,Residential Independent Sector
Cambridgeshire County Council,20-Mar-18,26378678-17075434,-2977.44,Decoy Farm,Care Establishment,4 - Operations - Providers services,LDP E Cambs Special Needs,Residential Independent Sector
Cambridgeshire County Council,20-Mar-18,26386751-17075446,-2977.44,Decoy Farm,Care Establishment,4 - Operations - Providers services,LDP E Cambs Special Needs,Residential Independent Sector
Cambridgeshire County Council,20-Mar-18,26386753-17075448,-2977.44,Decoy Farm,Care Establishment,4 - Operations - Providers services,LDP E Cambs Special Needs,Residential Independent Sector
Cambridgeshire County Council,20-Mar-18,26386773-17075468,-2977.44,Decoy Farm,Care Establishment,4 - Operations - Providers services,LDP E Cambs Special Needs,Residential Independent Sector
Cambridgeshire County Council,20-Mar-18,26390721-17075500,-2977.44,Decoy Farm,Care Establishment,4 - Operations - Providers services,LDP E Cambs Special Needs,Residential Independent Sector
Cambridgeshire County Council,20-Mar-18,26390730-17075509,-2977.44,Decoy Farm,Care Establishment,4 - Operations - Providers services,LDP E Cambs Special Needs,Residential Independent Sector
Cambridgeshire County Council,20-Mar-18,26390731-17075510,-2977.44,Decoy Farm,Care Establishment,4 - Operations - Providers services,LDP E Cambs Special Needs,Residential Independent Sector
Cambridgeshire County Council,20-Mar-18,26390735-17075514,-2977.44,Decoy Farm,Care Establishment,4 - Operations - Providers services,LDP E Cambs Special Needs,Residential Independent Sector
Cambridgeshire County Council,20-Mar-18,26390745-17075524,-2977.44,Decoy Farm,Care Establishment,4 - Operations - Providers services,LDP E Cambs Special Needs,Residential Independent Sector
Cambridgeshire County Council,20-Mar-18,26390768-17075547,-2977.44,Decoy Farm,Care Establishment,4 - Operations - Providers services,LDP E Cambs Special Needs,Residential Independent Sector
Cambridgeshire County Council,08-Mar-18,26178467-16980261,-2977.44,Decoy Farm,Care Establishment,4 - Operations - Providers services,LDP E Cambs Special Needs,Residential Independent Sector
Cambridgeshire County Council,08-Mar-18,26178473-16980266,-2977.44,Decoy Farm,Care Establishment,4 - Operations - Providers services,LDP E Cambs Special Needs,Residential Independent Sector
Cambridgeshire County Council,08-Mar-18,26178477-16980270,-2977.44,Decoy Farm,Care Establishment,4 - Operations - Providers services,LDP E Cambs Special Needs,Residential Independent Sector
Cambridgeshire County Council,08-Mar-18,26178492-16980285,-2977.44,Decoy Farm,Care Establishment,4 - Operations - Providers services,LDP E Cambs Special Needs,Residential Independent Sector
Cambridgeshire County Council,08-Mar-18,26178493-16980286,-2977.44,Decoy Farm,Care Establishment,4 - Operations - Providers services,LDP E Cambs Special Needs,Residential Independent Sector
Cambridgeshire County Council,08-Mar-18,26178497-16980290,-2977.44,Decoy Farm,Care Establishment,4 - Operations - Providers services,LDP E Cambs Special Needs,Residential Independent Sector
Cambridgeshire County Council,08-Mar-18,26178503-16980294,-2977.44,Decoy Farm,Care Establishment,4 - Operations - Providers services,LDP E Cambs Special Needs,Residential Independent Sector
Cambridgeshire County Council,08-Mar-18,26184305-16980324,-2977.44,Decoy Farm,Care Establishment,4 - Operations - Providers services,LDP E Cambs Special Needs,Residential Independent Sector
Cambridgeshire County Council,08-Mar-18,26184312-16980330,-2977.44,Decoy Farm,Care Establishment,4 - Operations - Providers services,LDP E Cambs Special Needs,Residential Independent Sector
Cambridgeshire County Council,08-Mar-18,26184354-16980334,-2977.44,Decoy Farm,Care Establishment,4 - Operations - Providers services,LDP E Cambs Special Needs,Residential Independent Sector
Cambridgeshire County Council,08-Mar-18,26184355-16980335,-2977.44,Decoy Farm,Care Establishment,4 - Operations - Providers services,LDP E Cambs Special Needs,Residential Independent Sector
Cambridgeshire County Council,08-Mar-18,26184373-16980352,-2977.44,Decoy Farm,Care Establishment,4 - Operations - Providers services,LDP E Cambs Special Needs,Residential Independent Sector
Cambridgeshire County Council,08-Mar-18,26184377-16980356,-2977.44,Decoy Farm,Care Establishment,4 - Operations - Providers services,LDP E Cambs Special Needs,Residential Independent Sector
Cambridgeshire County Council,08-Mar-18,26184385-16980363,-2977.44,Decoy Farm,Care Establishment,4 - Operations - Providers services,LDP E Cambs Special Needs,Residential Independent Sector
Cambridgeshire County Council,08-Mar-18,26184390-16980366,-2977.44,Decoy Farm,Care Establishment,4 - Operations - Providers services,LDP E Cambs Special Needs,Residential Independent Sector
Cambridgeshire County Council,08-Mar-18,26184397-16980373,-2977.44,Decoy Farm,Care Establishment,4 - Operations - Providers services,LDP E Cambs Special Needs,Residential Independent Sector
Cambridgeshire County Council,08-Mar-18,26178451-16980245,-2977.44,Decoy Farm,Care Establishment,4 - Operations - Providers services,LDP E Cambs Special Needs,Residential Independent Sector
Cambridgeshire County Council,08-Mar-18,26184411-16980438,-2977.44,Decoy Farm,Care Establishment,4 - Operations - Providers services,LDP E Cambs Special Needs,Residential Independent Sector
Cambridgeshire County Council,08-Mar-18,26189405-16980466,-2977.44,Decoy Farm,Care Establishment,4 - Operations - Providers services,LDP E Cambs Special Needs,Residential Independent Sector
Cambridgeshire County Council,08-Mar-18,26189427-16980486,-2977.44,Decoy Farm,Care Establishment,4 - Operations - Providers services,LDP E Cambs Special Needs,Residential Independent Sector
Cambridgeshire County Council,08-Mar-18,26214164-16980493,-2977.44,Decoy Farm,Care Establishment,4 - Operations - Providers services,LDP E Cambs Special Needs,Residential Independent Sector
Cambridgeshire County Council,08-Mar-18,26214144-16980530,-2977.44,Decoy Farm,Care Establishment,4 - Operations - Providers services,LDP E Cambs Special Needs,Residential Independent Sector
Cambridgeshire County Council,08-Mar-18,26214153-16980539,-2977.44,Decoy Farm,Care Establishment,4 - Operations - Providers services,LDP E Cambs Special Needs,Residential Independent Sector
Cambridgeshire County Council,08-Mar-18,26216142-16980548,-2977.44,Decoy Farm,Care Establishment,4 - Operations - Providers services,LDP E Cambs Special Needs,Residential Independent Sector
Cambridgeshire County Council,08-Mar-18,26216181-16980587,-2977.44,Decoy Farm,Care Establishment,4 - Operations - Providers services,LDP E Cambs Special Needs,Residential Independent Sector
Cambridgeshire County Council,08-Mar-18,26216183-16980589,-2977.44,Decoy Farm,Care Establishment,4 - Operations - Providers services,LDP E Cambs Special Needs,Residential Independent Sector
Cambridgeshire County Council,08-Mar-18,26216186-16980592,-2977.44,Decoy Farm,Care Establishment,4 - Operations - Providers services,LDP E Cambs Special Needs,Residential Independent Sector
Cambridgeshire County Council,08-Mar-18,26216194-16980600,-2977.44,Decoy Farm,Care Establishment,4 - Operations - Providers services,LDP E Cambs Special Needs,Residential Independent Sector
Cambridgeshire County Council,08-Mar-18,26216203-16980609,-2977.44,Decoy Farm,Care Establishment,4 - Operations - Providers services,LDP E Cambs Special Needs,Residential Independent Sector
Cambridgeshire County Council,08-Mar-18,26219261-16980636,-2977.44,Decoy Farm,Care Establishment,4 - Operations - Providers services,LDP E Cambs Special Needs,Residential Independent Sector
Cambridgeshire County Council,08-Mar-18,26219287-16980662,-2977.44,Decoy Farm,Care Establishment,4 - Operations - Providers services,LDP E Cambs Special Needs,Residential Independent Sector
Cambridgeshire County Council,08-Mar-18,26221202-16980673,-2977.44,Decoy Farm,Care Establishment,4 - Operations - Providers services,LDP E Cambs Special Needs,Residential Independent Sector
Cambridgeshire County Council,08-Mar-18,26221209-16980680,-2977.44,Decoy Farm,Care Establishment,4 - Operations - Providers services,LDP E Cambs Special Needs,Residential Independent Sector
Cambridgeshire County Council,08-Mar-18,26221214-16980685,-2977.44,Decoy Farm,Care Establishment,4 - Operations - Providers services,LDP E Cambs Special Needs,Residential Independent Sector
Cambridgeshire County Council,08-Mar-18,26221220-16980691,-2977.44,Decoy Farm,Care Establishment,4 - Operations - Providers services,LDP E Cambs Special Needs,Residential Independent Sector
Cambridgeshire County Council,08-Mar-18,26221221-16980692,-2977.44,Decoy Farm,Care Establishment,4 - Operations - Providers services,LDP E Cambs Special Needs,Residential Independent Sector
Cambridgeshire County Council,08-Mar-18,26221265-16980736,-2977.44,Decoy Farm,Care Establishment,4 - Operations - Providers services,LDP E Cambs Special Needs,Residential Independent Sector
Cambridgeshire County Council,08-Mar-18,26184318-16980387,-2977.44,Decoy Farm,Care Establishment,4 - Operations - Providers services,LDP E Cambs Special Needs,Residential Independent Sector
Cambridgeshire County Council,08-Mar-18,26184327-16980395,-2977.44,Decoy Farm,Care Establishment,4 - Operations - Providers services,LDP E Cambs Special Needs,Residential Independent Sector
Cambridgeshire County Council,08-Mar-18,26184334-16980402,-2977.44,Decoy Farm,Care Establishment,4 - Operations - Providers services,LDP E Cambs Special Needs,Residential Independent Sector
Cambridgeshire County Council,08-Mar-18,26184337-16980405,-2977.44,Decoy Farm,Care Establishment,4 - Operations - Providers services,LDP E Cambs Special Needs,Residential Independent Sector
Cambridgeshire County Council,08-Mar-18,26184342-16980409,-2977.44,Decoy Farm,Care Establishment,4 - Operations - Providers services,LDP E Cambs Special Needs,Residential Independent Sector
Cambridgeshire County Council,16-Mar-18,26335220-17027796,-2977.44,Decoy Farm,Care Establishment,4 - Operations - Providers services,LDP E Cambs Special Needs,Residential Independent Sector
Cambridgeshire County Council,16-Mar-18,26335221-17027797,-2977.44,Decoy Farm,Care Establishment,4 - Operations - Providers services,LDP E Cambs Special Needs,Residential Independent Sector
Cambridgeshire County Council,16-Mar-18,26335233-17027807,-2977.44,Decoy Farm,Care Establishment,4 - Operations - Providers services,LDP E Cambs Special Needs,Residential Independent Sector
Cambridgeshire County Council,16-Mar-18,26335237-17027811,-2977.44,Decoy Farm,Care Establishment,4 - Operations - Providers services,LDP E Cambs Special Needs,Residential Independent Sector
Cambridgeshire County Council,16-Mar-18,26335243-17027817,-2977.44,Decoy Farm,Care Establishment,4 - Operations - Providers services,LDP E Cambs Special Needs,Residential Independent Sector
Cambridgeshire County Council,16-Mar-18,26335246-17027820,-2977.44,Decoy Farm,Care Establishment,4 - Operations - Providers services,LDP E Cambs Special Needs,Residential Independent Sector
Cambridgeshire County Council,16-Mar-18,26335291-17027830,-2977.44,Decoy Farm,Care Establishment,4 - Operations - Providers services,LDP E Cambs Special Needs,Residential Independent Sector
Cambridgeshire County Council,16-Mar-18,26344225-17027861,-2977.44,Decoy Farm,Care Establishment,4 - Operations - Providers services,LDP E Cambs Special Needs,Residential Independent Sector
Cambridgeshire County Council,16-Mar-18,26344230-17027866,-2977.44,Decoy Farm,Care Establishment,4 - Operations - Providers services,LDP E Cambs Special Needs,Residential Independent Sector
Cambridgeshire County Council,16-Mar-18,26317233-17027706,-2977.44,Decoy Farm,Care Establishment,4 - Operations - Providers services,LDP E Cambs Special Needs,Residential Independent Sector
Cambridgeshire County Council,16-Mar-18,26335270-17027760,-2977.44,Decoy Farm,Care Establishment,4 - Operations - Providers services,LDP E Cambs Special Needs,Residential Independent Sector
Cambridgeshire County Council,16-Mar-18,26344166-17027910,-2977.44,Decoy Farm,Care Establishment,4 - Operations - Providers services,LDP E Cambs Special Needs,Residential Independent Sector
Cambridgeshire County Council,16-Mar-18,26344189-17027933,-2977.44,Decoy Farm,Care Establishment,4 - Operations - Providers services,LDP E Cambs Special Needs,Residential Independent Sector
Cambridgeshire County Council,16-Mar-18,26344203-17027947,-2977.44,Decoy Farm,Care Establishment,4 - Operations - Providers services,LDP E Cambs Special Needs,Residential Independent Sector
Cambridgeshire County Council,20-Mar-18,26378630-17075309,-2977.44,Decoy Farm,Care Establishment,4 - Operations - Providers services,LDP E Cambs Special Needs,Residential Independent Sector
Cambridgeshire County Council,20-Mar-18,26378654-17075333,-2977.44,Decoy Farm,Care Establishment,4 - Operations - Providers services,LDP E Cambs Special Needs,Residential Independent Sector
Cambridgeshire County Council,20-Mar-18,26378545-17075353,-2977.44,Decoy Farm,Care Establishment,4 - Operations - Providers services,LDP E Cambs Special Needs,Residential Independent Sector
Cambridgeshire County Council,20-Mar-18,26378576-17075384,-2977.44,Decoy Farm,Care Establishment,4 - Operations - Providers services,LDP E Cambs Special Needs,Residential Independent Sector
Cambridgeshire County Council,20-Mar-18,26378593-17075401,-2977.44,Decoy Farm,Care Establishment,4 - Operations - Providers services,LDP E Cambs Special Needs,Residential Independent Sector
Cambridgeshire County Council,20-Mar-18,26378662-17075418,-2977.44,Decoy Farm,Care Establishment,4 - Operations - Providers services,LDP E Cambs Special Needs,Residential Independent Sector
Cambridgeshire County Council,20-Mar-18,26378673-17075429,-2977.44,Decoy Farm,Care Establishment,4 - Operations - Providers services,LDP E Cambs Special Needs,Residential Independent Sector
Cambridgeshire County Council,20-Mar-18,26390781-17075484,-2977.44,Decoy Farm,Care Establishment,4 - Operations - Providers services,LDP E Cambs Special Needs,Residential Independent Sector
Cambridgeshire County Council,20-Mar-18,26390720-17075499,-2977.44,Decoy Farm,Care Establishment,4 - Operations - Providers services,LDP E Cambs Special Needs,Residential Independent Sector
Cambridgeshire County Council,20-Mar-18,26378608-17075287,-2977.44,Decoy Farm,Care Establishment,4 - Operations - Providers services,LDP E Cambs Special Needs,Residential Independent Sector
Cambridgeshire County Council,20-Mar-18,26378615-17075294,-2977.44,Decoy Farm,Care Establishment,4 - Operations - Providers services,LDP E Cambs Special Needs,Residential Independent Sector
Cambridgeshire County Council,08-Mar-18,26178499-16980292,-2977.44,Decoy Farm,Care Establishment,4 - Operations - Providers services,LDP E Cambs Special Needs,Residential Independent Sector
Cambridgeshire County Council,08-Mar-18,26184300-16980319,-2977.44,Decoy Farm,Care Establishment,4 - Operations - Providers services,LDP E Cambs Special Needs,Residential Independent Sector
Cambridgeshire County Council,08-Mar-18,26184302-16980321,-2977.44,Decoy Farm,Care Establishment,4 - Operations - Providers services,LDP E Cambs Special Needs,Residential Independent Sector
Cambridgeshire County Council,08-Mar-18,26184303-16980322,-2977.44,Decoy Farm,Care Establishment,4 - Operations - Providers services,LDP E Cambs Special Needs,Residential Independent Sector
Cambridgeshire County Council,08-Mar-18,26184366-16980345,-2977.44,Decoy Farm,Care Establishment,4 - Operations - Providers services,LDP E Cambs Special Needs,Residential Independent Sector
Cambridgeshire County Council,08-Mar-18,26178444-16980238,-2977.44,Decoy Farm,Care Establishment,4 - Operations - Providers services,LDP E Cambs Special Needs,Residential Independent Sector
Cambridgeshire County Council,08-Mar-18,26178448-16980242,-2977.44,Decoy Farm,Care Establishment,4 - Operations - Providers services,LDP E Cambs Special Needs,Residential Independent Sector
Cambridgeshire County Council,08-Mar-18,26178456-16980250,-2977.44,Decoy Farm,Care Establishment,4 - Operations - Providers services,LDP E Cambs Special Needs,Residential Independent Sector
Cambridgeshire County Council,08-Mar-18,26189428-16980487,-2977.44,Decoy Farm,Care Establishment,4 - Operations - Providers services,LDP E Cambs Special Needs,Residential Independent Sector
Cambridgeshire County Council,08-Mar-18,26189429-16980488,-2977.44,Decoy Farm,Care Establishment,4 - Operations - Providers services,LDP E Cambs Special Needs,Residential Independent Sector
Cambridgeshire County Council,08-Mar-18,26214166-16980495,-2977.44,Decoy Farm,Care Establishment,4 - Operations - Providers services,LDP E Cambs Special Needs,Residential Independent Sector
Cambridgeshire County Council,08-Mar-18,26214181-16980510,-2977.44,Decoy Farm,Care Establishment,4 - Operations - Providers services,LDP E Cambs Special Needs,Residential Independent Sector
Cambridgeshire County Council,08-Mar-18,26214142-16980528,-2977.44,Decoy Farm,Care Establishment,4 - Operations - Providers services,LDP E Cambs Special Needs,Residential Independent Sector
Cambridgeshire County Council,08-Mar-18,26214154-16980540,-2977.44,Decoy Farm,Care Establishment,4 - Operations - Providers services,LDP E Cambs Special Needs,Residential Independent Sector
Cambridgeshire County Council,08-Mar-18,26214161-16980547,-2977.44,Decoy Farm,Care Establishment,4 - Operations - Providers services,LDP E Cambs Special Needs,Residential Independent Sector
Cambridgeshire County Council,08-Mar-18,26216145-16980551,-2977.44,Decoy Farm,Care Establishment,4 - Operations - Providers services,LDP E Cambs Special Needs,Residential Independent Sector
Cambridgeshire County Council,08-Mar-18,26216148-16980554,-2977.44,Decoy Farm,Care Establishment,4 - Operations - Providers services,LDP E Cambs Special Needs,Residential Independent Sector
Cambridgeshire County Council,08-Mar-18,26216150-16980556,-2977.44,Decoy Farm,Care Establishment,4 - Operations - Providers services,LDP E Cambs Special Needs,Residential Independent Sector
Cambridgeshire County Council,08-Mar-18,26216163-16980569,-2977.44,Decoy Farm,Care Establishment,4 - Operations - Providers services,LDP E Cambs Special Needs,Residential Independent Sector
Cambridgeshire County Council,08-Mar-18,26216182-16980588,-2977.44,Decoy Farm,Care Establishment,4 - Operations - Providers services,LDP E Cambs Special Needs,Residential Independent Sector
Cambridgeshire County Council,08-Mar-18,26216187-16980593,-2977.44,Decoy Farm,Care Establishment,4 - Operations - Providers services,LDP E Cambs Special Needs,Residential Independent Sector
Cambridgeshire County Council,08-Mar-18,26216211-16980617,-2977.44,Decoy Farm,Care Establishment,4 - Operations - Providers services,LDP E Cambs Special Needs,Residential Independent Sector
Cambridgeshire County Council,08-Mar-18,26216212-16980618,-2977.44,Decoy Farm,Care Establishment,4 - Operations - Providers services,LDP E Cambs Special Needs,Residential Independent Sector
Cambridgeshire County Council,08-Mar-18,26219301-16980635,-2977.44,Decoy Farm,Care Establishment,4 - Operations - Providers services,LDP E Cambs Special Needs,Residential Independent Sector
Cambridgeshire County Council,08-Mar-18,26219265-16980640,-2977.44,Decoy Farm,Care Establishment,4 - Operations - Providers services,LDP E Cambs Special Needs,Residential Independent Sector
Cambridgeshire County Council,08-Mar-18,26219266-16980641,-2977.44,Decoy Farm,Care Establishment,4 - Operations - Providers services,LDP E Cambs Special Needs,Residential Independent Sector
Cambridgeshire County Council,08-Mar-18,26221231-16980702,-2977.44,Decoy Farm,Care Establishment,4 - Operations - Providers services,LDP E Cambs Special Needs,Residential Independent Sector
Cambridgeshire County Council,08-Mar-18,26221252-16980723,-2977.44,Decoy Farm,Care Establishment,4 - Operations - Providers services,LDP E Cambs Special Needs,Residential Independent Sector
Cambridgeshire County Council,08-Mar-18,26221256-16980727,-2977.44,Decoy Farm,Care Establishment,4 - Operations - Providers services,LDP E Cambs Special Needs,Residential Independent Sector
Cambridgeshire County Council,08-Mar-18,26221261-16980732,-2977.44,Decoy Farm,Care Establishment,4 - Operations - Providers services,LDP E Cambs Special Needs,Residential Independent Sector
Cambridgeshire County Council,08-Mar-18,26221262-16980733,-2977.44,Decoy Farm,Care Establishment,4 - Operations - Providers services,LDP E Cambs Special Needs,Residential Independent Sector
Cambridgeshire County Council,08-Mar-18,26221274-16980745,-2977.44,Decoy Farm,Care Establishment,4 - Operations - Providers services,LDP E Cambs Special Needs,Residential Independent Sector
Cambridgeshire County Council,08-Mar-18,26184324-16980392,-2977.44,Decoy Farm,Care Establishment,4 - Operations - Providers services,LDP E Cambs Special Needs,Residential Independent Sector
Cambridgeshire County Council,08-Mar-18,26184338-16980406,-2977.44,Decoy Farm,Care Establishment,4 - Operations - Providers services,LDP E Cambs Special Needs,Residential Independent Sector
Cambridgeshire County Council,08-Mar-18,26184291-16980431,-2977.44,Decoy Farm,Care Establishment,4 - Operations - Providers services,LDP E Cambs Special Needs,Residential Independent Sector
Cambridgeshire County Council,08-Mar-18,26184292-16980432,-2977.44,Decoy Farm,Care Establishment,4 - Operations - Providers services,LDP E Cambs Special Needs,Residential Independent Sector
Cambridgeshire County Council,16-Mar-18,26335216-17027792,-2977.44,Decoy Farm,Care Establishment,4 - Operations - Providers services,LDP E Cambs Special Needs,Residential Independent Sector
Cambridgeshire County Council,16-Mar-18,26335217-17027793,-2977.44,Decoy Farm,Care Establishment,4 - Operations - Providers services,LDP E Cambs Special Needs,Residential Independent Sector
Cambridgeshire County Council,16-Mar-18,26335242-17027816,-2977.44,Decoy Farm,Care Establishment,4 - Operations - Providers services,LDP E Cambs Special Needs,Residential Independent Sector
Cambridgeshire County Council,16-Mar-18,26335250-17027824,-2977.44,Decoy Farm,Care Establishment,4 - Operations - Providers services,LDP E Cambs Special Needs,Residential Independent Sector
Cambridgeshire County Council,16-Mar-18,26335298-17027836,-2977.44,Decoy Farm,Care Establishment,4 - Operations - Providers services,LDP E Cambs Special Needs,Residential Independent Sector
Cambridgeshire County Council,16-Mar-18,26335305-17027843,-2977.44,Decoy Farm,Care Establishment,4 - Operations - Providers services,LDP E Cambs Special Needs,Residential Independent Sector
Cambridgeshire County Council,16-Mar-18,26344220-17027856,-2977.44,Decoy Farm,Care Establishment,4 - Operations - Providers services,LDP E Cambs Special Needs,Residential Independent Sector
Cambridgeshire County Council,16-Mar-18,26344240-17027875,-2977.44,Decoy Farm,Care Establishment,4 - Operations - Providers services,LDP E Cambs Special Needs,Residential Independent Sector
Cambridgeshire County Council,16-Mar-18,26344250-17027883,-2977.44,Decoy Farm,Care Establishment,4 - Operations - Providers services,LDP E Cambs Special Needs,Residential Independent Sector
Cambridgeshire County Council,16-Mar-18,26317215-17027691,-2977.44,Decoy Farm,Care Establishment,4 - Operations - Providers services,LDP E Cambs Special Needs,Residential Independent Sector
Cambridgeshire County Council,16-Mar-18,26317232-17027705,-2977.44,Decoy Farm,Care Establishment,4 - Operations - Providers services,LDP E Cambs Special Needs,Residential Independent Sector
Cambridgeshire County Council,16-Mar-18,26335262-17027752,-2977.44,Decoy Farm,Care Establishment,4 - Operations - Providers services,LDP E Cambs Special Needs,Residential Independent Sector
Cambridgeshire County Council,16-Mar-18,26335265-17027755,-2977.44,Decoy Farm,Care Establishment,4 - Operations - Providers services,LDP E Cambs Special Needs,Residential Independent Sector
Cambridgeshire County Council,16-Mar-18,26335268-17027758,-2977.44,Decoy Farm,Care Establishment,4 - Operations - Providers services,LDP E Cambs Special Needs,Residential Independent Sector
Cambridgeshire County Council,16-Mar-18,26335272-17027762,-2977.44,Decoy Farm,Care Establishment,4 - Operations - Providers services,LDP E Cambs Special Needs,Residential Independent Sector
Cambridgeshire County Council,16-Mar-18,26344256-17027889,-2977.44,Decoy Farm,Care Establishment,4 - Operations - Providers services,LDP E Cambs Special Needs,Residential Independent Sector
Cambridgeshire County Council,16-Mar-18,26344267-17027899,-2977.44,Decoy Farm,Care Establishment,4 - Operations - Providers services,LDP E Cambs Special Needs,Residential Independent Sector
Cambridgeshire County Council,16-Mar-18,26344167-17027911,-2977.44,Decoy Farm,Care Establishment,4 - Operations - Providers services,LDP E Cambs Special Needs,Residential Independent Sector
Cambridgeshire County Council,16-Mar-18,26344172-17027916,-2977.44,Decoy Farm,Care Establishment,4 - Operations - Providers services,LDP E Cambs Special Needs,Residential Independent Sector
Cambridgeshire County Council,16-Mar-18,26344205-17027949,-2977.44,Decoy Farm,Care Establishment,4 - Operations - Providers services,LDP E Cambs Special Needs,Residential Independent Sector
Cambridgeshire County Council,20-Mar-18,26378648-17075327,-2977.44,Decoy Farm,Care Establishment,4 - Operations - Providers services,LDP E Cambs Special Needs,Residential Independent Sector
Cambridgeshire County Council,20-Mar-18,26378586-17075394,-2977.44,Decoy Farm,Care Establishment,4 - Operations - Providers services,LDP E Cambs Special Needs,Residential Independent Sector
Cambridgeshire County Council,20-Mar-18,26378601-17075409,-2977.44,Decoy Farm,Care Establishment,4 - Operations - Providers services,LDP E Cambs Special Needs,Residential Independent Sector
Cambridgeshire County Council,20-Mar-18,26378663-17075419,-2977.44,Decoy Farm,Care Establishment,4 - Operations - Providers services,LDP E Cambs Special Needs,Residential Independent Sector
Cambridgeshire County Council,20-Mar-18,26378664-17075420,-2977.44,Decoy Farm,Care Establishment,4 - Operations - Providers services,LDP E Cambs Special Needs,Residential Independent Sector
Cambridgeshire County Council,20-Mar-18,26378665-17075421,-2977.44,Decoy Farm,Care Establishment,4 - Operations - Providers services,LDP E Cambs Special Needs,Residential Independent Sector
Cambridgeshire County Council,20-Mar-18,26378667-17075423,-2977.44,Decoy Farm,Care Establishment,4 - Operations - Providers services,LDP E Cambs Special Needs,Residential Independent Sector
Cambridgeshire County Council,20-Mar-18,26378670-17075426,-2977.44,Decoy Farm,Care Establishment,4 - Operations - Providers services,LDP E Cambs Special Needs,Residential Independent Sector
Cambridgeshire County Council,20-Mar-18,26378671-17075427,-2977.44,Decoy Farm,Care Establishment,4 - Operations - Providers services,LDP E Cambs Special Needs,Residential Independent Sector
Cambridgeshire County Council,20-Mar-18,26378672-17075428,-2977.44,Decoy Farm,Care Establishment,4 - Operations - Providers services,LDP E Cambs Special Needs,Residential Independent Sector
Cambridgeshire County Council,20-Mar-18,26386764-17075459,-2977.44,Decoy Farm,Care Establishment,4 - Operations - Providers services,LDP E Cambs Special Needs,Residential Independent Sector
Cambridgeshire County Council,20-Mar-18,26386770-17075465,-2977.44,Decoy Farm,Care Establishment,4 - Operations - Providers services,LDP E Cambs Special Needs,Residential Independent Sector
Cambridgeshire County Council,20-Mar-18,26390780-17075483,-2977.44,Decoy Farm,Care Establishment,4 - Operations - Providers services,LDP E Cambs Special Needs,Residential Independent Sector
Cambridgeshire County Council,20-Mar-18,26390794-17075497,-2977.44,Decoy Farm,Care Establishment,4 - Operations - Providers services,LDP E Cambs Special Needs,Residential Independent Sector
Cambridgeshire County Council,20-Mar-18,26390726-17075505,-2977.44,Decoy Farm,Care Establishment,4 - Operations - Providers services,LDP E Cambs Special Needs,Residential Independent Sector
Cambridgeshire County Council,20-Mar-18,26390727-17075506,-2977.44,Decoy Farm,Care Establishment,4 - Operations - Providers services,LDP E Cambs Special Needs,Residential Independent Sector
Cambridgeshire County Council,08-Mar-18,26178459-16980253,-2977.44,Decoy Farm,Care Establishment,4 - Operations - Providers services,LDP E Cambs Special Needs,Residential Independent Sector
Cambridgeshire County Council,08-Mar-18,26178496-16980289,-2977.44,Decoy Farm,Care Establishment,4 - Operations - Providers services,LDP E Cambs Special Needs,Residential Independent Sector
Cambridgeshire County Council,08-Mar-18,26178504-16980295,-2977.44,Decoy Farm,Care Establishment,4 - Operations - Providers services,LDP E Cambs Special Needs,Residential Independent Sector
Cambridgeshire County Council,08-Mar-18,26178433-16980308,-2977.44,Decoy Farm,Care Establishment,4 - Operations - Providers services,LDP E Cambs Special Needs,Residential Independent Sector
Cambridgeshire County Council,08-Mar-18,26184364-16980343,-2977.44,Decoy Farm,Care Establishment,4 - Operations - Providers services,LDP E Cambs Special Needs,Residential Independent Sector
Cambridgeshire County Council,08-Mar-18,26184393-16980369,-2977.44,Decoy Farm,Care Establishment,4 - Operations - Providers services,LDP E Cambs Special Needs,Residential Independent Sector
Cambridgeshire County Council,08-Mar-18,26178455-16980249,-2977.44,Decoy Farm,Care Establishment,4 - Operations - Providers services,LDP E Cambs Special Needs,Residential Independent Sector
Cambridgeshire County Council,08-Mar-18,26184416-16980442,-2977.44,Decoy Farm,Care Establishment,4 - Operations - Providers services,LDP E Cambs Special Needs,Residential Independent Sector
Cambridgeshire County Council,08-Mar-18,26189399-16980461,-2977.44,Decoy Farm,Care Establishment,4 - Operations - Providers services,LDP E Cambs Special Needs,Residential Independent Sector
Cambridgeshire County Council,08-Mar-18,26189418-16980479,-2977.44,Decoy Farm,Care Establishment,4 - Operations - Providers services,LDP E Cambs Special Needs,Residential Independent Sector
Cambridgeshire County Council,08-Mar-18,26221278-16980749,-2977.44,Decoy Farm,Care Establishment,4 - Operations - Providers services,LDP E Cambs Special Needs,Residential Independent Sector
Cambridgeshire County Council,08-Mar-18,26214189-16980518,-2977.44,Decoy Farm,Care Establishment,4 - Operations - Providers services,LDP E Cambs Special Needs,Residential Independent Sector
Cambridgeshire County Council,08-Mar-18,26214134-16980520,-2977.44,Decoy Farm,Care Establishment,4 - Operations - Providers services,LDP E Cambs Special Needs,Residential Independent Sector
Cambridgeshire County Council,08-Mar-18,26214135-16980521,-2977.44,Decoy Farm,Care Establishment,4 - Operations - Providers services,LDP E Cambs Special Needs,Residential Independent Sector
Cambridgeshire County Council,08-Mar-18,26214158-16980544,-2977.44,Decoy Farm,Care Establishment,4 - Operations - Providers services,LDP E Cambs Special Needs,Residential Independent Sector
Cambridgeshire County Council,08-Mar-18,26216160-16980566,-2977.44,Decoy Farm,Care Establishment,4 - Operations - Providers services,LDP E Cambs Special Needs,Residential Independent Sector
Cambridgeshire County Council,08-Mar-18,26216162-16980568,-2977.44,Decoy Farm,Care Establishment,4 - Operations - Providers services,LDP E Cambs Special Needs,Residential Independent Sector
Cambridgeshire County Council,08-Mar-18,26216168-16980574,-2977.44,Decoy Farm,Care Establishment,4 - Operations - Providers services,LDP E Cambs Special Needs,Residential Independent Sector
Cambridgeshire County Council,08-Mar-18,26216172-16980578,-2977.44,Decoy Farm,Care Establishment,4 - Operations - Providers services,LDP E Cambs Special Needs,Residential Independent Sector
Cambridgeshire County Council,08-Mar-18,26216177-16980583,-2977.44,Decoy Farm,Care Establishment,4 - Operations - Providers services,LDP E Cambs Special Needs,Residential Independent Sector
Cambridgeshire County Council,08-Mar-18,26216213-16980619,-2977.44,Decoy Farm,Care Establishment,4 - Operations - Providers services,LDP E Cambs Special Needs,Residential Independent Sector
Cambridgeshire County Council,08-Mar-18,26219274-16980649,-2977.44,Decoy Farm,Care Establishment,4 - Operations - Providers services,LDP E Cambs Special Needs,Residential Independent Sector
Cambridgeshire County Council,08-Mar-18,26219281-16980656,-2977.44,Decoy Farm,Care Establishment,4 - Operations - Providers services,LDP E Cambs Special Needs,Residential Independent Sector
Cambridgeshire County Council,08-Mar-18,26219286-16980661,-2977.44,Decoy Farm,Care Establishment,4 - Operations - Providers services,LDP E Cambs Special Needs,Residential Independent Sector
Cambridgeshire County Council,08-Mar-18,26221245-16980716,-2977.44,Decoy Farm,Care Establishment,4 - Operations - Providers services,LDP E Cambs Special Needs,Residential Independent Sector
Cambridgeshire County Council,08-Mar-18,26221246-16980717,-2977.44,Decoy Farm,Care Establishment,4 - Operations - Providers services,LDP E Cambs Special Needs,Residential Independent Sector
Cambridgeshire County Council,08-Mar-18,26184402-16980376,-2977.44,Decoy Farm,Care Establishment,4 - Operations - Providers services,LDP E Cambs Special Needs,Residential Independent Sector
Cambridgeshire County Council,08-Mar-18,26184326-16980394,-2977.44,Decoy Farm,Care Establishment,4 - Operations - Providers services,LDP E Cambs Special Needs,Residential Independent Sector
Cambridgeshire County Council,08-Mar-18,26184329-16980397,-2977.44,Decoy Farm,Care Establishment,4 - Operations - Providers services,LDP E Cambs Special Needs,Residential Independent Sector
Cambridgeshire County Council,16-Mar-18,26335208-17027786,-2977.44,Decoy Farm,Care Establishment,4 - Operations - Providers services,LDP E Cambs Special Needs,Residential Independent Sector
Cambridgeshire County Council,16-Mar-18,26335209-17027787,-2977.44,Decoy Farm,Care Establishment,4 - Operations - Providers services,LDP E Cambs Special Needs,Residential Independent Sector
Cambridgeshire County Council,16-Mar-18,26335247-17027821,-2977.44,Decoy Farm,Care Establishment,4 - Operations - Providers services,LDP E Cambs Special Needs,Residential Independent Sector
Cambridgeshire County Council,16-Mar-18,26335304-17027842,-2977.44,Decoy Farm,Care Establishment,4 - Operations - Providers services,LDP E Cambs Special Needs,Residential Independent Sector
Cambridgeshire County Council,16-Mar-18,26344231-17027867,-2977.44,Decoy Farm,Care Establishment,4 - Operations - Providers services,LDP E Cambs Special Needs,Residential Independent Sector
Cambridgeshire County Council,16-Mar-18,26344235-17027871,-2977.44,Decoy Farm,Care Establishment,4 - Operations - Providers services,LDP E Cambs Special Needs,Residential Independent Sector
Cambridgeshire County Council,16-Mar-18,26317241-17027714,-2977.44,Decoy Farm,Care Establishment,4 - Operations - Providers services,LDP E Cambs Special Needs,Residential Independent Sector
Cambridgeshire County Council,16-Mar-18,26318000-17027725,-2977.44,Decoy Farm,Care Establishment,4 - Operations - Providers services,LDP E Cambs Special Needs,Residential Independent Sector
Cambridgeshire County Council,16-Mar-18,26318003-17027727,-2977.44,Decoy Farm,Care Establishment,4 - Operations - Providers services,LDP E Cambs Special Needs,Residential Independent Sector
Cambridgeshire County Council,16-Mar-18,26318009-17027733,-2977.44,Decoy Farm,Care Establishment,4 - Operations - Providers services,LDP E Cambs Special Needs,Residential Independent Sector
Cambridgeshire County Council,16-Mar-18,26344173-17027917,-2977.44,Decoy Farm,Care Establishment,4 - Operations - Providers services,LDP E Cambs Special Needs,Residential Independent Sector
Cambridgeshire County Council,16-Mar-18,26344179-17027923,-2977.44,Decoy Farm,Care Establishment,4 - Operations - Providers services,LDP E Cambs Special Needs,Residential Independent Sector
Cambridgeshire County Council,16-Mar-18,26344188-17027932,-2977.44,Decoy Farm,Care Establishment,4 - Operations - Providers services,LDP E Cambs Special Needs,Residential Independent Sector
Cambridgeshire County Council,16-Mar-18,26344200-17027944,-2977.44,Decoy Farm,Care Establishment,4 - Operations - Providers services,LDP E Cambs Special Needs,Residential Independent Sector
Cambridgeshire County Council,20-Mar-18,26378620-17075299,-2977.44,Decoy Farm,Care Establishment,4 - Operations - Providers services,LDP E Cambs Special Needs,Residential Independent Sector
Cambridgeshire County Council,20-Mar-18,26378532-17075340,-2977.44,Decoy Farm,Care Establishment,4 - Operations - Providers services,LDP E Cambs Special Needs,Residential Independent Sector
Cambridgeshire County Council,20-Mar-18,26378574-17075382,-2977.44,Decoy Farm,Care Establishment,4 - Operations - Providers services,LDP E Cambs Special Needs,Residential Independent Sector
Cambridgeshire County Council,20-Mar-18,26378584-17075392,-2977.44,Decoy Farm,Care Establishment,4 - Operations - Providers services,LDP E Cambs Special Needs,Residential Independent Sector
Cambridgeshire County Council,20-Mar-18,26378592-17075400,-2977.44,Decoy Farm,Care Establishment,4 - Operations - Providers services,LDP E Cambs Special Needs,Residential Independent Sector
Cambridgeshire County Council,20-Mar-18,26378602-17075410,-2977.44,Decoy Farm,Care Establishment,4 - Operations - Providers services,LDP E Cambs Special Needs,Residential Independent Sector
Cambridgeshire County Council,20-Mar-18,26378660-17075416,-2977.44,Decoy Farm,Care Establishment,4 - Operations - Providers services,LDP E Cambs Special Needs,Residential Independent Sector
Cambridgeshire County Council,20-Mar-18,26386757-17075452,-2977.44,Decoy Farm,Care Establishment,4 - Operations - Providers services,LDP E Cambs Special Needs,Residential Independent Sector
Cambridgeshire County Council,20-Mar-18,26390770-17075473,-2977.44,Decoy Farm,Care Establishment,4 - Operations - Providers services,LDP E Cambs Special Needs,Residential Independent Sector
Cambridgeshire County Council,20-Mar-18,26390772-17075475,-2977.44,Decoy Farm,Care Establishment,4 - Operations - Providers services,LDP E Cambs Special Needs,Residential Independent Sector
Cambridgeshire County Council,20-Mar-18,26390777-17075480,-2977.44,Decoy Farm,Care Establishment,4 - Operations - Providers services,LDP E Cambs Special Needs,Residential Independent Sector
Cambridgeshire County Council,20-Mar-18,26390786-17075489,-2977.44,Decoy Farm,Care Establishment,4 - Operations - Providers services,LDP E Cambs Special Needs,Residential Independent Sector
Cambridgeshire County Council,20-Mar-18,26390788-17075491,-2977.44,Decoy Farm,Care Establishment,4 - Operations - Providers services,LDP E Cambs Special Needs,Residential Independent Sector
Cambridgeshire County Council,20-Mar-18,26390724-17075503,-2977.44,Decoy Farm,Care Establishment,4 - Operations - Providers services,LDP E Cambs Special Needs,Residential Independent Sector
Cambridgeshire County Council,20-Mar-18,26390725-17075504,-2977.44,Decoy Farm,Care Establishment,4 - Operations - Providers services,LDP E Cambs Special Needs,Residential Independent Sector
Cambridgeshire County Council,20-Mar-18,26390750-17075529,-2977.44,Decoy Farm,Care Establishment,4 - Operations - Providers services,LDP E Cambs Special Needs,Residential Independent Sector
Cambridgeshire County Council,20-Mar-18,26378614-17075293,-2977.44,Decoy Farm,Care Establishment,4 - Operations - Providers services,LDP E Cambs Special Needs,Residential Independent Sector
Cambridgeshire County Council,08-Mar-18,26178476-16980269,-2977.44,Decoy Farm,Care Establishment,4 - Operations - Providers services,LDP E Cambs Special Needs,Residential Independent Sector
Cambridgeshire County Council,08-Mar-18,26178484-16980277,-2977.44,Decoy Farm,Care Establishment,4 - Operations - Providers services,LDP E Cambs Special Needs,Residential Independent Sector
Cambridgeshire County Council,08-Mar-18,26178494-16980287,-2977.44,Decoy Farm,Care Establishment,4 - Operations - Providers services,LDP E Cambs Special Needs,Residential Independent Sector
Cambridgeshire County Council,08-Mar-18,26178439-16980314,-2977.44,Decoy Farm,Care Establishment,4 - Operations - Providers services,LDP E Cambs Special Needs,Residential Independent Sector
Cambridgeshire County Council,08-Mar-18,26184299-16980318,-2977.44,Decoy Farm,Care Establishment,4 - Operations - Providers services,LDP E Cambs Special Needs,Residential Independent Sector
Cambridgeshire County Council,08-Mar-18,26184375-16980354,-2977.44,Decoy Farm,Care Establishment,4 - Operations - Providers services,LDP E Cambs Special Needs,Residential Independent Sector
Cambridgeshire County Council,08-Mar-18,26184383-16980361,-2977.44,Decoy Farm,Care Establishment,4 - Operations - Providers services,LDP E Cambs Special Needs,Residential Independent Sector
Cambridgeshire County Council,08-Mar-18,26178457-16980251,-2977.44,Decoy Farm,Care Establishment,4 - Operations - Providers services,LDP E Cambs Special Needs,Residential Independent Sector
Cambridgeshire County Council,08-Mar-18,26184413-16980439,-2977.44,Decoy Farm,Care Establishment,4 - Operations - Providers services,LDP E Cambs Special Needs,Residential Independent Sector
Cambridgeshire County Council,08-Mar-18,26184429-16980455,-2977.44,Decoy Farm,Care Establishment,4 - Operations - Providers services,LDP E Cambs Special Needs,Residential Independent Sector
Cambridgeshire County Council,08-Mar-18,26189395-16980457,-2977.44,Decoy Farm,Care Establishment,4 - Operations - Providers services,LDP E Cambs Special Needs,Residential Independent Sector
Cambridgeshire County Council,08-Mar-18,26189396-16980458,-2977.44,Decoy Farm,Care Establishment,4 - Operations - Providers services,LDP E Cambs Special Needs,Residential Independent Sector
Cambridgeshire County Council,08-Mar-18,26189419-16980480,-2977.44,Decoy Farm,Care Establishment,4 - Operations - Providers services,LDP E Cambs Special Needs,Residential Independent Sector
Cambridgeshire County Council,08-Mar-18,26189431-16980490,-2977.44,Decoy Farm,Care Establishment,4 - Operations - Providers services,LDP E Cambs Special Needs,Residential Independent Sector
Cambridgeshire County Council,08-Mar-18,26214165-16980494,-2977.44,Decoy Farm,Care Establishment,4 - Operations - Providers services,LDP E Cambs Special Needs,Residential Independent Sector
Cambridgeshire County Council,08-Mar-18,26214183-16980512,-2977.44,Decoy Farm,Care Establishment,4 - Operations - Providers services,LDP E Cambs Special Needs,Residential Independent Sector
Cambridgeshire County Council,08-Mar-18,26214187-16980516,-2977.44,Decoy Farm,Care Establishment,4 - Operations - Providers services,LDP E Cambs Special Needs,Residential Independent Sector
Cambridgeshire County Council,08-Mar-18,26214151-16980537,-2977.44,Decoy Farm,Care Establishment,4 - Operations - Providers services,LDP E Cambs Special Needs,Residential Independent Sector
Cambridgeshire County Council,08-Mar-18,26216144-16980550,-2977.44,Decoy Farm,Care Establishment,4 - Operations - Providers services,LDP E Cambs Special Needs,Residential Independent Sector
Cambridgeshire County Council,08-Mar-18,26216147-16980553,-2977.44,Decoy Farm,Care Establishment,4 - Operations - Providers services,LDP E Cambs Special Needs,Residential Independent Sector
Cambridgeshire County Council,08-Mar-18,26216200-16980606,-2977.44,Decoy Farm,Care Establishment,4 - Operations - Providers services,LDP E Cambs Special Needs,Residential Independent Sector
Cambridgeshire County Council,08-Mar-18,26219298-16980632,-2977.44,Decoy Farm,Care Establishment,4 - Operations - Providers services,LDP E Cambs Special Needs,Residential Independent Sector
Cambridgeshire County Council,08-Mar-18,26219291-16980666,-2977.44,Decoy Farm,Care Establishment,4 - Operations - Providers services,LDP E Cambs Special Needs,Residential Independent Sector
Cambridgeshire County Council,08-Mar-18,26221241-16980712,-2977.44,Decoy Farm,Care Establishment,4 - Operations - Providers services,LDP E Cambs Special Needs,Residential Independent Sector
Cambridgeshire County Council,08-Mar-18,26221250-16980721,-2977.44,Decoy Farm,Care Establishment,4 - Operations - Providers services,LDP E Cambs Special Needs,Residential Independent Sector
Cambridgeshire County Council,08-Mar-18,26184404-16980378,-2977.44,Decoy Farm,Care Establishment,4 - Operations - Providers services,LDP E Cambs Special Needs,Residential Independent Sector
Cambridgeshire County Council,08-Mar-18,26184335-16980403,-2977.44,Decoy Farm,Care Establishment,4 - Operations - Providers services,LDP E Cambs Special Needs,Residential Independent Sector
Cambridgeshire County Council,16-Mar-18,26335278-17027767,-2977.44,Decoy Farm,Care Establishment,4 - Operations - Providers services,LDP E Cambs Special Needs,Residential Independent Sector
Cambridgeshire County Council,16-Mar-18,26335197-17027775,-2977.44,Decoy Farm,Care Establishment,4 - Operations - Providers services,LDP E Cambs Special Needs,Residential Independent Sector
Cambridgeshire County Council,16-Mar-18,26344229-17027865,-2977.44,Decoy Farm,Care Establishment,4 - Operations - Providers services,LDP E Cambs Special Needs,Residential Independent Sector
Cambridgeshire County Council,16-Mar-18,26344242-17027877,-2977.44,Decoy Farm,Care Establishment,4 - Operations - Providers services,LDP E Cambs Special Needs,Residential Independent Sector
Cambridgeshire County Council,16-Mar-18,26317230-17027703,-2977.44,Decoy Farm,Care Establishment,4 - Operations - Providers services,LDP E Cambs Special Needs,Residential Independent Sector
Cambridgeshire County Council,16-Mar-18,26317997-17027722,-2977.44,Decoy Farm,Care Establishment,4 - Operations - Providers services,LDP E Cambs Special Needs,Residential Independent Sector
Cambridgeshire County Council,16-Mar-18,26318010-17027734,-2977.44,Decoy Farm,Care Establishment,4 - Operations - Providers services,LDP E Cambs Special Needs,Residential Independent Sector
Cambridgeshire County Council,16-Mar-18,26335259-17027749,-2977.44,Decoy Farm,Care Establishment,4 - Operations - Providers services,LDP E Cambs Special Needs,Residential Independent Sector
Cambridgeshire County Council,16-Mar-18,26335271-17027761,-2977.44,Decoy Farm,Care Establishment,4 - Operations - Providers services,LDP E Cambs Special Needs,Residential Independent Sector
Cambridgeshire County Council,16-Mar-18,26344262-17027895,-2977.44,Decoy Farm,Care Establishment,4 - Operations - Providers services,LDP E Cambs Special Needs,Residential Independent Sector
Cambridgeshire County Council,16-Mar-18,26344163-17027907,-2977.44,Decoy Farm,Care Establishment,4 - Operations - Providers services,LDP E Cambs Special Needs,Residential Independent Sector
Cambridgeshire County Council,16-Mar-18,26344195-17027939,-2977.44,Decoy Farm,Care Establishment,4 - Operations - Providers services,LDP E Cambs Special Needs,Residential Independent Sector
Cambridgeshire County Council,16-Mar-18,26344198-17027942,-2977.44,Decoy Farm,Care Establishment,4 - Operations - Providers services,LDP E Cambs Special Needs,Residential Independent Sector
Cambridgeshire County Council,20-Mar-18,26378652-17075331,-2977.44,Decoy Farm,Care Establishment,4 - Operations - Providers services,LDP E Cambs Special Needs,Residential Independent Sector
Cambridgeshire County Council,20-Mar-18,26378541-17075349,-2977.44,Decoy Farm,Care Establishment,4 - Operations - Providers services,LDP E Cambs Special Needs,Residential Independent Sector
Cambridgeshire County Council,20-Mar-18,26378553-17075361,-2977.44,Decoy Farm,Care Establishment,4 - Operations - Providers services,LDP E Cambs Special Needs,Residential Independent Sector
Cambridgeshire County Council,20-Mar-18,26378587-17075395,-2977.44,Decoy Farm,Care Establishment,4 - Operations - Providers services,LDP E Cambs Special Needs,Residential Independent Sector
Cambridgeshire County Council,20-Mar-18,26378589-17075397,-2977.44,Decoy Farm,Care Establishment,4 - Operations - Providers services,LDP E Cambs Special Needs,Residential Independent Sector
Cambridgeshire County Council,20-Mar-18,26378590-17075398,-2977.44,Decoy Farm,Care Establishment,4 - Operations - Providers services,LDP E Cambs Special Needs,Residential Independent Sector
Cambridgeshire County Council,20-Mar-18,26378657-17075413,-2977.44,Decoy Farm,Care Establishment,4 - Operations - Providers services,LDP E Cambs Special Needs,Residential Independent Sector
Cambridgeshire County Council,20-Mar-18,26378658-17075414,-2977.44,Decoy Farm,Care Establishment,4 - Operations - Providers services,LDP E Cambs Special Needs,Residential Independent Sector
Cambridgeshire County Council,20-Mar-18,26378675-17075431,-2977.44,Decoy Farm,Care Establishment,4 - Operations - Providers services,LDP E Cambs Special Needs,Residential Independent Sector
Cambridgeshire County Council,20-Mar-18,26386766-17075461,-2977.44,Decoy Farm,Care Establishment,4 - Operations - Providers services,LDP E Cambs Special Needs,Residential Independent Sector
Cambridgeshire County Council,20-Mar-18,26390790-17075493,-2977.44,Decoy Farm,Care Establishment,4 - Operations - Providers services,LDP E Cambs Special Needs,Residential Independent Sector
Cambridgeshire County Council,20-Mar-18,26390791-17075494,-2977.44,Decoy Farm,Care Establishment,4 - Operations - Providers services,LDP E Cambs Special Needs,Residential Independent Sector
Cambridgeshire County Council,20-Mar-18,26390793-17075496,-2977.44,Decoy Farm,Care Establishment,4 - Operations - Providers services,LDP E Cambs Special Needs,Residential Independent Sector
Cambridgeshire County Council,20-Mar-18,26390732-17075511,-2977.44,Decoy Farm,Care Establishment,4 - Operations - Providers services,LDP E Cambs Special Needs,Residential Independent Sector
Cambridgeshire County Council,20-Mar-18,26390747-17075526,-2977.44,Decoy Farm,Care Establishment,4 - Operations - Providers services,LDP E Cambs Special Needs,Residential Independent Sector
Cambridgeshire County Council,20-Mar-18,26390757-17075536,-2977.44,Decoy Farm,Care Establishment,4 - Operations - Providers services,LDP E Cambs Special Needs,Residential Independent Sector
Cambridgeshire County Council,20-Mar-18,26390758-17075537,-2977.44,Decoy Farm,Care Establishment,4 - Operations - Providers services,LDP E Cambs Special Needs,Residential Independent Sector
Cambridgeshire County Council,08-Mar-18,26178479-16980272,-2977.44,Decoy Farm,Care Establishment,4 - Operations - Providers services,LDP E Cambs Special Needs,Residential Independent Sector
Cambridgeshire County Council,08-Mar-18,26178506-16980297,-2977.44,Decoy Farm,Care Establishment,4 - Operations - Providers services,LDP E Cambs Special Needs,Residential Independent Sector
Cambridgeshire County Council,08-Mar-18,26178509-16980300,-2977.44,Decoy Farm,Care Establishment,4 - Operations - Providers services,LDP E Cambs Special Needs,Residential Independent Sector
Cambridgeshire County Council,08-Mar-18,26184365-16980344,-2977.44,Decoy Farm,Care Establishment,4 - Operations - Providers services,LDP E Cambs Special Needs,Residential Independent Sector
Cambridgeshire County Council,08-Mar-18,26184368-16980347,-2977.44,Decoy Farm,Care Establishment,4 - Operations - Providers services,LDP E Cambs Special Needs,Residential Independent Sector
Cambridgeshire County Council,08-Mar-18,26184396-16980372,-2977.44,Decoy Farm,Care Establishment,4 - Operations - Providers services,LDP E Cambs Special Needs,Residential Independent Sector
Cambridgeshire County Council,08-Mar-18,26184418-16980444,-2977.44,Decoy Farm,Care Establishment,4 - Operations - Providers services,LDP E Cambs Special Needs,Residential Independent Sector
Cambridgeshire County Council,08-Mar-18,26184424-16980450,-2977.44,Decoy Farm,Care Establishment,4 - Operations - Providers services,LDP E Cambs Special Needs,Residential Independent Sector
Cambridgeshire County Council,08-Mar-18,26214172-16980501,-2977.44,Decoy Farm,Care Establishment,4 - Operations - Providers services,LDP E Cambs Special Needs,Residential Independent Sector
Cambridgeshire County Council,08-Mar-18,26214182-16980511,-2977.44,Decoy Farm,Care Establishment,4 - Operations - Providers services,LDP E Cambs Special Needs,Residential Independent Sector
Cambridgeshire County Council,08-Mar-18,26214186-16980515,-2977.44,Decoy Farm,Care Establishment,4 - Operations - Providers services,LDP E Cambs Special Needs,Residential Independent Sector
Cambridgeshire County Council,08-Mar-18,26214147-16980533,-2977.44,Decoy Farm,Care Establishment,4 - Operations - Providers services,LDP E Cambs Special Needs,Residential Independent Sector
Cambridgeshire County Council,08-Mar-18,26214156-16980542,-2977.44,Decoy Farm,Care Establishment,4 - Operations - Providers services,LDP E Cambs Special Needs,Residential Independent Sector
Cambridgeshire County Council,08-Mar-18,26214160-16980546,-2977.44,Decoy Farm,Care Establishment,4 - Operations - Providers services,LDP E Cambs Special Needs,Residential Independent Sector
Cambridgeshire County Council,08-Mar-18,26216157-16980563,-2977.44,Decoy Farm,Care Establishment,4 - Operations - Providers services,LDP E Cambs Special Needs,Residential Independent Sector
Cambridgeshire County Council,08-Mar-18,26216188-16980594,-2977.44,Decoy Farm,Care Establishment,4 - Operations - Providers services,LDP E Cambs Special Needs,Residential Independent Sector
Cambridgeshire County Council,08-Mar-18,26216195-16980601,-2977.44,Decoy Farm,Care Establishment,4 - Operations - Providers services,LDP E Cambs Special Needs,Residential Independent Sector
Cambridgeshire County Council,08-Mar-18,26216197-16980603,-2977.44,Decoy Farm,Care Establishment,4 - Operations - Providers services,LDP E Cambs Special Needs,Residential Independent Sector
Cambridgeshire County Council,08-Mar-18,26216198-16980604,-2977.44,Decoy Farm,Care Establishment,4 - Operations - Providers services,LDP E Cambs Special Needs,Residential Independent Sector
Cambridgeshire County Council,08-Mar-18,26219264-16980639,-2977.44,Decoy Farm,Care Establishment,4 - Operations - Providers services,LDP E Cambs Special Needs,Residential Independent Sector
Cambridgeshire County Council,08-Mar-18,26219269-16980644,-2977.44,Decoy Farm,Care Establishment,4 - Operations - Providers services,LDP E Cambs Special Needs,Residential Independent Sector
Cambridgeshire County Council,08-Mar-18,26219284-16980659,-2977.44,Decoy Farm,Care Establishment,4 - Operations - Providers services,LDP E Cambs Special Needs,Residential Independent Sector
Cambridgeshire County Council,08-Mar-18,26219293-16980668,-2977.44,Decoy Farm,Care Establishment,4 - Operations - Providers services,LDP E Cambs Special Needs,Residential Independent Sector
Cambridgeshire County Council,08-Mar-18,26221210-16980681,-2977.44,Decoy Farm,Care Establishment,4 - Operations - Providers services,LDP E Cambs Special Needs,Residential Independent Sector
Cambridgeshire County Council,08-Mar-18,26221264-16980735,-2977.44,Decoy Farm,Care Establishment,4 - Operations - Providers services,LDP E Cambs Special Needs,Residential Independent Sector
Cambridgeshire County Council,08-Mar-18,26221268-16980739,-2977.44,Decoy Farm,Care Establishment,4 - Operations - Providers services,LDP E Cambs Special Needs,Residential Independent Sector
Cambridgeshire County Council,08-Mar-18,26184340-16980407,-2977.44,Decoy Farm,Care Establishment,4 - Operations - Providers services,LDP E Cambs Special Needs,Residential Independent Sector
Cambridgeshire County Council,08-Mar-18,26184343-16980410,-2977.44,Decoy Farm,Care Establishment,4 - Operations - Providers services,LDP E Cambs Special Needs,Residential Independent Sector
Cambridgeshire County Council,08-Mar-18,26184349-16980415,-2977.44,Decoy Farm,Care Establishment,4 - Operations - Providers services,LDP E Cambs Special Needs,Residential Independent Sector
Cambridgeshire County Council,08-Mar-18,26184278-16980419,-2977.44,Decoy Farm,Care Establishment,4 - Operations - Providers services,LDP E Cambs Special Needs,Residential Independent Sector
Cambridgeshire County Council,16-Mar-18,26335213-17027789,-2977.44,Decoy Farm,Care Establishment,4 - Operations - Providers services,LDP E Cambs Special Needs,Residential Independent Sector
Cambridgeshire County Council,16-Mar-18,26335239-17027813,-2977.44,Decoy Farm,Care Establishment,4 - Operations - Providers services,LDP E Cambs Special Needs,Residential Independent Sector
Cambridgeshire County Council,16-Mar-18,26317217-17027693,-2977.44,Decoy Farm,Care Establishment,4 - Operations - Providers services,LDP E Cambs Special Needs,Residential Independent Sector
Cambridgeshire County Council,16-Mar-18,26317225-17027698,-2977.44,Decoy Farm,Care Establishment,4 - Operations - Providers services,LDP E Cambs Special Needs,Residential Independent Sector
Cambridgeshire County Council,16-Mar-18,26317229-17027702,-2977.44,Decoy Farm,Care Establishment,4 - Operations - Providers services,LDP E Cambs Special Needs,Residential Independent Sector
Cambridgeshire County Council,16-Mar-18,26344264-17027896,-2977.44,Decoy Farm,Care Establishment,4 - Operations - Providers services,LDP E Cambs Special Needs,Residential Independent Sector
Cambridgeshire County Council,16-Mar-18,26344158-17027904,-2977.44,Decoy Farm,Care Establishment,4 - Operations - Providers services,LDP E Cambs Special Needs,Residential Independent Sector
Cambridgeshire County Council,16-Mar-18,26344191-17027935,-2977.44,Decoy Farm,Care Establishment,4 - Operations - Providers services,LDP E Cambs Special Needs,Residential Independent Sector
Cambridgeshire County Council,16-Mar-18,26344199-17027943,-2977.44,Decoy Farm,Care Establishment,4 - Operations - Providers services,LDP E Cambs Special Needs,Residential Independent Sector
Cambridgeshire County Council,16-Mar-18,26344202-17027946,-2977.44,Decoy Farm,Care Establishment,4 - Operations - Providers services,LDP E Cambs Special Needs,Residential Independent Sector
Cambridgeshire County Council,20-Mar-18,26378635-17075314,-2977.44,Decoy Farm,Care Establishment,4 - Operations - Providers services,LDP E Cambs Special Needs,Residential Independent Sector
Cambridgeshire County Council,20-Mar-18,26378638-17075317,-2977.44,Decoy Farm,Care Establishment,4 - Operations - Providers services,LDP E Cambs Special Needs,Residential Independent Sector
Cambridgeshire County Council,20-Mar-18,26378639-17075318,-2977.44,Decoy Farm,Care Establishment,4 - Operations - Providers services,LDP E Cambs Special Needs,Residential Independent Sector
Cambridgeshire County Council,20-Mar-18,26378649-17075328,-2977.44,Decoy Farm,Care Establishment,4 - Operations - Providers services,LDP E Cambs Special Needs,Residential Independent Sector
Cambridgeshire County Council,20-Mar-18,26378542-17075350,-2977.44,Decoy Farm,Care Establishment,4 - Operations - Providers services,LDP E Cambs Special Needs,Residential Independent Sector
Cambridgeshire County Council,20-Mar-18,26378597-17075405,-2977.44,Decoy Farm,Care Establishment,4 - Operations - Providers services,LDP E Cambs Special Needs,Residential Independent Sector
Cambridgeshire County Council,20-Mar-18,26386765-17075460,-2977.44,Decoy Farm,Care Establishment,4 - Operations - Providers services,LDP E Cambs Special Needs,Residential Independent Sector
Cambridgeshire County Council,20-Mar-18,26386768-17075463,-2977.44,Decoy Farm,Care Establishment,4 - Operations - Providers services,LDP E Cambs Special Needs,Residential Independent Sector
Cambridgeshire County Council,20-Mar-18,26390773-17075476,-2977.44,Decoy Farm,Care Establishment,4 - Operations - Providers services,LDP E Cambs Special Needs,Residential Independent Sector
Cambridgeshire County Council,20-Mar-18,26390783-17075486,-2977.44,Decoy Farm,Care Establishment,4 - Operations - Providers services,LDP E Cambs Special Needs,Residential Independent Sector
Cambridgeshire County Council,20-Mar-18,26390785-17075488,-2977.44,Decoy Farm,Care Establishment,4 - Operations - Providers services,LDP E Cambs Special Needs,Residential Independent Sector
Cambridgeshire County Council,20-Mar-18,26390733-17075512,-2977.44,Decoy Farm,Care Establishment,4 - Operations - Providers services,LDP E Cambs Special Needs,Residential Independent Sector
Cambridgeshire County Council,20-Mar-18,26390739-17075518,-2977.44,Decoy Farm,Care Establishment,4 - Operations - Providers services,LDP E Cambs Special Needs,Residential Independent Sector
Cambridgeshire County Council,20-Mar-18,26390740-17075519,-2977.44,Decoy Farm,Care Establishment,4 - Operations - Providers services,LDP E Cambs Special Needs,Residential Independent Sector
Cambridgeshire County Council,20-Mar-18,26390755-17075534,-2977.44,Decoy Farm,Care Establishment,4 - Operations - Providers services,LDP E Cambs Special Needs,Residential Independent Sector
Cambridgeshire County Council,20-Mar-18,26378606-17075285,-2977.44,Decoy Farm,Care Establishment,4 - Operations - Providers services,LDP E Cambs Special Needs,Residential Independent Sector
Cambridgeshire County Council,02-Mar-18,26045153-16934510,-2894.76,Affinity Trust,Care Establishment,4 - Operations - Providers services,LDP Fenland Locality - Care,Day and Domicillary Care Independent Sector
Cambridgeshire County Council,08-Mar-18,26178431-16980307,-2552.09,Decoy Farm,Care Establishment,4 - Operations - Providers services,LDP E Cambs Special Needs,Residential Independent Sector
Cambridgeshire County Council,16-Mar-18,26335255-17027745,-2552.09,Decoy Farm,Care Establishment,4 - Operations - Providers services,LDP E Cambs Special Needs,Residential Independent Sector
Cambridgeshire County Council,16-Mar-18,26335302-17027840,-2552.09,Decoy Farm,Care Establishment,4 - Operations - Providers services,LDP E Cambs Special Needs,Residential Independent Sector
Cambridgeshire County Council,08-Mar-18,26184282-16980422,-2552.09,Decoy Farm,Care Establishment,4 - Operations - Providers services,LDP E Cambs Special Needs,Residential Independent Sector
Cambridgeshire County Council,20-Mar-18,26378617-17075296,-2552.09,Decoy Farm,Care Establishment,4 - Operations - Providers services,LDP E Cambs Special Needs,Residential Independent Sector
Cambridgeshire County Council,20-Mar-18,26378538-17075346,-2552.09,Decoy Farm,Care Establishment,4 - Operations - Providers services,LDP E Cambs Special Needs,Residential Independent Sector
Cambridgeshire County Council,08-Mar-18,26219297-16980631,-2552.09,Decoy Farm,Care Establishment,4 - Operations - Providers services,LDP E Cambs Special Needs,Residential Independent Sector
Cambridgeshire County Council,08-Mar-18,26221253-16980724,-2552.09,Decoy Farm,Care Establishment,4 - Operations - Providers services,LDP E Cambs Special Needs,Residential Independent Sector
Cambridgeshire County Council,02-Mar-18,25854558-16949624,-2337.29,Dimensions (Uk) Ltd,Care Establishment,4 - Operations - Providers services,LDP Cambs City - Special Needs,Supported Living
Cambridgeshire County Council,02-Mar-18,25854569-16949635,-2337.29,Dimensions (Uk) Ltd,Care Establishment,4 - Operations - Providers services,LDP Cambs City - Special Needs,Supported Living
Cambridgeshire County Council,02-Mar-18,26043201-16949710,-2337.29,Dimensions (Uk) Ltd,Care Establishment,4 - Operations - Providers services,LDP South Cambs - Special Needs,Supported Living
Cambridgeshire County Council,02-Mar-18,26043213-16949722,-2337.29,Dimensions (Uk) Ltd,Care Establishment,4 - Operations - Providers services,LDP South Cambs - Special Needs,Supported Living
Cambridgeshire County Council,02-Mar-18,26043216-16949725,-2337.29,Dimensions (Uk) Ltd,Care Establishment,4 - Operations - Providers services,LDP South Cambs - Special Needs,Supported Living
Cambridgeshire County Council,22-Mar-18,26427802-17118075,-2337.29,Dimensions (Uk) Ltd,Care Establishment,4 - Operations - Providers services,LDP Cambs City - Special Needs,Supported Living
Cambridgeshire County Council,22-Mar-18,26429893-17118095,-2337.29,Dimensions (Uk) Ltd,Care Establishment,4 - Operations - Providers services,LDP South Cambs - Special Needs,Supported Living
Cambridgeshire County Council,02-Mar-18,25899155-16949698,-2337.29,Dimensions (Uk) Ltd,Care Establishment,4 - Operations - Providers services,LDP South Cambs - Special Needs,Supported Living
Cambridgeshire County Council,02-Mar-18,25899158-16949701,-2337.29,Dimensions (Uk) Ltd,Care Establishment,4 - Operations - Providers services,LDP Cambs City - Special Needs,Supported Living
Cambridgeshire County Council,16-Mar-18,26322910-17063191,-2337.29,Dimensions (Uk) Ltd,Care Establishment,4 - Operations - Providers services,LDP Cambs City - Special Needs,Supported Living
Cambridgeshire County Council,16-Mar-18,26322931-17063208,-2337.29,Dimensions (Uk) Ltd,Care Establishment,4 - Operations - Providers services,LDP Cambs City - Special Needs,Supported Living
Cambridgeshire County Council,22-Mar-18,26381232-17117644,-2337.29,Dimensions (Uk) Ltd,Care Establishment,4 - Operations - Providers services,LDP South Cambs - Special Needs,Supported Living
Cambridgeshire County Council,22-Mar-18,26429884-17118086,-2337.29,Dimensions (Uk) Ltd,Care Establishment,4 - Operations - Providers services,LDP Cambs City - Special Needs,Supported Living
Cambridgeshire County Council,02-Mar-18,26186826-16949832,-2337.29,Dimensions (Uk) Ltd,Care Establishment,4 - Operations - Providers services,LDP Cambs City - Special Needs,Supported Living
Cambridgeshire County Council,02-Mar-18,25899145-16949706,-2337.29,Dimensions (Uk) Ltd,Care Establishment,4 - Operations - Providers services,LDP South Cambs - Special Needs,Supported Living
Cambridgeshire County Council,02-Mar-18,26043206-16949715,-2337.29,Dimensions (Uk) Ltd,Care Establishment,4 - Operations - Providers services,LDP Cambs City - Special Needs,Supported Living
Cambridgeshire County Council,02-Mar-18,26043208-16949717,-2337.29,Dimensions (Uk) Ltd,Care Establishment,4 - Operations - Providers services,LDP South Cambs - Special Needs,Supported Living
Cambridgeshire County Council,02-Mar-18,26043218-16949727,-2337.29,Dimensions (Uk) Ltd,Care Establishment,4 - Operations - Providers services,LDP Cambs City - Special Needs,Supported Living
Cambridgeshire County Council,02-Mar-18,26186838-16949841,-2337.29,Dimensions (Uk) Ltd,Care Establishment,4 - Operations - Providers services,LDP Cambs City - Special Needs,Supported Living
Cambridgeshire County Council,02-Mar-18,26186840-16949842,-2337.29,Dimensions (Uk) Ltd,Care Establishment,4 - Operations - Providers services,LDP South Cambs - Special Needs,Supported Living
Cambridgeshire County Council,16-Mar-18,26322920-17063200,-2337.29,Dimensions (Uk) Ltd,Care Establishment,4 - Operations - Providers services,LDP Cambs City - Special Needs,Supported Living
Cambridgeshire County Council,22-Mar-18,26381221-17117634,-2337.29,Dimensions (Uk) Ltd,Care Establishment,4 - Operations - Providers services,LDP South Cambs - Special Needs,Supported Living
Cambridgeshire County Council,22-Mar-18,26381227-17117640,-2337.29,Dimensions (Uk) Ltd,Care Establishment,4 - Operations - Providers services,LDP South Cambs - Special Needs,Supported Living
Cambridgeshire County Council,02-Mar-18,26186823-16949829,-2337.29,Dimensions (Uk) Ltd,Care Establishment,4 - Operations - Providers services,LDP South Cambs - Special Needs,Supported Living
Cambridgeshire County Council,02-Mar-18,25899151-16949694,-2337.29,Dimensions (Uk) Ltd,Care Establishment,4 - Operations - Providers services,LDP South Cambs - Special Needs,Supported Living
Cambridgeshire County Council,22-Mar-18,26381217-17117630,-2337.29,Dimensions (Uk) Ltd,Care Establishment,4 - Operations - Providers services,LDP South Cambs - Special Needs,Supported Living
Cambridgeshire County Council,22-Mar-18,26381237-17117647,-2337.29,Dimensions (Uk) Ltd,Care Establishment,4 - Operations - Providers services,LDP South Cambs - Special Needs,Supported Living
Cambridgeshire County Council,22-Mar-18,26429883-17118085,-2337.29,Dimensions (Uk) Ltd,Care Establishment,4 - Operations - Providers services,LDP South Cambs - Special Needs,Supported Living
Cambridgeshire County Council,22-Mar-18,26429892-17118094,-2337.29,Dimensions (Uk) Ltd,Care Establishment,4 - Operations - Providers services,LDP Cambs City - Special Needs,Supported Living
Cambridgeshire County Council,02-Mar-18,25854562-16949628,-2337.29,Dimensions (Uk) Ltd,Care Establishment,4 - Operations - Providers services,LDP South Cambs - Special Needs,Supported Living
Cambridgeshire County Council,02-Mar-18,25854567-16949633,-2337.29,Dimensions (Uk) Ltd,Care Establishment,4 - Operations - Providers services,LDP Cambs City - Special Needs,Supported Living
Cambridgeshire County Council,02-Mar-18,25899150-16949693,-2337.29,Dimensions (Uk) Ltd,Care Establishment,4 - Operations - Providers services,LDP Cambs City - Special Needs,Supported Living
Cambridgeshire County Council,02-Mar-18,26186835-16949838,-2337.29,Dimensions (Uk) Ltd,Care Establishment,4 - Operations - Providers services,LDP Cambs City - Special Needs,Supported Living
Cambridgeshire County Council,16-Mar-18,26322918-17063198,-2337.29,Dimensions (Uk) Ltd,Care Establishment,4 - Operations - Providers services,LDP South Cambs - Special Needs,Supported Living
Cambridgeshire County Council,22-Mar-18,26429888-17118090,-2337.29,Dimensions (Uk) Ltd,Care Establishment,4 - Operations - Providers services,LDP South Cambs - Special Needs,Supported Living
Cambridgeshire County Council,02-Mar-18,26186825-16949831,-2337.29,Dimensions (Uk) Ltd,Care Establishment,4 - Operations - Providers services,LDP South Cambs - Special Needs,Supported Living
Cambridgeshire County Council,02-Mar-18,25899159-16949702,-2337.29,Dimensions (Uk) Ltd,Care Establishment,4 - Operations - Providers services,LDP South Cambs - Special Needs,Supported Living
Cambridgeshire County Council,02-Mar-18,25899143-16949704,-2337.29,Dimensions (Uk) Ltd,Care Establishment,4 - Operations - Providers services,LDP Cambs City - Special Needs,Supported Living
Cambridgeshire County Council,02-Mar-18,26043214-16949723,-2337.29,Dimensions (Uk) Ltd,Care Establishment,4 - Operations - Providers services,LDP South Cambs - Special Needs,Supported Living
Cambridgeshire County Council,16-Mar-18,26322926-17063204,-2337.29,Dimensions (Uk) Ltd,Care Establishment,4 - Operations - Providers services,LDP Cambs City - Special Needs,Supported Living
Cambridgeshire County Council,16-Mar-18,26322929-17063206,-2337.29,Dimensions (Uk) Ltd,Care Establishment,4 - Operations - Providers services,LDP South Cambs - Special Needs,Supported Living
Cambridgeshire County Council,22-Mar-18,26381219-17117632,-2337.29,Dimensions (Uk) Ltd,Care Establishment,4 - Operations - Providers services,LDP Cambs City - Special Needs,Supported Living
Cambridgeshire County Council,22-Mar-18,26381226-17117639,-2337.29,Dimensions (Uk) Ltd,Care Establishment,4 - Operations - Providers services,LDP South Cambs - Special Needs,Supported Living
Cambridgeshire County Council,02-Mar-18,26186816-16949824,-2337.29,Dimensions (Uk) Ltd,Care Establishment,4 - Operations - Providers services,LDP Cambs City - Special Needs,Supported Living
Cambridgeshire County Council,02-Mar-18,25854561-16949627,-2337.29,Dimensions (Uk) Ltd,Care Establishment,4 - Operations - Providers services,LDP Cambs City - Special Needs,Supported Living
Cambridgeshire County Council,02-Mar-18,25854565-16949631,-2337.29,Dimensions (Uk) Ltd,Care Establishment,4 - Operations - Providers services,LDP Cambs City - Special Needs,Supported Living
Cambridgeshire County Council,02-Mar-18,25854566-16949632,-2337.29,Dimensions (Uk) Ltd,Care Establishment,4 - Operations - Providers services,LDP Cambs City - Special Needs,Supported Living
Cambridgeshire County Council,16-Mar-18,26322924-17063202,-2337.29,Dimensions (Uk) Ltd,Care Establishment,4 - Operations - Providers services,LDP Cambs City - Special Needs,Supported Living
Cambridgeshire County Council,16-Mar-18,26322930-17063207,-2337.29,Dimensions (Uk) Ltd,Care Establishment,4 - Operations - Providers services,LDP Cambs City - Special Needs,Supported Living
Cambridgeshire County Council,22-Mar-18,26381231-17117643,-2337.29,Dimensions (Uk) Ltd,Care Establishment,4 - Operations - Providers services,LDP South Cambs - Special Needs,Supported Living
Cambridgeshire County Council,22-Mar-18,26429887-17118089,-2337.29,Dimensions (Uk) Ltd,Care Establishment,4 - Operations - Providers services,LDP South Cambs - Special Needs,Supported Living
Cambridgeshire County Council,02-Mar-18,26186817-16949825,-2337.29,Dimensions (Uk) Ltd,Care Establishment,4 - Operations - Providers services,LDP Cambs City - Special Needs,Supported Living
Cambridgeshire County Council,02-Mar-18,25854571-16949637,-2337.29,Dimensions (Uk) Ltd,Care Establishment,4 - Operations - Providers services,LDP Cambs City - Special Needs,Supported Living
Cambridgeshire County Council,02-Mar-18,25899154-16949697,-2337.29,Dimensions (Uk) Ltd,Care Establishment,4 - Operations - Providers services,LDP Cambs City - Special Needs,Supported Living
Cambridgeshire County Council,02-Mar-18,26043202-16949711,-2337.29,Dimensions (Uk) Ltd,Care Establishment,4 - Operations - Providers services,LDP South Cambs - Special Needs,Supported Living
Cambridgeshire County Council,22-Mar-18,26427805-17118078,-2337.29,Dimensions (Uk) Ltd,Care Establishment,4 - Operations - Providers services,LDP Cambs City - Special Needs,Supported Living
Cambridgeshire County Council,22-Mar-18,26429655-17115267,-2316.63,Thera East Anglia,Care Establishment,4 - Operations - Providers services,LDP E Cambs Special Needs,Supported Living
Cambridgeshire County Council,22-Mar-18,26427341-17115164,-2316.63,Thera East Anglia,Care Establishment,4 - Operations - Providers services,LDP E Cambs Special Needs,Supported Living
Cambridgeshire County Council,22-Mar-18,26429629-17115259,-2316.63,Thera East Anglia,Care Establishment,4 - Operations - Providers services,LDP E Cambs Special Needs,Supported Living
Cambridgeshire County Council,22-Mar-18,26429634-17115264,-2316.63,Thera East Anglia,Care Establishment,4 - Operations - Providers services,LDP E Cambs Special Needs,Supported Living
Cambridgeshire County Council,22-Mar-18,26429632-17115262,-2316.63,Thera East Anglia,Care Establishment,4 - Operations - Providers services,LDP E Cambs Special Needs,Supported Living
Cambridgeshire County Council,22-Mar-18,26427338-17115180,-2316.63,Thera East Anglia,Care Establishment,4 - Operations - Providers services,LDP E Cambs Special Needs,Supported Living
Cambridgeshire County Council,22-Mar-18,26428834-17115251,-2316.63,Thera East Anglia,Care Establishment,4 - Operations - Providers services,LDP E Cambs Special Needs,Supported Living
Cambridgeshire County Council,22-Mar-18,26429627-17115257,-2316.63,Thera East Anglia,Care Establishment,4 - Operations - Providers services,LDP E Cambs Special Needs,Supported Living
Cambridgeshire County Council,22-Mar-18,26429648-17115303,-2316.63,Thera East Anglia,Care Establishment,4 - Operations - Providers services,LDP E Cambs Special Needs,Supported Living
Cambridgeshire County Council,22-Mar-18,26429660-17115272,-2316.63,Thera East Anglia,Care Establishment,4 - Operations - Providers services,LDP E Cambs Special Needs,Supported Living
Cambridgeshire County Council,22-Mar-18,26429663-17115275,-2316.63,Thera East Anglia,Care Establishment,4 - Operations - Providers services,LDP E Cambs Special Needs,Supported Living
Cambridgeshire County Council,22-Mar-18,26429642-17115297,-2316.63,Thera East Anglia,Care Establishment,4 - Operations - Providers services,LDP E Cambs Special Needs,Supported Living
Cambridgeshire County Council,22-Mar-18,26429643-17115298,-2316.63,Thera East Anglia,Care Establishment,4 - Operations - Providers services,LDP E Cambs Special Needs,Supported Living
Cambridgeshire County Council,22-Mar-18,26429645-17115300,-2316.63,Thera East Anglia,Care Establishment,4 - Operations - Providers services,LDP E Cambs Special Needs,Supported Living
Cambridgeshire County Council,22-Mar-18,26428835-17115252,-2316.63,Thera East Anglia,Care Establishment,4 - Operations - Providers services,LDP E Cambs Special Needs,Supported Living
Cambridgeshire County Council,22-Mar-18,26429633-17115263,-2316.63,Thera East Anglia,Care Establishment,4 - Operations - Providers services,LDP E Cambs Special Needs,Supported Living
Cambridgeshire County Council,22-Mar-18,26429656-17115268,-2316.63,Thera East Anglia,Care Establishment,4 - Operations - Providers services,LDP E Cambs Special Needs,Supported Living
Cambridgeshire County Council,22-Mar-18,26429638-17115293,-2316.63,Thera East Anglia,Care Establishment,4 - Operations - Providers services,LDP E Cambs Special Needs,Supported Living
Cambridgeshire County Council,22-Mar-18,26427336-17115178,-2316.63,Thera East Anglia,Care Establishment,4 - Operations - Providers services,LDP E Cambs Special Needs,Supported Living
Cambridgeshire County Council,22-Mar-18,26429636-17115266,-2316.63,Thera East Anglia,Care Establishment,4 - Operations - Providers services,LDP E Cambs Special Needs,Supported Living
Cambridgeshire County Council,22-Mar-18,26427334-17115176,-2316.63,Thera East Anglia,Care Establishment,4 - Operations - Providers services,LDP E Cambs Special Needs,Supported Living
Cambridgeshire County Council,22-Mar-18,26427337-17115179,-2316.63,Thera East Anglia,Care Establishment,4 - Operations - Providers services,LDP E Cambs Special Needs,Supported Living
Cambridgeshire County Council,22-Mar-18,26429650-17115305,-2316.63,Thera East Anglia,Care Establishment,4 - Operations - Providers services,LDP E Cambs Special Needs,Supported Living
Cambridgeshire County Council,22-Mar-18,26429651-17115306,-2316.63,Thera East Anglia,Care Establishment,4 - Operations - Providers services,LDP E Cambs Special Needs,Supported Living
Cambridgeshire County Council,22-Mar-18,26427339-17115181,-2316.63,Thera East Anglia,Care Establishment,4 - Operations - Providers services,LDP E Cambs Special Needs,Supported Living
Cambridgeshire County Council,22-Mar-18,26428833-17115250,-2316.63,Thera East Anglia,Care Establishment,4 - Operations - Providers services,LDP E Cambs Special Needs,Supported Living
Cambridgeshire County Council,16-Mar-18,20520957-17046092,-2254,Brain Injury Rehabilitation Trust,Trust (Other),2 - Operations - Learning Disability,Countywide PD Service - Care,Residential Independent Sector
Cambridgeshire County Council,16-Mar-18,20520959-17046093,-2254,Brain Injury Rehabilitation Trust,Trust (Other),2 - Operations - Learning Disability,Countywide PD Service - Care,Residential Independent Sector
Cambridgeshire County Council,20-Mar-18,26390778-17075481,-2126.74,Decoy Farm,Care Establishment,4 - Operations - Providers services,LDP E Cambs Special Needs,Residential Independent Sector
Cambridgeshire County Council,16-Mar-18,26335196-17027774,-2126.74,Decoy Farm,Care Establishment,4 - Operations - Providers services,LDP E Cambs Special Needs,Residential Independent Sector
Cambridgeshire County Council,08-Mar-18,26216189-16980595,-2126.74,Decoy Farm,Care Establishment,4 - Operations - Providers services,LDP E Cambs Special Needs,Residential Independent Sector
Cambridgeshire County Council,08-Mar-18,26184293-16980433,-2126.74,Decoy Farm,Care Establishment,4 - Operations - Providers services,LDP E Cambs Special Needs,Residential Independent Sector
Cambridgeshire County Council,02-Mar-18,25861042-16925526,-2114.02,Unit 2b (Dimensions),Care Establishment,4 - Operations - Providers services,LDP Fens - Special Needs,Day and Domicillary Care Independent Sector
Cambridgeshire County Council,02-Mar-18,26172789-16925532,-2114.02,Unit 2b (Dimensions),Care Establishment,4 - Operations - Providers services,LDP Fens - Special Needs,Day and Domicillary Care Independent Sector
Cambridgeshire County Council,16-Mar-18,26216626-17029611,-1926,The Lodge (Jeesal Akman Care Corporation Ltd),Care Establishment,4 - Operations - Providers services,LDP Hunts special needs,Day and Domicillary Care Independent Sector
Cambridgeshire County Council,08-Mar-18,26217569-16987369,-1886.5,Caerus Care Ltd,Care Establishment,4 - Operations - Providers services,LDP Hunts special needs,Day and Domicillary Care Independent Sector
Cambridgeshire County Council,08-Mar-18,26217576-16987376,-1886.5,Caerus Care Ltd,Care Establishment,4 - Operations - Providers services,LDP Hunts special needs,Day and Domicillary Care Independent Sector
Cambridgeshire County Council,08-Mar-18,26217577-16987377,-1886.5,Caerus Care Ltd,Care Establishment,4 - Operations - Providers services,LDP Hunts special needs,Day and Domicillary Care Independent Sector
Cambridgeshire County Council,08-Mar-18,26217573-16987373,-1886.5,Caerus Care Ltd,Care Establishment,4 - Operations - Providers services,LDP Hunts special needs,Day and Domicillary Care Independent Sector
Cambridgeshire County Council,20-Mar-18,26377280-17083098,-1762.4,Thera East Anglia,Care Establishment,4 - Operations - Providers services,LDP E Cambs Special Needs,Supported Living
Cambridgeshire County Council,20-Mar-18,26377268-17083089,-1762.4,Thera East Anglia,Care Establishment,4 - Operations - Providers services,LDP E Cambs Special Needs,Supported Living
Cambridgeshire County Council,20-Mar-18,26377276-17083094,-1762.4,Thera East Anglia,Care Establishment,4 - Operations - Providers services,LDP E Cambs Special Needs,Supported Living
Cambridgeshire County Council,20-Mar-18,26377279-17083097,-1762.4,Thera East Anglia,Care Establishment,4 - Operations - Providers services,LDP E Cambs Special Needs,Supported Living
Cambridgeshire County Council,02-Mar-18,25738134-16946833,-1740.48,Rnid (Tarragon Gardens),Care Establishment,2 - Operations - Learning Disability,Countywide PD Service - Care,Residential Independent Sector
Cambridgeshire County Council,02-Mar-18,25738140-16946839,-1740.48,Rnid (Tarragon Gardens),Care Establishment,2 - Operations - Learning Disability,Countywide PD Service - Care,Residential Independent Sector
Cambridgeshire County Council,02-Mar-18,25738152-16946851,-1740.48,Rnid (Tarragon Gardens),Care Establishment,2 - Operations - Learning Disability,Countywide PD Service - Care,Residential Independent Sector
Cambridgeshire County Council,02-Mar-18,25738157-16946856,-1740.48,Rnid (Tarragon Gardens),Care Establishment,2 - Operations - Learning Disability,Countywide PD Service - Care,Residential Independent Sector
Cambridgeshire County Council,02-Mar-18,25731835-16946870,-1740.48,Rnid (Tarragon Gardens),Care Establishment,2 - Operations - Learning Disability,Countywide PD Service - Care,Residential Independent Sector
Cambridgeshire County Council,02-Mar-18,25738154-16946853,-1740.48,Rnid (Tarragon Gardens),Care Establishment,2 - Operations - Learning Disability,Countywide PD Service - Care,Residential Independent Sector
Cambridgeshire County Council,02-Mar-18,25738161-16946860,-1740.48,Rnid (Tarragon Gardens),Care Establishment,2 - Operations - Learning Disability,Countywide PD Service - Care,Residential Independent Sector
Cambridgeshire County Council,02-Mar-18,25738148-16946847,-1740.48,Rnid (Tarragon Gardens),Care Establishment,2 - Operations - Learning Disability,Countywide PD Service - Care,Residential Independent Sector
Cambridgeshire County Council,02-Mar-18,25738163-16946862,-1740.48,Rnid (Tarragon Gardens),Care Establishment,2 - Operations - Learning Disability,Countywide PD Service - Care,Residential Independent Sector
Cambridgeshire County Council,02-Mar-18,25738165-16946864,-1740.48,Rnid (Tarragon Gardens),Care Establishment,2 - Operations - Learning Disability,Countywide PD Service - Care,Residential Independent Sector
Cambridgeshire County Council,02-Mar-18,25738149-16946848,-1740.48,Rnid (Tarragon Gardens),Care Establishment,2 - Operations - Learning Disability,Countywide PD Service - Care,Residential Independent Sector
Cambridgeshire County Council,02-Mar-18,25738150-16946849,-1740.48,Rnid (Tarragon Gardens),Care Establishment,2 - Operations - Learning Disability,Countywide PD Service - Care,Residential Independent Sector
Cambridgeshire County Council,02-Mar-18,25738143-16946842,-1740.48,Rnid (Tarragon Gardens),Care Establishment,2 - Operations - Learning Disability,Countywide PD Service - Care,Residential Independent Sector
Cambridgeshire County Council,02-Mar-18,25738160-16946859,-1740.48,Rnid (Tarragon Gardens),Care Establishment,2 - Operations - Learning Disability,Countywide PD Service - Care,Residential Independent Sector
Cambridgeshire County Council,02-Mar-18,25738144-16946843,-1740.48,Rnid (Tarragon Gardens),Care Establishment,2 - Operations - Learning Disability,Countywide PD Service - Care,Residential Independent Sector
Cambridgeshire County Council,02-Mar-18,25738146-16946845,-1740.48,Rnid (Tarragon Gardens),Care Establishment,2 - Operations - Learning Disability,Countywide PD Service - Care,Residential Independent Sector
Cambridgeshire County Council,02-Mar-18,25738162-16946861,-1740.48,Rnid (Tarragon Gardens),Care Establishment,2 - Operations - Learning Disability,Countywide PD Service - Care,Residential Independent Sector
Cambridgeshire County Council,02-Mar-18,25731834-16946869,-1740.48,Rnid (Tarragon Gardens),Care Establishment,2 - Operations - Learning Disability,Countywide PD Service - Care,Residential Independent Sector
Cambridgeshire County Council,02-Mar-18,25856142-16949650,-1729.05,Dimensions (Uk) Ltd,Care Establishment,4 - Operations - Providers services,LDP South Cambs Locality - Care,Supported Living
Cambridgeshire County Council,02-Mar-18,25856146-16949654,-1729.05,Dimensions (Uk) Ltd,Care Establishment,4 - Operations - Providers services,LDP South Cambs Locality - Care,Supported Living
Cambridgeshire County Council,02-Mar-18,25856152-16949660,-1729.05,Dimensions (Uk) Ltd,Care Establishment,4 - Operations - Providers services,LDP South Cambs Locality - Care,Supported Living
Cambridgeshire County Council,02-Mar-18,25856159-16949667,-1729.05,Dimensions (Uk) Ltd,Care Establishment,4 - Operations - Providers services,LDP South Cambs Locality - Care,Supported Living
Cambridgeshire County Council,02-Mar-18,25856164-16949672,-1729.05,Dimensions (Uk) Ltd,Care Establishment,4 - Operations - Providers services,LDP South Cambs Locality - Care,Supported Living
Cambridgeshire County Council,02-Mar-18,25858857-16949687,-1729.05,Dimensions (Uk) Ltd,Care Establishment,4 - Operations - Providers services,LDP South Cambs Locality - Care,Supported Living
Cambridgeshire County Council,02-Mar-18,25856137-16949645,-1729.05,Dimensions (Uk) Ltd,Care Establishment,4 - Operations - Providers services,LDP South Cambs Locality - Care,Supported Living
Cambridgeshire County Council,02-Mar-18,25856138-16949646,-1729.05,Dimensions (Uk) Ltd,Care Establishment,4 - Operations - Providers services,LDP South Cambs Locality - Care,Supported Living
Cambridgeshire County Council,02-Mar-18,25856155-16949663,-1729.05,Dimensions (Uk) Ltd,Care Establishment,4 - Operations - Providers services,LDP South Cambs Locality - Care,Supported Living
Cambridgeshire County Council,02-Mar-18,25856163-16949671,-1729.05,Dimensions (Uk) Ltd,Care Establishment,4 - Operations - Providers services,LDP South Cambs Locality - Care,Supported Living
Cambridgeshire County Council,02-Mar-18,25858851-16949681,-1729.05,Dimensions (Uk) Ltd,Care Establishment,4 - Operations - Providers services,LDP South Cambs Locality - Care,Supported Living
Cambridgeshire County Council,02-Mar-18,25856133-16949641,-1729.05,Dimensions (Uk) Ltd,Care Establishment,4 - Operations - Providers services,LDP South Cambs Locality - Care,Supported Living
Cambridgeshire County Council,02-Mar-18,25856141-16949649,-1729.05,Dimensions (Uk) Ltd,Care Establishment,4 - Operations - Providers services,LDP South Cambs Locality - Care,Supported Living
Cambridgeshire County Council,02-Mar-18,25856132-16949640,-1729.05,Dimensions (Uk) Ltd,Care Establishment,4 - Operations - Providers services,LDP South Cambs Locality - Care,Supported Living
Cambridgeshire County Council,02-Mar-18,25856157-16949665,-1729.05,Dimensions (Uk) Ltd,Care Establishment,4 - Operations - Providers services,LDP South Cambs Locality - Care,Supported Living
Cambridgeshire County Council,02-Mar-18,25856169-16949676,-1729.05,Dimensions (Uk) Ltd,Care Establishment,4 - Operations - Providers services,LDP South Cambs Locality - Care,Supported Living
Cambridgeshire County Council,02-Mar-18,25856143-16949651,-1729.05,Dimensions (Uk) Ltd,Care Establishment,4 - Operations - Providers services,LDP South Cambs Locality - Care,Supported Living
Cambridgeshire County Council,02-Mar-18,25856153-16949661,-1729.05,Dimensions (Uk) Ltd,Care Establishment,4 - Operations - Providers services,LDP South Cambs Locality - Care,Supported Living
Cambridgeshire County Council,02-Mar-18,25856151-16949659,-1729.05,Dimensions (Uk) Ltd,Care Establishment,4 - Operations - Providers services,LDP South Cambs Locality - Care,Supported Living
Cambridgeshire County Council,02-Mar-18,25858859-16949689,-1729.05,Dimensions (Uk) Ltd,Care Establishment,4 - Operations - Providers services,LDP South Cambs Locality - Care,Supported Living
Cambridgeshire County Council,02-Mar-18,25856145-16949653,-1729.05,Dimensions (Uk) Ltd,Care Establishment,4 - Operations - Providers services,LDP South Cambs Locality - Care,Supported Living
Cambridgeshire County Council,02-Mar-18,25856161-16949669,-1729.05,Dimensions (Uk) Ltd,Care Establishment,4 - Operations - Providers services,LDP South Cambs Locality - Care,Supported Living
Cambridgeshire County Council,02-Mar-18,25856162-16949670,-1729.05,Dimensions (Uk) Ltd,Care Establishment,4 - Operations - Providers services,LDP South Cambs Locality - Care,Supported Living
Cambridgeshire County Council,02-Mar-18,25856166-16949674,-1729.05,Dimensions (Uk) Ltd,Care Establishment,4 - Operations - Providers services,LDP South Cambs Locality - Care,Supported Living
Cambridgeshire County Council,02-Mar-18,25856171-16949678,-1729.05,Dimensions (Uk) Ltd,Care Establishment,4 - Operations - Providers services,LDP South Cambs Locality - Care,Supported Living
Cambridgeshire County Council,20-Mar-18,26385737-17083472,-1720.25,Thera East Anglia,Care Establishment,4 - Operations - Providers services,LDP South Cambs Locality - Care,Supported Living
Cambridgeshire County Council,20-Mar-18,26385738-17083473,-1720.25,Thera East Anglia,Care Establishment,4 - Operations - Providers services,LDP South Cambs Locality - Care,Supported Living
Cambridgeshire County Council,20-Mar-18,26385740-17083475,-1720.25,Thera East Anglia,Care Establishment,4 - Operations - Providers services,LDP South Cambs Locality - Care,Supported Living
Cambridgeshire County Council,20-Mar-18,26381400-17083294,-1720.25,Thera East Anglia,Care Establishment,4 - Operations - Providers services,LDP South Cambs Locality - Care,Supported Living
Cambridgeshire County Council,02-Mar-18,25904112-16934457,-1711.36,Affinity Trust,Care Establishment,4 - Operations - Providers services,LDP Fenland Locality - Care,Supported Living
Cambridgeshire County Council,02-Mar-18,25904113-16934458,-1711.36,Affinity Trust,Care Establishment,4 - Operations - Providers services,LDP Fens - Special Needs,Supported Living
Cambridgeshire County Council,02-Mar-18,26187463-16934723,-1711.36,Affinity Trust,Care Establishment,4 - Operations - Providers services,LDP Fens - Special Needs,Supported Living
Cambridgeshire County Council,02-Mar-18,26187476-16934736,-1711.36,Affinity Trust,Care Establishment,4 - Operations - Providers services,LDP Fens - Special Needs,Supported Living
Cambridgeshire County Council,02-Mar-18,26187477-16934737,-1711.36,Affinity Trust,Care Establishment,4 - Operations - Providers services,LDP Fens - Special Needs,Supported Living
Cambridgeshire County Council,02-Mar-18,26187489-16934749,-1711.36,Affinity Trust,Care Establishment,4 - Operations - Providers services,LDP Fens - Special Needs,Supported Living
Cambridgeshire County Council,16-Mar-18,26212677-17041056,-1711.36,Affinity Trust,Care Establishment,4 - Operations - Providers services,LDP Fenland Locality - Care,Supported Living
Cambridgeshire County Council,16-Mar-18,26212678-17041062,-1711.36,Affinity Trust,Care Establishment,4 - Operations - Providers services,LDP Fens - Special Needs,Supported Living
Cambridgeshire County Council,16-Mar-18,26312283-17041128,-1711.36,Affinity Trust,Care Establishment,4 - Operations - Providers services,LDP Fenland Locality - Care,Supported Living
Cambridgeshire County Council,16-Mar-18,26312284-17041129,-1711.36,Affinity Trust,Care Establishment,4 - Operations - Providers services,LDP Fens - Special Needs,Supported Living
Cambridgeshire County Council,16-Mar-18,26312292-17041137,-1711.36,Affinity Trust,Care Establishment,4 - Operations - Providers services,LDP Fenland Locality - Care,Supported Living
Cambridgeshire County Council,02-Mar-18,25854240-16934439,-1711.36,Affinity Trust,Care Establishment,4 - Operations - Providers services,LDP Fens - Special Needs,Supported Living
Cambridgeshire County Council,02-Mar-18,25854241-16934440,-1711.36,Affinity Trust,Care Establishment,4 - Operations - Providers services,LDP Fens - Special Needs,Supported Living
Cambridgeshire County Council,02-Mar-18,25904106-16934451,-1711.36,Affinity Trust,Care Establishment,4 - Operations - Providers services,LDP Fens - Special Needs,Supported Living
Cambridgeshire County Council,02-Mar-18,25904109-16934454,-1711.36,Affinity Trust,Care Establishment,4 - Operations - Providers services,LDP Fens - Special Needs,Supported Living
Cambridgeshire County Council,02-Mar-18,25904120-16934465,-1711.36,Affinity Trust,Care Establishment,4 - Operations - Providers services,LDP Fens - Special Needs,Supported Living
Cambridgeshire County Council,02-Mar-18,25904121-16934466,-1711.36,Affinity Trust,Care Establishment,4 - Operations - Providers services,LDP Fens - Special Needs,Supported Living
Cambridgeshire County Council,02-Mar-18,26044125-16934540,-1711.36,Affinity Trust,Care Establishment,4 - Operations - Providers services,LDP Fens - Special Needs,Supported Living
Cambridgeshire County Council,02-Mar-18,26044139-16934552,-1711.36,Affinity Trust,Care Establishment,4 - Operations - Providers services,LDP Fenland Locality - Care,Supported Living
Cambridgeshire County Council,02-Mar-18,26187469-16934729,-1711.36,Affinity Trust,Care Establishment,4 - Operations - Providers services,LDP Fens - Special Needs,Supported Living
Cambridgeshire County Council,02-Mar-18,26187475-16934735,-1711.36,Affinity Trust,Care Establishment,4 - Operations - Providers services,LDP Fenland Locality - Care,Supported Living
Cambridgeshire County Council,02-Mar-18,26187480-16934740,-1711.36,Affinity Trust,Care Establishment,4 - Operations - Providers services,LDP Fenland Locality - Care,Supported Living
Cambridgeshire County Council,02-Mar-18,26187498-16934758,-1711.36,Affinity Trust,Care Establishment,4 - Operations - Providers services,LDP Fenland Locality - Care,Supported Living
Cambridgeshire County Council,16-Mar-18,26212697-17041081,-1711.36,Affinity Trust,Care Establishment,4 - Operations - Providers services,LDP Fens - Special Needs,Supported Living
Cambridgeshire County Council,16-Mar-18,26220494-17041082,-1711.36,Affinity Trust,Care Establishment,4 - Operations - Providers services,LDP Fens - Special Needs,Supported Living
Cambridgeshire County Council,16-Mar-18,26312303-17041106,-1711.36,Affinity Trust,Care Establishment,4 - Operations - Providers services,LDP Fenland Locality - Care,Supported Living
Cambridgeshire County Council,16-Mar-18,26312285-17041130,-1711.36,Affinity Trust,Care Establishment,4 - Operations - Providers services,LDP Fenland Locality - Care,Supported Living
Cambridgeshire County Council,02-Mar-18,25904119-16934464,-1711.36,Affinity Trust,Care Establishment,4 - Operations - Providers services,LDP Fenland Locality - Care,Supported Living
Cambridgeshire County Council,02-Mar-18,26044112-16934527,-1711.36,Affinity Trust,Care Establishment,4 - Operations - Providers services,LDP Fens - Special Needs,Supported Living
Cambridgeshire County Council,02-Mar-18,26044117-16934532,-1711.36,Affinity Trust,Care Establishment,4 - Operations - Providers services,LDP Fens - Special Needs,Supported Living
Cambridgeshire County Council,02-Mar-18,26044129-16934543,-1711.36,Affinity Trust,Care Establishment,4 - Operations - Providers services,LDP Fenland Locality - Care,Supported Living
Cambridgeshire County Council,02-Mar-18,26044136-16934549,-1711.36,Affinity Trust,Care Establishment,4 - Operations - Providers services,LDP Fens - Special Needs,Supported Living
Cambridgeshire County Council,16-Mar-18,26212688-17041072,-1711.36,Affinity Trust,Care Establishment,4 - Operations - Providers services,LDP Fenland Locality - Care,Supported Living
Cambridgeshire County Council,16-Mar-18,26212694-17041078,-1711.36,Affinity Trust,Care Establishment,4 - Operations - Providers services,LDP Fens - Special Needs,Supported Living
Cambridgeshire County Council,16-Mar-18,26312307-17041110,-1711.36,Affinity Trust,Care Establishment,4 - Operations - Providers services,LDP Fenland Locality - Care,Supported Living
Cambridgeshire County Council,16-Mar-18,26312275-17041120,-1711.36,Affinity Trust,Care Establishment,4 - Operations - Providers services,LDP Fens - Special Needs,Supported Living
Cambridgeshire County Council,02-Mar-18,25856964-16934419,-1711.36,Affinity Trust,Care Establishment,4 - Operations - Providers services,LDP Fenland Locality - Care,Supported Living
Cambridgeshire County Council,02-Mar-18,25856968-16934423,-1711.36,Affinity Trust,Care Establishment,4 - Operations - Providers services,LDP Fenland Locality - Care,Supported Living
Cambridgeshire County Council,02-Mar-18,25854231-16934430,-1711.36,Affinity Trust,Care Establishment,4 - Operations - Providers services,LDP Fens - Special Needs,Supported Living
Cambridgeshire County Council,02-Mar-18,25854234-16934433,-1711.36,Affinity Trust,Care Establishment,4 - Operations - Providers services,LDP Fenland Locality - Care,Supported Living
Cambridgeshire County Council,02-Mar-18,25904110-16934455,-1711.36,Affinity Trust,Care Establishment,4 - Operations - Providers services,LDP Fens - Special Needs,Supported Living
Cambridgeshire County Council,16-Mar-18,26312306-17041109,-1711.36,Affinity Trust,Care Establishment,4 - Operations - Providers services,LDP Fens - Special Needs,Supported Living
Cambridgeshire County Council,16-Mar-18,26312272-17041117,-1711.36,Affinity Trust,Care Establishment,4 - Operations - Providers services,LDP Fens - Special Needs,Supported Living
Cambridgeshire County Council,16-Mar-18,26312276-17041121,-1711.36,Affinity Trust,Care Establishment,4 - Operations - Providers services,LDP Fens - Special Needs,Supported Living
Cambridgeshire County Council,16-Mar-18,26312282-17041127,-1711.36,Affinity Trust,Care Establishment,4 - Operations - Providers services,LDP Fenland Locality - Care,Supported Living
Cambridgeshire County Council,02-Mar-18,25904097-16934442,-1711.36,Affinity Trust,Care Establishment,4 - Operations - Providers services,LDP Fens - Special Needs,Supported Living
Cambridgeshire County Council,02-Mar-18,25904098-16934443,-1711.36,Affinity Trust,Care Establishment,4 - Operations - Providers services,LDP Fens - Special Needs,Supported Living
Cambridgeshire County Council,02-Mar-18,26044114-16934529,-1711.36,Affinity Trust,Care Establishment,4 - Operations - Providers services,LDP Fens - Special Needs,Supported Living
Cambridgeshire County Council,02-Mar-18,26044124-16934539,-1711.36,Affinity Trust,Care Establishment,4 - Operations - Providers services,LDP Fens - Special Needs,Supported Living
Cambridgeshire County Council,02-Mar-18,26044131-16934545,-1711.36,Affinity Trust,Care Establishment,4 - Operations - Providers services,LDP Fens - Special Needs,Supported Living
Cambridgeshire County Council,02-Mar-18,26044134-16934547,-1711.36,Affinity Trust,Care Establishment,4 - Operations - Providers services,LDP Fenland Locality - Care,Supported Living
Cambridgeshire County Council,02-Mar-18,26044146-16934559,-1711.36,Affinity Trust,Care Establishment,4 - Operations - Providers services,LDP Fens - Special Needs,Supported Living
Cambridgeshire County Council,02-Mar-18,26187474-16934734,-1711.36,Affinity Trust,Care Establishment,4 - Operations - Providers services,LDP Fenland Locality - Care,Supported Living
Cambridgeshire County Council,02-Mar-18,26187492-16934752,-1711.36,Affinity Trust,Care Establishment,4 - Operations - Providers services,LDP Fenland Locality - Care,Supported Living
Cambridgeshire County Council,02-Mar-18,25856953-16934408,-1711.36,Affinity Trust,Care Establishment,4 - Operations - Providers services,LDP Fens - Special Needs,Supported Living
Cambridgeshire County Council,02-Mar-18,25856956-16934411,-1711.36,Affinity Trust,Care Establishment,4 - Operations - Providers services,LDP Fenland Locality - Care,Supported Living
Cambridgeshire County Council,16-Mar-18,26212681-17041065,-1711.36,Affinity Trust,Care Establishment,4 - Operations - Providers services,LDP Fenland Locality - Care,Supported Living
Cambridgeshire County Council,16-Mar-18,26212683-17041067,-1711.36,Affinity Trust,Care Establishment,4 - Operations - Providers services,LDP Fens - Special Needs,Supported Living
Cambridgeshire County Council,16-Mar-18,26212685-17041069,-1711.36,Affinity Trust,Care Establishment,4 - Operations - Providers services,LDP Fens - Special Needs,Supported Living
Cambridgeshire County Council,16-Mar-18,26220498-17041086,-1711.36,Affinity Trust,Care Establishment,4 - Operations - Providers services,LDP Fenland Locality - Care,Supported Living
Cambridgeshire County Council,16-Mar-18,26312281-17041126,-1711.36,Affinity Trust,Care Establishment,4 - Operations - Providers services,LDP Fenland Locality - Care,Supported Living
Cambridgeshire County Council,02-Mar-18,25856961-16934416,-1711.36,Affinity Trust,Care Establishment,4 - Operations - Providers services,LDP Fenland Locality - Care,Supported Living
Cambridgeshire County Council,02-Mar-18,25854229-16934428,-1711.36,Affinity Trust,Care Establishment,4 - Operations - Providers services,LDP Fens - Special Needs,Supported Living
Cambridgeshire County Council,02-Mar-18,25854242-16934441,-1711.36,Affinity Trust,Care Establishment,4 - Operations - Providers services,LDP Fenland Locality - Care,Supported Living
Cambridgeshire County Council,02-Mar-18,25904100-16934445,-1711.36,Affinity Trust,Care Establishment,4 - Operations - Providers services,LDP Fens - Special Needs,Supported Living
Cambridgeshire County Council,02-Mar-18,25904092-16934471,-1711.36,Affinity Trust,Care Establishment,4 - Operations - Providers services,LDP Fens - Special Needs,Supported Living
Cambridgeshire County Council,02-Mar-18,26187471-16934731,-1711.36,Affinity Trust,Care Establishment,4 - Operations - Providers services,LDP Fenland Locality - Care,Supported Living
Cambridgeshire County Council,16-Mar-18,26212686-17041070,-1711.36,Affinity Trust,Care Establishment,4 - Operations - Providers services,LDP Fens - Special Needs,Supported Living
Cambridgeshire County Council,16-Mar-18,26212695-17041079,-1711.36,Affinity Trust,Care Establishment,4 - Operations - Providers services,LDP Fens - Special Needs,Supported Living
Cambridgeshire County Council,16-Mar-18,26220495-17041083,-1711.36,Affinity Trust,Care Establishment,4 - Operations - Providers services,LDP Fens - Special Needs,Supported Living
Cambridgeshire County Council,16-Mar-18,26220493-17041094,-1711.36,Affinity Trust,Care Establishment,4 - Operations - Providers services,LDP Fens - Special Needs,Supported Living
Cambridgeshire County Council,16-Mar-18,26312278-17041123,-1711.36,Affinity Trust,Care Establishment,4 - Operations - Providers services,LDP Fens - Special Needs,Supported Living
Cambridgeshire County Council,02-Mar-18,25904103-16934448,-1711.36,Affinity Trust,Care Establishment,4 - Operations - Providers services,LDP Fens - Special Needs,Supported Living
Cambridgeshire County Council,02-Mar-18,25904090-16934469,-1711.36,Affinity Trust,Care Establishment,4 - Operations - Providers services,LDP Fenland Locality - Care,Supported Living
Cambridgeshire County Council,02-Mar-18,26044119-16934534,-1711.36,Affinity Trust,Care Establishment,4 - Operations - Providers services,LDP Fens - Special Needs,Supported Living
Cambridgeshire County Council,02-Mar-18,26044140-16934553,-1711.36,Affinity Trust,Care Establishment,4 - Operations - Providers services,LDP Fens - Special Needs,Supported Living
Cambridgeshire County Council,02-Mar-18,26187464-16934724,-1711.36,Affinity Trust,Care Establishment,4 - Operations - Providers services,LDP Fenland Locality - Care,Supported Living
Cambridgeshire County Council,02-Mar-18,26187465-16934725,-1711.36,Affinity Trust,Care Establishment,4 - Operations - Providers services,LDP Fenland Locality - Care,Supported Living
Cambridgeshire County Council,02-Mar-18,26187493-16934753,-1711.36,Affinity Trust,Care Establishment,4 - Operations - Providers services,LDP Fenland Locality - Care,Supported Living
Cambridgeshire County Council,02-Mar-18,25856955-16934410,-1711.36,Affinity Trust,Care Establishment,4 - Operations - Providers services,LDP Fens - Special Needs,Supported Living
Cambridgeshire County Council,16-Mar-18,26212692-17041076,-1711.36,Affinity Trust,Care Establishment,4 - Operations - Providers services,LDP Fenland Locality - Care,Supported Living
Cambridgeshire County Council,16-Mar-18,26312274-17041119,-1711.36,Affinity Trust,Care Establishment,4 - Operations - Providers services,LDP Fens - Special Needs,Supported Living
Cambridgeshire County Council,16-Mar-18,26312291-17041136,-1711.36,Affinity Trust,Care Establishment,4 - Operations - Providers services,LDP Fenland Locality - Care,Supported Living
Cambridgeshire County Council,02-Mar-18,25856959-16934414,-1711.36,Affinity Trust,Care Establishment,4 - Operations - Providers services,LDP Fens - Special Needs,Supported Living
Cambridgeshire County Council,02-Mar-18,25856971-16934426,-1711.36,Affinity Trust,Care Establishment,4 - Operations - Providers services,LDP Fens - Special Needs,Supported Living
Cambridgeshire County Council,02-Mar-18,25854232-16934431,-1711.36,Affinity Trust,Care Establishment,4 - Operations - Providers services,LDP Fenland Locality - Care,Supported Living
Cambridgeshire County Council,02-Mar-18,25854235-16934434,-1711.36,Affinity Trust,Care Establishment,4 - Operations - Providers services,LDP Fenland Locality - Care,Supported Living
Cambridgeshire County Council,02-Mar-18,25904115-16934460,-1711.36,Affinity Trust,Care Establishment,4 - Operations - Providers services,LDP Fens - Special Needs,Supported Living
Cambridgeshire County Council,02-Mar-18,25904124-16934468,-1711.36,Affinity Trust,Care Establishment,4 - Operations - Providers services,LDP Fenland Locality - Care,Supported Living
Cambridgeshire County Council,02-Mar-18,26044111-16934526,-1711.36,Affinity Trust,Care Establishment,4 - Operations - Providers services,LDP Fens - Special Needs,Supported Living
Cambridgeshire County Council,02-Mar-18,26044132-16934546,-1711.36,Affinity Trust,Care Establishment,4 - Operations - Providers services,LDP Fenland Locality - Care,Supported Living
Cambridgeshire County Council,02-Mar-18,26044137-16934550,-1711.36,Affinity Trust,Care Establishment,4 - Operations - Providers services,LDP Fens - Special Needs,Supported Living
Cambridgeshire County Council,02-Mar-18,26187467-16934727,-1711.36,Affinity Trust,Care Establishment,4 - Operations - Providers services,LDP Fenland Locality - Care,Supported Living
Cambridgeshire County Council,02-Mar-18,26187478-16934738,-1711.36,Affinity Trust,Care Establishment,4 - Operations - Providers services,LDP Fenland Locality - Care,Supported Living
Cambridgeshire County Council,16-Mar-18,26220499-17041087,-1711.36,Affinity Trust,Care Establishment,4 - Operations - Providers services,LDP Fenland Locality - Care,Supported Living
Cambridgeshire County Council,16-Mar-18,26312308-17041111,-1711.36,Affinity Trust,Care Establishment,4 - Operations - Providers services,LDP Fens - Special Needs,Supported Living
Cambridgeshire County Council,20-Mar-18,26379448-17083200,-1693.03,Thera East Anglia,Care Establishment,4 - Operations - Providers services,LDP E Cambs Special Needs,Supported Living
Cambridgeshire County Council,20-Mar-18,26379449-17083201,-1693.03,Thera East Anglia,Care Establishment,4 - Operations - Providers services,LDP E Cambs Special Needs,Supported Living
Cambridgeshire County Council,20-Mar-18,26388873-17083555,-1693.03,Thera East Anglia,Care Establishment,4 - Operations - Providers services,LDP E Cambs Special Needs,Supported Living
Cambridgeshire County Council,20-Mar-18,26388875-17083557,-1693.03,Thera East Anglia,Care Establishment,4 - Operations - Providers services,LDP E Cambs Special Needs,Supported Living
Cambridgeshire County Council,20-Mar-18,26382301-17083313,-1693.03,Thera East Anglia,Care Establishment,4 - Operations - Providers services,LDP E Cambs Special Needs,Supported Living
Cambridgeshire County Council,20-Mar-18,26388882-17083564,-1693.03,Thera East Anglia,Care Establishment,4 - Operations - Providers services,LDP E Cambs Special Needs,Supported Living
Cambridgeshire County Council,20-Mar-18,26387550-17083515,-1693.03,Thera East Anglia,Care Establishment,4 - Operations - Providers services,LDP E Cambs Special Needs,Supported Living
Cambridgeshire County Council,20-Mar-18,26387562-17083518,-1693.03,Thera East Anglia,Care Establishment,4 - Operations - Providers services,LDP E Cambs Special Needs,Supported Living
Cambridgeshire County Council,20-Mar-18,26382306-17083318,-1693.03,Thera East Anglia,Care Establishment,4 - Operations - Providers services,LDP E Cambs Special Needs,Supported Living
Cambridgeshire County Council,20-Mar-18,26382304-17083316,-1693.03,Thera East Anglia,Care Establishment,4 - Operations - Providers services,LDP E Cambs Special Needs,Supported Living
Cambridgeshire County Council,20-Mar-18,26382303-17083315,-1693.03,Thera East Anglia,Care Establishment,4 - Operations - Providers services,LDP E Cambs Special Needs,Supported Living
Cambridgeshire County Council,20-Mar-18,26388880-17083562,-1693.03,Thera East Anglia,Care Establishment,4 - Operations - Providers services,LDP E Cambs Special Needs,Supported Living
Cambridgeshire County Council,20-Mar-18,26380294-17083225,-1648.27,Thera East Anglia,Care Establishment,4 - Operations - Providers services,LDP E Cambs Special Needs,Supported Living
Cambridgeshire County Council,20-Mar-18,26380289-17083220,-1648.27,Thera East Anglia,Care Establishment,4 - Operations - Providers services,LDP E Cambs Special Needs,Supported Living
Cambridgeshire County Council,20-Mar-18,26375803-17083007,-1648.27,Thera East Anglia,Care Establishment,4 - Operations - Providers services,LDP E Cambs Special Needs,Supported Living
Cambridgeshire County Council,20-Mar-18,26380292-17083223,-1648.27,Thera East Anglia,Care Establishment,4 - Operations - Providers services,LDP E Cambs Special Needs,Supported Living
Cambridgeshire County Council,20-Mar-18,26390701-17083678,-1648.24,Thera East Anglia,Care Establishment,4 - Operations - Providers services,LDP E Cambs Special Needs,Supported Living
Cambridgeshire County Council,20-Mar-18,26390689-17083666,-1648.24,Thera East Anglia,Care Establishment,4 - Operations - Providers services,LDP E Cambs Special Needs,Supported Living
Cambridgeshire County Council,20-Mar-18,26390691-17083668,-1648.24,Thera East Anglia,Care Establishment,4 - Operations - Providers services,LDP E Cambs Special Needs,Supported Living
Cambridgeshire County Council,20-Mar-18,26390702-17083679,-1648.24,Thera East Anglia,Care Establishment,4 - Operations - Providers services,LDP E Cambs Special Needs,Supported Living
Cambridgeshire County Council,16-Mar-18,20520951-17046091,-1610,Brain Injury Rehabilitation Trust,Trust (Other),2 - Operations - Learning Disability,Countywide PD Service - Care,Residential Independent Sector
Cambridgeshire County Council,02-Mar-18,26168655-16952679,-1596,Redacted Personal Data,Individual,4 - Operations - Providers services,LDP E Cambs Locality - Care,Direct Payments - Social Services
Cambridgeshire County Council,02-Mar-18,25552163-16952612,-1596,Redacted Personal Data,Individual,4 - Operations - Providers services,LDP E Cambs Special Needs,Direct Payments - Social Services
Cambridgeshire County Council,02-Mar-18,25267943-16952614,-1596,Redacted Personal Data,Individual,4 - Operations - Providers services,LDP E Cambs Locality - Care,Direct Payments - Social Services
Cambridgeshire County Council,02-Mar-18,25898923-16952665,-1596,Redacted Personal Data,Individual,4 - Operations - Providers services,LDP E Cambs Special Needs,Direct Payments - Social Services
Cambridgeshire County Council,02-Mar-18,25388724-16952625,-1596,Redacted Personal Data,Individual,4 - Operations - Providers services,LDP E Cambs Special Needs,Direct Payments - Social Services
Cambridgeshire County Council,02-Mar-18,25790573-16952632,-1596,Redacted Personal Data,Individual,4 - Operations - Providers services,LDP E Cambs Special Needs,Direct Payments - Social Services
Cambridgeshire County Council,02-Mar-18,25898918-16952662,-1596,Redacted Personal Data,Individual,4 - Operations - Providers services,LDP E Cambs Special Needs,Direct Payments - Social Services
Cambridgeshire County Council,02-Mar-18,26044958-16952673,-1596,Redacted Personal Data,Individual,4 - Operations - Providers services,LDP E Cambs Special Needs,Direct Payments - Social Services
Cambridgeshire County Council,02-Mar-18,26168656-16952680,-1596,Redacted Personal Data,Individual,4 - Operations - Providers services,LDP E Cambs Special Needs,Direct Payments - Social Services
Cambridgeshire County Council,02-Mar-18,25552155-16952606,-1596,Redacted Personal Data,Individual,4 - Operations - Providers services,LDP E Cambs Special Needs,Direct Payments - Social Services
Cambridgeshire County Council,02-Mar-18,25267947-16952618,-1596,Redacted Personal Data,Individual,4 - Operations - Providers services,LDP E Cambs Locality - Care,Direct Payments - Social Services
Cambridgeshire County Council,02-Mar-18,25388731-16952626,-1596,Redacted Personal Data,Individual,4 - Operations - Providers services,LDP E Cambs Locality - Care,Direct Payments - Social Services
Cambridgeshire County Council,02-Mar-18,25862945-16952656,-1596,Redacted Personal Data,Individual,4 - Operations - Providers services,LDP E Cambs Locality - Care,Direct Payments - Social Services
Cambridgeshire County Council,02-Mar-18,25790593-16952637,-1596,Redacted Personal Data,Individual,4 - Operations - Providers services,LDP E Cambs Special Needs,Direct Payments - Social Services
Cambridgeshire County Council,02-Mar-18,25675750-16952641,-1596,Redacted Personal Data,Individual,4 - Operations - Providers services,LDP E Cambs Locality - Care,Direct Payments - Social Services
Cambridgeshire County Council,02-Mar-18,26044959-16952674,-1596,Redacted Personal Data,Individual,4 - Operations - Providers services,LDP E Cambs Special Needs,Direct Payments - Social Services
Cambridgeshire County Council,02-Mar-18,25552162-16952611,-1596,Redacted Personal Data,Individual,4 - Operations - Providers services,LDP E Cambs Locality - Care,Direct Payments - Social Services
Cambridgeshire County Council,02-Mar-18,25388723-16952624,-1596,Redacted Personal Data,Individual,4 - Operations - Providers services,LDP E Cambs Locality - Care,Direct Payments - Social Services
Cambridgeshire County Council,02-Mar-18,25675755-16952644,-1596,Redacted Personal Data,Individual,4 - Operations - Providers services,LDP E Cambs Special Needs,Direct Payments - Social Services
Cambridgeshire County Council,02-Mar-18,26185318-16952681,-1596,Redacted Personal Data,Individual,4 - Operations - Providers services,LDP E Cambs Special Needs,Direct Payments - Social Services
Cambridgeshire County Council,02-Mar-18,25267942-16952613,-1596,Redacted Personal Data,Individual,4 - Operations - Providers services,LDP E Cambs Locality - Care,Direct Payments - Social Services
Cambridgeshire County Council,02-Mar-18,25675757-16952646,-1596,Redacted Personal Data,Individual,4 - Operations - Providers services,LDP E Cambs Locality - Care,Direct Payments - Social Services
Cambridgeshire County Council,02-Mar-18,25734033-16952651,-1596,Redacted Personal Data,Individual,4 - Operations - Providers services,LDP E Cambs Locality - Care,Direct Payments - Social Services
Cambridgeshire County Council,02-Mar-18,25862943-16952654,-1596,Redacted Personal Data,Individual,4 - Operations - Providers services,LDP E Cambs Locality - Care,Direct Payments - Social Services
Cambridgeshire County Council,02-Mar-18,25862947-16952658,-1596,Redacted Personal Data,Individual,4 - Operations - Providers services,LDP E Cambs Locality - Care,Direct Payments - Social Services
Cambridgeshire County Council,02-Mar-18,25898928-16952668,-1596,Redacted Personal Data,Individual,4 - Operations - Providers services,LDP E Cambs Locality - Care,Direct Payments - Social Services
Cambridgeshire County Council,02-Mar-18,26044960-16952675,-1596,Redacted Personal Data,Individual,4 - Operations - Providers services,LDP E Cambs Locality - Care,Direct Payments - Social Services
Cambridgeshire County Council,02-Mar-18,25790595-16952638,-1596,Redacted Personal Data,Individual,4 - Operations - Providers services,LDP E Cambs Special Needs,Direct Payments - Social Services
Cambridgeshire County Council,02-Mar-18,25734032-16952650,-1596,Redacted Personal Data,Individual,4 - Operations - Providers services,LDP E Cambs Locality - Care,Direct Payments - Social Services
Cambridgeshire County Council,02-Mar-18,25734030-16952648,-1596,Redacted Personal Data,Individual,4 - Operations - Providers services,LDP E Cambs Special Needs,Direct Payments - Social Services
Cambridgeshire County Council,20-Mar-18,26385104-17083452,-1592.33,Thera East Anglia,Care Establishment,4 - Operations - Providers services,LDP E Cambs Special Needs,Supported Living
Cambridgeshire County Council,20-Mar-18,26375073-17082984,-1592.33,Thera East Anglia,Care Establishment,4 - Operations - Providers services,LDP E Cambs Special Needs,Supported Living
Cambridgeshire County Council,20-Mar-18,26375956-17083045,-1592.33,Thera East Anglia,Care Establishment,4 - Operations - Providers services,LDP E Cambs Special Needs,Supported Living
Cambridgeshire County Council,20-Mar-18,26375064-17082975,-1592.33,Thera East Anglia,Care Establishment,4 - Operations - Providers services,LDP E Cambs Special Needs,Supported Living
Cambridgeshire County Council,20-Mar-18,26385094-17083442,-1592.33,Thera East Anglia,Care Establishment,4 - Operations - Providers services,LDP E Cambs Special Needs,Supported Living
Cambridgeshire County Council,20-Mar-18,26385096-17083444,-1592.33,Thera East Anglia,Care Establishment,4 - Operations - Providers services,LDP E Cambs Special Needs,Supported Living
Cambridgeshire County Council,20-Mar-18,26375070-17082981,-1592.33,Thera East Anglia,Care Establishment,4 - Operations - Providers services,LDP E Cambs Special Needs,Supported Living
Cambridgeshire County Council,20-Mar-18,26385102-17083450,-1592.33,Thera East Anglia,Care Establishment,4 - Operations - Providers services,LDP E Cambs Special Needs,Supported Living
Cambridgeshire County Council,20-Mar-18,26375958-17083047,-1592.33,Thera East Anglia,Care Establishment,4 - Operations - Providers services,LDP E Cambs Special Needs,Supported Living
Cambridgeshire County Council,20-Mar-18,26375959-17083048,-1592.33,Thera East Anglia,Care Establishment,4 - Operations - Providers services,LDP E Cambs Special Needs,Supported Living
Cambridgeshire County Council,20-Mar-18,26375074-17082985,-1592.33,Thera East Anglia,Care Establishment,4 - Operations - Providers services,LDP E Cambs Special Needs,Supported Living
Cambridgeshire County Council,20-Mar-18,26375963-17083052,-1592.33,Thera East Anglia,Care Establishment,4 - Operations - Providers services,LDP E Cambs Special Needs,Supported Living
Cambridgeshire County Council,22-Mar-18,26424649-17113895,-1537.66,22 Kings Ripton Road (Regard),Care Establishment,4 - Operations - Providers services,LDP Hunts special needs,Supported Living
Cambridgeshire County Council,22-Mar-18,26424659-17113903,-1537.66,22 Kings Ripton Road (Regard),Care Establishment,4 - Operations - Providers services,LDP Hunts special needs,Supported Living
Cambridgeshire County Council,22-Mar-18,26424674-17113918,-1537.66,22 Kings Ripton Road (Regard),Care Establishment,4 - Operations - Providers services,LDP Hunts special needs,Supported Living
Cambridgeshire County Council,22-Mar-18,26424623-17113793,-1537.66,22 Kings Ripton Road (Regard),Care Establishment,4 - Operations - Providers services,LDP Hunts special needs,Supported Living
Cambridgeshire County Council,22-Mar-18,26429447-17114643,-1537.66,22 Kings Ripton Road (Regard),Care Establishment,4 - Operations - Providers services,LDP Hunts special needs,Supported Living
Cambridgeshire County Council,22-Mar-18,26424652-17113898,-1537.66,22 Kings Ripton Road (Regard),Care Establishment,4 - Operations - Providers services,LDP Hunts special needs,Supported Living
Cambridgeshire County Council,22-Mar-18,26424673-17113917,-1537.66,22 Kings Ripton Road (Regard),Care Establishment,4 - Operations - Providers services,LDP Hunts special needs,Supported Living
Cambridgeshire County Council,22-Mar-18,26424618-17113789,-1537.66,22 Kings Ripton Road (Regard),Care Establishment,4 - Operations - Providers services,LDP Hunts special needs,Supported Living
Cambridgeshire County Council,22-Mar-18,26424620-17113790,-1537.66,22 Kings Ripton Road (Regard),Care Establishment,4 - Operations - Providers services,LDP Hunts special needs,Supported Living
Cambridgeshire County Council,22-Mar-18,26424622-17113792,-1537.66,22 Kings Ripton Road (Regard),Care Establishment,4 - Operations - Providers services,LDP Hunts special needs,Supported Living
Cambridgeshire County Council,22-Mar-18,26424642-17113888,-1537.66,22 Kings Ripton Road (Regard),Care Establishment,4 - Operations - Providers services,LDP Hunts special needs,Supported Living
Cambridgeshire County Council,22-Mar-18,26429439-17114635,-1537.66,22 Kings Ripton Road (Regard),Care Establishment,4 - Operations - Providers services,LDP Hunts special needs,Supported Living
Cambridgeshire County Council,22-Mar-18,26424656-17113901,-1537.66,22 Kings Ripton Road (Regard),Care Establishment,4 - Operations - Providers services,LDP Hunts special needs,Supported Living
Cambridgeshire County Council,22-Mar-18,26424671-17113915,-1537.66,22 Kings Ripton Road (Regard),Care Establishment,4 - Operations - Providers services,LDP Hunts special needs,Supported Living
Cambridgeshire County Council,22-Mar-18,26424675-17113919,-1537.66,22 Kings Ripton Road (Regard),Care Establishment,4 - Operations - Providers services,LDP Hunts special needs,Supported Living
Cambridgeshire County Council,22-Mar-18,26424644-17113890,-1537.66,22 Kings Ripton Road (Regard),Care Establishment,4 - Operations - Providers services,LDP Hunts special needs,Supported Living
Cambridgeshire County Council,22-Mar-18,26424647-17113893,-1537.66,22 Kings Ripton Road (Regard),Care Establishment,4 - Operations - Providers services,LDP Hunts special needs,Supported Living
Cambridgeshire County Council,22-Mar-18,26424668-17113912,-1537.66,22 Kings Ripton Road (Regard),Care Establishment,4 - Operations - Providers services,LDP Hunts special needs,Supported Living
Cambridgeshire County Council,22-Mar-18,26424679-17113922,-1537.66,22 Kings Ripton Road (Regard),Care Establishment,4 - Operations - Providers services,LDP Hunts special needs,Supported Living
Cambridgeshire County Council,22-Mar-18,26424616-17113787,-1537.66,22 Kings Ripton Road (Regard),Care Establishment,4 - Operations - Providers services,LDP Hunts special needs,Supported Living
Cambridgeshire County Council,22-Mar-18,26424635-17113884,-1537.66,22 Kings Ripton Road (Regard),Care Establishment,4 - Operations - Providers services,LDP Hunts special needs,Supported Living
Cambridgeshire County Council,22-Mar-18,26424643-17113889,-1537.66,22 Kings Ripton Road (Regard),Care Establishment,4 - Operations - Providers services,LDP Hunts special needs,Supported Living
Cambridgeshire County Council,22-Mar-18,26424628-17113878,-1537.66,22 Kings Ripton Road (Regard),Care Establishment,4 - Operations - Providers services,LDP Hunts special needs,Supported Living
Cambridgeshire County Council,22-Mar-18,26429434-17114632,-1537.66,22 Kings Ripton Road (Regard),Care Establishment,4 - Operations - Providers services,LDP Hunts special needs,Supported Living
Cambridgeshire County Council,22-Mar-18,26424651-17113897,-1537.66,22 Kings Ripton Road (Regard),Care Establishment,4 - Operations - Providers services,LDP Hunts special needs,Supported Living
Cambridgeshire County Council,22-Mar-18,26424664-17113908,-1537.66,22 Kings Ripton Road (Regard),Care Establishment,4 - Operations - Providers services,LDP Hunts special needs,Supported Living
Cambridgeshire County Council,22-Mar-18,26424615-17113786,-1537.66,22 Kings Ripton Road (Regard),Care Establishment,4 - Operations - Providers services,LDP Hunts special needs,Supported Living
Cambridgeshire County Council,22-Mar-18,26424636-17113885,-1537.66,22 Kings Ripton Road (Regard),Care Establishment,4 - Operations - Providers services,LDP Hunts special needs,Supported Living
Cambridgeshire County Council,22-Mar-18,26429435-17114633,-1537.66,22 Kings Ripton Road (Regard),Care Establishment,4 - Operations - Providers services,LDP Hunts special needs,Supported Living
Cambridgeshire County Council,22-Mar-18,26429436-17114634,-1537.66,22 Kings Ripton Road (Regard),Care Establishment,4 - Operations - Providers services,LDP Hunts special needs,Supported Living
Cambridgeshire County Council,22-Mar-18,26424669-17113913,-1537.66,22 Kings Ripton Road (Regard),Care Establishment,4 - Operations - Providers services,LDP Hunts special needs,Supported Living
Cambridgeshire County Council,22-Mar-18,26424638-17113886,-1537.66,22 Kings Ripton Road (Regard),Care Establishment,4 - Operations - Providers services,LDP Hunts special needs,Supported Living
Cambridgeshire County Council,22-Mar-18,26424672-17113916,-1537.66,22 Kings Ripton Road (Regard),Care Establishment,4 - Operations - Providers services,LDP Hunts special needs,Supported Living
Cambridgeshire County Council,22-Mar-18,26429433-17114631,-1537.66,22 Kings Ripton Road (Regard),Care Establishment,4 - Operations - Providers services,LDP Hunts special needs,Supported Living
Cambridgeshire County Council,22-Mar-18,26429445-17114641,-1537.66,22 Kings Ripton Road (Regard),Care Establishment,4 - Operations - Providers services,LDP Hunts special needs,Supported Living
Cambridgeshire County Council,02-Mar-18,25861038-16925525,-1510.01,Unit 2b (Dimensions),Care Establishment,4 - Operations - Providers services,LDP Fens - Special Needs,Day and Domicillary Care Independent Sector
Cambridgeshire County Council,02-Mar-18,26172788-16925531,-1510.01,Unit 2b (Dimensions),Care Establishment,4 - Operations - Providers services,LDP Fens - Special Needs,Day and Domicillary Care Independent Sector
Cambridgeshire County Council,02-Mar-18,25856144-16949652,-1482.04,Dimensions (Uk) Ltd,Care Establishment,4 - Operations - Providers services,LDP South Cambs Locality - Care,Supported Living
Cambridgeshire County Council,02-Mar-18,26045249-16948991,-1469.2,Caerus Care Ltd,Care Establishment,4 - Operations - Providers services,LDP Fens - Special Needs,Supported Living
Cambridgeshire County Council,02-Mar-18,26045253-16948992,-1469.2,Caerus Care Ltd,Care Establishment,4 - Operations - Providers services,LDP Fens - Special Needs,Supported Living
Cambridgeshire County Council,02-Mar-18,26046958-16949003,-1469.2,Caerus Care Ltd,Care Establishment,4 - Operations - Providers services,LDP Fens - Special Needs,Supported Living
Cambridgeshire County Council,08-Mar-18,26220800-16987391,-1469.2,Caerus Care Ltd,Care Establishment,4 - Operations - Providers services,LDP Fenland Locality - Care,Supported Living
Cambridgeshire County Council,02-Mar-18,26045223-16948985,-1469.2,Caerus Care Ltd,Care Establishment,4 - Operations - Providers services,LDP Fens - Special Needs,Supported Living
Cambridgeshire County Council,02-Mar-18,26045261-16948993,-1469.2,Caerus Care Ltd,Care Establishment,4 - Operations - Providers services,LDP Fens - Special Needs,Supported Living
Cambridgeshire County Council,02-Mar-18,26046936-16948999,-1469.2,Caerus Care Ltd,Care Establishment,4 - Operations - Providers services,LDP Fens - Special Needs,Supported Living
Cambridgeshire County Council,02-Mar-18,26045238-16948989,-1469.2,Caerus Care Ltd,Care Establishment,4 - Operations - Providers services,LDP Fens - Special Needs,Supported Living
Cambridgeshire County Council,02-Mar-18,26045248-16948990,-1469.2,Caerus Care Ltd,Care Establishment,4 - Operations - Providers services,LDP Fens - Special Needs,Supported Living
Cambridgeshire County Council,02-Mar-18,26045282-16948997,-1469.2,Caerus Care Ltd,Care Establishment,4 - Operations - Providers services,LDP Fens - Special Needs,Supported Living
Cambridgeshire County Council,08-Mar-18,26220809-16987396,-1469.2,Caerus Care Ltd,Care Establishment,4 - Operations - Providers services,LDP Fenland Locality - Care,Supported Living
Cambridgeshire County Council,02-Mar-18,26045234-16948988,-1469.2,Caerus Care Ltd,Care Establishment,4 - Operations - Providers services,LDP Fens - Special Needs,Supported Living
Cambridgeshire County Council,08-Mar-18,26220802-16987393,-1469.2,Caerus Care Ltd,Care Establishment,4 - Operations - Providers services,LDP Fenland Locality - Care,Supported Living
Cambridgeshire County Council,08-Mar-18,26220804-16987395,-1469.2,Caerus Care Ltd,Care Establishment,4 - Operations - Providers services,LDP Fenland Locality - Care,Supported Living
Cambridgeshire County Council,22-Mar-18,26423762-17117850,-1468.77,Dimensions (Uk) Ltd,Care Establishment,4 - Operations - Providers services,LDP South Cambs Locality - Care,Supported Living
Cambridgeshire County Council,22-Mar-18,26427378-17118053,-1468.77,Dimensions (Uk) Ltd,Care Establishment,4 - Operations - Providers services,LDP South Cambs Locality - Care,Supported Living
Cambridgeshire County Council,22-Mar-18,26427497-17118059,-1468.77,Dimensions (Uk) Ltd,Care Establishment,4 - Operations - Providers services,LDP South Cambs - Special Needs,Day and Domicillary Care Independent Sector
Cambridgeshire County Council,22-Mar-18,26427500-17118062,-1468.77,Dimensions (Uk) Ltd,Care Establishment,4 - Operations - Providers services,LDP South Cambs - Special Needs,Day and Domicillary Care Independent Sector
Cambridgeshire County Council,22-Mar-18,26425492-17117928,-1468.77,Dimensions (Uk) Ltd,Care Establishment,4 - Operations - Providers services,LDP South Cambs - Special Needs,Day and Domicillary Care Independent Sector
Cambridgeshire County Council,22-Mar-18,26425285-17117935,-1468.77,Dimensions (Uk) Ltd,Care Establishment,4 - Operations - Providers services,LDP South Cambs Locality - Care,Supported Living
Cambridgeshire County Council,22-Mar-18,26425301-17117944,-1468.77,Dimensions (Uk) Ltd,Care Establishment,4 - Operations - Providers services,LDP South Cambs Locality - Care,Supported Living
Cambridgeshire County Council,22-Mar-18,26425329-17117958,-1468.77,Dimensions (Uk) Ltd,Care Establishment,4 - Operations - Providers services,LDP South Cambs Locality - Care,Supported Living
Cambridgeshire County Council,22-Mar-18,26425344-17117966,-1468.77,Dimensions (Uk) Ltd,Care Establishment,4 - Operations - Providers services,LDP South Cambs Locality - Care,Supported Living
Cambridgeshire County Council,22-Mar-18,26425351-17117970,-1468.77,Dimensions (Uk) Ltd,Care Establishment,4 - Operations - Providers services,LDP South Cambs Locality - Care,Supported Living
Cambridgeshire County Council,22-Mar-18,26425412-17118005,-1468.77,Dimensions (Uk) Ltd,Care Establishment,4 - Operations - Providers services,LDP South Cambs - Special Needs,Day and Domicillary Care Independent Sector
Cambridgeshire County Council,22-Mar-18,26423539-17117708,-1468.77,Dimensions (Uk) Ltd,Care Establishment,4 - Operations - Providers services,LDP South Cambs - Special Needs,Day and Domicillary Care Independent Sector
Cambridgeshire County Council,22-Mar-18,26423541-17117710,-1468.77,Dimensions (Uk) Ltd,Care Establishment,4 - Operations - Providers services,LDP South Cambs - Special Needs,Day and Domicillary Care Independent Sector
Cambridgeshire County Council,22-Mar-18,26423515-17117726,-1468.77,Dimensions (Uk) Ltd,Care Establishment,4 - Operations - Providers services,LDP South Cambs - Special Needs,Day and Domicillary Care Independent Sector
Cambridgeshire County Council,22-Mar-18,26423404-17117734,-1468.77,Dimensions (Uk) Ltd,Care Establishment,4 - Operations - Providers services,LDP South Cambs Locality - Care,Supported Living
Cambridgeshire County Council,22-Mar-18,26423413-17117740,-1468.77,Dimensions (Uk) Ltd,Care Establishment,4 - Operations - Providers services,LDP South Cambs Locality - Care,Supported Living
Cambridgeshire County Council,22-Mar-18,26423679-17117767,-1468.77,Dimensions (Uk) Ltd,Care Establishment,4 - Operations - Providers services,LDP South Cambs Locality - Care,Supported Living
Cambridgeshire County Council,22-Mar-18,26423680-17117768,-1468.77,Dimensions (Uk) Ltd,Care Establishment,4 - Operations - Providers services,LDP South Cambs Locality - Care,Supported Living
Cambridgeshire County Council,22-Mar-18,26423684-17117772,-1468.77,Dimensions (Uk) Ltd,Care Establishment,4 - Operations - Providers services,LDP South Cambs Locality - Care,Supported Living
Cambridgeshire County Council,22-Mar-18,26423686-17117774,-1468.77,Dimensions (Uk) Ltd,Care Establishment,4 - Operations - Providers services,LDP South Cambs Locality - Care,Supported Living
Cambridgeshire County Council,22-Mar-18,26423694-17117782,-1468.77,Dimensions (Uk) Ltd,Care Establishment,4 - Operations - Providers services,LDP South Cambs Locality - Care,Supported Living
Cambridgeshire County Council,22-Mar-18,26423740-17117828,-1468.77,Dimensions (Uk) Ltd,Care Establishment,4 - Operations - Providers services,LDP South Cambs Locality - Care,Supported Living
Cambridgeshire County Council,22-Mar-18,26423746-17117834,-1468.77,Dimensions (Uk) Ltd,Care Establishment,4 - Operations - Providers services,LDP South Cambs Locality - Care,Supported Living
Cambridgeshire County Council,22-Mar-18,26423532-17117667,-1468.77,Dimensions (Uk) Ltd,Care Establishment,4 - Operations - Providers services,LDP South Cambs - Special Needs,Day and Domicillary Care Independent Sector
Cambridgeshire County Council,22-Mar-18,26423759-17117847,-1468.77,Dimensions (Uk) Ltd,Care Establishment,4 - Operations - Providers services,LDP South Cambs Locality - Care,Supported Living
Cambridgeshire County Council,22-Mar-18,26427371-17118050,-1468.77,Dimensions (Uk) Ltd,Care Establishment,4 - Operations - Providers services,LDP South Cambs Locality - Care,Supported Living
Cambridgeshire County Council,22-Mar-18,26425440-17117876,-1468.77,Dimensions (Uk) Ltd,Care Establishment,4 - Operations - Providers services,LDP South Cambs - Special Needs,Day and Domicillary Care Independent Sector
Cambridgeshire County Council,22-Mar-18,26425462-17117898,-1468.77,Dimensions (Uk) Ltd,Care Establishment,4 - Operations - Providers services,LDP South Cambs - Special Needs,Day and Domicillary Care Independent Sector
Cambridgeshire County Council,22-Mar-18,26425308-17117946,-1468.77,Dimensions (Uk) Ltd,Care Establishment,4 - Operations - Providers services,LDP South Cambs Locality - Care,Supported Living
Cambridgeshire County Council,22-Mar-18,26425330-17117959,-1468.77,Dimensions (Uk) Ltd,Care Establishment,4 - Operations - Providers services,LDP South Cambs Locality - Care,Supported Living
Cambridgeshire County Council,22-Mar-18,26425366-17117977,-1468.77,Dimensions (Uk) Ltd,Care Establishment,4 - Operations - Providers services,LDP South Cambs Locality - Care,Supported Living
Cambridgeshire County Council,22-Mar-18,26425372-17117979,-1468.77,Dimensions (Uk) Ltd,Care Establishment,4 - Operations - Providers services,LDP South Cambs Locality - Care,Supported Living
Cambridgeshire County Council,22-Mar-18,26427354-17118041,-1468.77,Dimensions (Uk) Ltd,Care Establishment,4 - Operations - Providers services,LDP South Cambs Locality - Care,Supported Living
Cambridgeshire County Council,22-Mar-18,26423411-17117738,-1468.77,Dimensions (Uk) Ltd,Care Establishment,4 - Operations - Providers services,LDP South Cambs Locality - Care,Supported Living
Cambridgeshire County Council,22-Mar-18,26423704-17117792,-1468.77,Dimensions (Uk) Ltd,Care Establishment,4 - Operations - Providers services,LDP South Cambs Locality - Care,Supported Living
Cambridgeshire County Council,22-Mar-18,26427377-17118052,-1468.77,Dimensions (Uk) Ltd,Care Establishment,4 - Operations - Providers services,LDP South Cambs Locality - Care,Supported Living
Cambridgeshire County Council,22-Mar-18,26425477-17117913,-1468.77,Dimensions (Uk) Ltd,Care Establishment,4 - Operations - Providers services,LDP South Cambs - Special Needs,Day and Domicillary Care Independent Sector
Cambridgeshire County Council,22-Mar-18,26425406-17117999,-1468.77,Dimensions (Uk) Ltd,Care Establishment,4 - Operations - Providers services,LDP South Cambs - Special Needs,Day and Domicillary Care Independent Sector
Cambridgeshire County Council,22-Mar-18,26423573-17117690,-1468.77,Dimensions (Uk) Ltd,Care Establishment,4 - Operations - Providers services,LDP South Cambs - Special Needs,Day and Domicillary Care Independent Sector
Cambridgeshire County Council,22-Mar-18,26423677-17117765,-1468.77,Dimensions (Uk) Ltd,Care Establishment,4 - Operations - Providers services,LDP South Cambs Locality - Care,Supported Living
Cambridgeshire County Council,22-Mar-18,26423682-17117770,-1468.77,Dimensions (Uk) Ltd,Care Establishment,4 - Operations - Providers services,LDP South Cambs Locality - Care,Supported Living
Cambridgeshire County Council,22-Mar-18,26423689-17117777,-1468.77,Dimensions (Uk) Ltd,Care Establishment,4 - Operations - Providers services,LDP South Cambs Locality - Care,Supported Living
Cambridgeshire County Council,22-Mar-18,26423708-17117796,-1468.77,Dimensions (Uk) Ltd,Care Establishment,4 - Operations - Providers services,LDP South Cambs Locality - Care,Supported Living
Cambridgeshire County Council,22-Mar-18,26423729-17117817,-1468.77,Dimensions (Uk) Ltd,Care Establishment,4 - Operations - Providers services,LDP South Cambs Locality - Care,Supported Living
Cambridgeshire County Council,22-Mar-18,26423735-17117823,-1468.77,Dimensions (Uk) Ltd,Care Establishment,4 - Operations - Providers services,LDP South Cambs Locality - Care,Supported Living
Cambridgeshire County Council,22-Mar-18,26423751-17117839,-1468.77,Dimensions (Uk) Ltd,Care Establishment,4 - Operations - Providers services,LDP South Cambs Locality - Care,Supported Living
Cambridgeshire County Council,22-Mar-18,26423753-17117841,-1468.77,Dimensions (Uk) Ltd,Care Establishment,4 - Operations - Providers services,LDP South Cambs Locality - Care,Supported Living
Cambridgeshire County Council,22-Mar-18,26423754-17117842,-1468.77,Dimensions (Uk) Ltd,Care Establishment,4 - Operations - Providers services,LDP South Cambs Locality - Care,Supported Living
Cambridgeshire County Council,22-Mar-18,26423437-17117654,-1468.77,Dimensions (Uk) Ltd,Care Establishment,4 - Operations - Providers services,LDP South Cambs Locality - Care,Supported Living
